Workbook

Sheet Accueil

Sheet A REMPLIR - UTE 31
D1: 2011 | J1: 2012 | V1: 2013 | AH1: 2014 | AT1: 2015 | BF1: 2016 | BR1: 2017 | CD1: 2018 | CP1: 2019 | DB1: 2020 | DN1: 2021
D2: JUILLET | E2: AOÛT | F2: SEPTEMBRE | G2: OCTOBRE | H2: NOVEMBRE | I2: DÉCEMBRE | J2: JANVIER | K2: FEVRIER | L2: MARS | M2: AVRIL | N2: MAI | O2: JUIN | P2: JUILLET | Q2: AOÛT | R2: SEPTEMBRE | S2: OCTOBRE | T2: NOVEMBRE | U2: DÉCEMBRE | V2: JANVIER | W2: FÉVRIER | X2: MARS | Y2: AVRIL | Z2: MAI | AA2: JUIN | AB2: JUILLET | AC2: AOÛT | AD2: SEPTEMBRE | AE2: OCTOBRE | AF2: NOVEMBRE | AG2: DÉCEMBRE | AH2: JANVIER | AI2: FÉVRIER | AJ2: MARS | AK2: AVRIL | AL2: MAI | AM2: JUIN | AN2: JUILLET | AO2: AOÛT | AP2: SEPTEMBRE | AQ2: OCTOBRE | AR2: NOVEMBRE | AS2: DÉCEMBRE | AT2: JANVIER | AU2: FÉVRIER | AV2: MARS | AW2: AVRIL | AX2: MAI | AY2: JUIN | AZ2: JUILLET | BA2: AOÛT | BB2: SEPTEMBRE | BC2: OCTOBRE | BD2: NOVEMBRE | BE2: DÉCEMBRE | BF2: JANVIER | BG2: FÉVRIER | BH2: MARS | BI2: AVRIL | BJ2: MAI | BK2: JUIN | BL2: JUILLET | BM2: AOÛT | BN2: SEPTEMBRE | BO2: OCTOBRE | BP2: NOVEMBRE | BQ2: DÉCEMBRE | BR2: JANVIER | BS2: FÉVRIER | BT2: MARS | BU2: AVRIL | BV2: MAI | BW2: JUIN | BX2: JUILLET | BY2: AOÛT | BZ2: SEPTEMBRE | CA2: OCTOBRE | CB2: NOVEMBRE | CC2: DÉCEMBRE | CD2: JANVIER | CE2: FÉVRIER | CF2: MARS | CG2: AVRIL | CH2: MAI | CI2: JUIN | CJ2: JUILLET | CK2: AOÛT | CL2: SEPTEMBRE | CM2: OCTOBRE | CN2: NOVEMBRE | CO2: DÉCEMBRE | CP2: JANVIER | CQ2: FÉVRIER | CR2: MARS | CS2: AVRIL | CT2: MAI | CU2: JUIN | CV2: JUILLET | CW2: AOÛT | CX2: SEPTEMBRE | CY2: OCTOBRE | CZ2: NOVEMBRE | DA2: DÉCEMBRE | DB2: JANVIER | DC2: FÉVRIER | DD2: MARS | DE2: AVRIL | DF2: MAI | DG2: JUIN | DH2: JUILLET | DI2: AOÛT | DJ2: SEPTEMBRE | DK2: OCTOBRE | DL2: NOVEMBRE | DM2: DÉCEMBRE | DN2: JANVIER | DO2: FÉVRIER | DP2: MARS | DQ2: AVRIL | DR2: MAI | DS2: JUIN | DT2: JUILLET | DU2: AOÛT | DV2: SEPTEMBRE | DW2: OCTOBRE | DX2: NOVEMBRE | DY2: DÉCEMBRE
A4: SECURITE | B4: LWDC | D4: 0 | E4: 0 | F4: 0 | G4: 0 | H4: 0.85 | I4: 0.79 | J4: 0 | K4: 0 | L4: 0 | M4: 0 | N4: 0 | O4: 0 | P4: 0 | Q4: 0 | R4: 0 | S4: 0 | T4: 0 | U4: 0 | V4: 0 | W4: 0 | X4: 0 | Y4: 0 | Z4: 0 | AA4: 0 | AB4: 0 | AC4: 0 | AD4: 0 | AE4: 0 | AF4: 0 | AG4: 0 | AH4: 0 | AI4: 0 | AJ4: 0 | AK4: 0 | AL4: 0 | AM4: 0 | AN4: 0 | AO4: 0 | AP4: 0 | AQ4: 0 | AR4: 0 | AS4: 0 | AT4: 0 | AU4: 0 | AV4: 0 | AW4: 0 | AX4: 0 | AY4: 0 | AZ4: 0 | BA4: 0 | BB4: 0 | BC4: 0 | BD4: 0 | BE4: 0 | BF4: 0 | BG4: 0 | BH4: 0 | BI4: 0 | BJ4: 0 | BK4: 0
B5: FAI | D5: 0 | E5: 0 | F5: 0 | G5: 0 | H5: 0 | I5: 0 | J5: 0 | K5: 0 | L5: 0 | M5: 0 | N5: 0 | O5: 0 | P5: 0 | Q5: 0 | R5: 0 | S5: 0 | T5: 0 | U5: 0 | V5: 0 | W5: 0 | X5: 0 | Y5: 0 | Z5: 1.32 | AA5: 1.04 | AB5: 0.87 | AC5: 0.84 | AD5: 0.73 | AE5: 0.62 | AF5: 0.55 | AG5: 0.51 | AH5: 0 | AI5: 0 | AJ5: 0 | AK5: 0 | AL5: 0 | AM5: 0 | AN5: 0 | AO5: 0 | AP5: 0 | AQ5: 0 | AR5: 0 | AS5: 0 | AT5: 0 | AU5: 0 | AV5: 0 | AW5: 0 | AX5: 0 | AY5: 0 | AZ5: 0 | BA5: 2.57 | BB5: 2.33 | BC5: 2.18 | BD5: 2.1 | BE5: 2.06 | BF5: 0 | BG5: 0 | BH5: 0 | BI5: 0 | BJ5: 0 | BK5: 0
A7: QUALITE | B7: CNH
B8: Mexpédiés | D8: 291 | E8: 98 | F8: 472 | G8: 296 | H8: 196 | I8: 347 | J8: 483 | K8: 379 | L8: 351 | M8: 374 | N8: 485 | O8: 578 | P8: 432 | Q8: 122 | R8: 364 | S8: 249 | T8: 204 | U8: 247 | V8: 350 | W8: 430 | X8: 633 | Y8: 376 | Z8: 664 | AA8: 394 | AB8: 478 | AC8: 34 | AD8: 420 | AE8: 223 | AF8: 259 | AG8: 139 | AH8: 250 | AI8: 208 | AJ8: 98 | AK8: 180 | AL8: 168 | AM8: 84 | AN8: 75 | AO8: 2 | AP8: 13 | AQ8: 19 | AR8: 19 | AS8: 16 | AT8: 36 | AU8: 15 | AV8: 16 | AW8: 31 | AX8: 19 | AY8: 6 | AZ8: 14 | BA8: 1 | BB8: 12 | BC8: 27 | BD8: 6 | BE8: 5 | BF8: 11 | BG8: 24 | BH8: 40 | BI8: 53 | BJ8: 67 | BK8: 55
B9: Pulls ( date production ) | D9: 0 | E9: 0 | F9: 0 | G9: 0 | H9: 0 | I9: 0 | J9: 0 | K9: 0 | L9: 0 | M9: 0 | N9: 0 | O9: 0 | P9: 0 | Q9: 0 | R9: 0 | S9: 0 | T9: 0 | U9: 0 | V9: 0 | W9: 0 | X9: 0 | Y9: 0 | Z9: 0 | AA9: 0 | AB9: 0 | AC9: 0 | AD9: 0 | AE9: 0 | AF9: 0 | AG9: 0 | AH9: 0 | AI9: 0 | AJ9: 0 | AK9: 0 | AL9: 0 | AM9: 0 | AN9: 0 | AO9: 0 | AP9: 0 | AQ9: 0 | AR9: 0 | AS9: 0 | AT9: 0 | AU9: 0 | AV9: 0 | AW9: 0 | AX9: 0 | AY9: 0 | AZ9: 0 | BA9: 0 | BB9: 0 | BC9: 0 | BD9: 0 | BE9: 0 | BF9: 0 | BG9: 0 | BH9: 0 | BI9: 0 | BJ9: 0 | BK9: 0
B10: Assy ( date production ) | D10: 2 | E10: 0 | F10: 2 | G10: 0 | H10: 0 | I10: 0 | J10: 1 | K10: 0 | L10: 0 | M10: 0 | N10: 0 | O10: 0 | P10: 0 | Q10: 0 | R10: 0 | S10: 0 | T10: 0 | U10: 0 | V10: 0 | W10: 1 | X10: 0 | Y10: 0 | Z10: 0 | AA10: 0 | AB10: 1 | AC10: 0 | AD10: 0 | AE10: 1 | AF10: 0 | AG10: 0 | AH10: 0 | AI10: 0 | AJ10: 0 | AK10: 0 | AL10: 0 | AM10: 0 | AN10: 0 | AO10: 0 | AP10: 0 | AQ10: 0 | AR10: 0 | AS10: 0 | AT10: 0 | AU10: 0 | AV10: 0 | AW10: 0 | AX10: 0 | AY10: 0 | AZ10: 0 | BA10: 0 | BB10: 0 | BC10: 0 | BD10: 0 | BE10: 0 | BF10: 0 | BG10: 0 | BH10: 0 | BI10: 0 | BJ10: 0 | BK10: 0
B12: IRISBUS
B13: M expédiés | D13: 444 | E13: 32 | F13: 250 | G13: 318 | H13: 385 | I13: 229 | J13: 129 | K13: 238 | L13: 203 | M13: 191 | N13: 256 | O13: 231 | P13: 296 | Q13: 67 | R13: 363 | S13: 378 | T13: 250 | U13: 77 | V13: 210 | W13: 227 | X13: 247 | Y13: 199 | Z13: 282 | AA13: 258 | AB13: 396 | AC13: 71 | AD13: 376 | AE13: 479 | AF13: 454 | AG13: 305 | AH13: 70 | AI13: 23 | AJ13: 11 | AK13: 72 | AL13: 16 | AM13: 43 | AN13: 33 | AO13: 30 | AP13: 74 | AQ13: 76 | AR13: 60 | AS13: 62 | AT13: 98 | AU13: 78 | AV13: 49 | AW13: 112 | AX13: 86 | AY13: 121 | AZ13: 65 | BA13: 1 | BB13: 10 | BC13: 26 | BD13: 23 | BE13: 17 | BF13: 42 | BG13: 21 | BH13: 9 | BI13: 15 | BJ13: 36 | BK13: 3
B14: Pulls ( date production ) | D14: 0 | E14: 0 | F14: 0 | G14: 0 | H14: 0 | I14: 0 | J14: 0 | K14: 0 | L14: 0 | M14: 0 | N14: 0 | O14: 0 | P14: 0 | Q14: 0 | R14: 0 | S14: 0 | T14: 0 | U14: 0 | V14: 0 | W14: 0 | X14: 0 | Y14: 0 | Z14: 0 | AA14: 0 | AB14: 0 | AC14: 0 | AD14: 0 | AE14: 0 | AF14: 1 | AG14: 0 | AH14: 0 | AI14: 0 | AJ14: 0 | AK14: 0 | AL14: 0 | AM14: 0 | AN14: 0 | AO14: 0 | AP14: 0 | AQ14: 0 | AR14: 0 | AS14: 0 | AT14: 0 | AU14: 0 | AV14: 0 | AW14: 0 | AX14: 0 | AY14: 0 | AZ14: 0 | BA14: 0 | BB14: 0 | BC14: 0 | BD14: 0 | BE14: 0 | BF14: 0 | BG14: 0 | BH14: 0 | BI14: 0 | BJ14: 0 | BK14: 0
B15: Assy ( date production ) | D15: 0 | E15: 0 | F15: 1 | G15: 0 | H15: 0 | I15: 0 | J15: 0 | K15: 0 | L15: 1 | M15: 0 | N15: 0 | O15: 0 | P15: 0 | Q15: 0 | R15: 0 | S15: 0 | T15: 0 | U15: 0 | V15: 0 | W15: 0 | X15: 0 | Y15: 0 | Z15: 1 | AA15: 0 | AB15: 0 | AC15: 0 | AD15: 0 | AE15: 0 | AF15: 0 | AG15: 1 | AH15: 0 | AI15: 0 | AJ15: 0 | AK15: 0 | AL15: 0 | AM15: 0 | AN15: 0 | AO15: 0 | AP15: 0 | AQ15: 0 | AR15: 0 | AS15: 0 | AT15: 0 | AU15: 0 | AV15: 0 | AW15: 0 | AX15: 0 | AY15: 0 | AZ15: 0 | BA15: 0 | BB15: 0 | BC15: 0 | BD15: 0 | BE15: 0 | BF15: 0 | BG15: 0 | BH15: 0 | BI15: 0 | BJ15: 0 | BK15: 0
B17: IVECO
B18: M expédiés | D18: 262 | E18: 33 | F18: 289 | G18: 295 | H18: 177 | I18: 102 | J18: 219 | K18: 139 | L18: 129 | M18: 235 | N18: 118 | O18: 139 | P18: 198 | Q18: 57 | R18: 143 | S18: 134 | T18: 134 | U18: 41 | V18: 213 | W18: 196 | X18: 123 | Y18: 207 | Z18: 446 | AA18: 151 | AB18: 153 | AC18: 59 | AD18: 258 | AE18: 234 | AF18: 236 | AG18: 167 | AH18: 12 | AI18: 47 | AJ18: 73 | AK18: 46 | AL18: 46 | AM18: 45 | AN18: 41 | AO18: 11 | AP18: 37 | AQ18: 42 | AR18: 27 | AS18: 36 | AT18: 48 | AU18: 79 | AV18: 17 | AW18: 52 | AX18: 34 | AY18: 18 | AZ18: 32 | BA18: 11 | BB18: 48 | BC18: 49 | BD18: 41 | BE18: 21 | BF18: 74 | BG18: 48 | BH18: 38 | BI18: 63 | BJ18: 90 | BK18: 91
B19: Pulls ( date production ) | D19: 0 | E19: 0 | F19: 0 | G19: 0 | H19: 0 | I19: 0 | J19: 0 | K19: 0 | L19: 0 | M19: 0 | N19: 0 | O19: 0 | P19: 0 | Q19: 0 | R19: 0 | S19: 0 | T19: 0 | U19: 0 | V19: 0 | W19: 1 | X19: 0 | Y19: 0 | Z19: 0 | AA19: 0 | AB19: 1 | AC19: 0 | AD19: 0 | AE19: 0 | AF19: 0 | AG19: 0 | AH19: 0 | AI19: 0 | AJ19: 0 | AK19: 0 | AL19: 0 | AM19: 0 | AN19: 0 | AO19: 0 | AP19: 0 | AQ19: 0 | AR19: 0 | AS19: 0 | AT19: 0 | AU19: 0 | AV19: 0 | AW19: 0 | AX19: 0 | AY19: 0 | AZ19: 0 | BA19: 0 | BB19: 0 | BC19: 0 | BD19: 0 | BE19: 0 | BF19: 0 | BG19: 0 | BH19: 0 | BI19: 0 | BJ19: 0 | BK19: 0
B20: Assy ( date production ) | D20: 0 | E20: 0 | F20: 1 | G20: 0 | H20: 0 | I20: 1 | J20: 0 | K20: 0 | L20: 0 | M20: 0 | N20: 0 | O20: 0 | P20: 0 | Q20: 0 | R20: 0 | S20: 0 | T20: 0 | U20: 0 | V20: 0 | W20: 0 | X20: 0 | Y20: 0 | Z20: 1 | AA20: 0 | AB20: 0 | AC20: 0 | AD20: 0 | AE20: 0 | AF20: 1 | AG20: 0 | AH20: 0 | AI20: 0 | AJ20: 0 | AK20: 0 | AL20: 0 | AM20: 0 | AN20: 0 | AO20: 0 | AP20: 0 | AQ20: 0 | AR20: 1 | AS20: 0 | AT20: 0 | AU20: 0 | AV20: 0 | AW20: 0 | AX20: 0 | AY20: 0 | AZ20: 0 | BA20: 0 | BB20: 0 | BC20: 0 | BD20: 0 | BE20: 0 | BF20: 0 | BG20: 1 | BH20: 0 | BI20: 0 | BJ20: 0 | BK20: 0
B22: FTQ
B23: M passés au BRDM | D23: 1524 | E23: 294 | F23: 1674 | G23: 1471 | H23: 937 | I23: 987 | J23: 1255 | K23: 1192 | L23: 1023 | M23: 1356 | N23: 1363 | O23: 1297 | P23: 1382 | Q23: 359 | R23: 1564 | S23: 1045 | T23: 757 | U23: 693 | V23: 1145 | W23: 1274 | X23: 1921 | Y23: 1693 | Z23: 1523 | AA23: 1828 | AB23: 1936 | AC23: 346 | AD23: 1549 | AE23: 2201 | AF23: 2112 | AG23: 1816 | AH23: 900 | AI23: 808 | AJ23: 576 | AK23: 569 | AL23: 603 | AM23: 466 | AN23: 321 | AO23: 52 | AP23: 367 | AQ23: 355 | AR23: 177 | AS23: 189 | AT23: 456 | AU23: 457 | AV23: 491 | AW23: 582 | AX23: 323 | AY23: 824 | AZ23: 373 | BA23: 64 | BB23: 394 | BC23: 291 | BD23: 237 | BE23: 92 | BF23: 192 | BG23: 456 | BH23: 353 | BI23: 397 | BJ23: 355 | BK23: 497
B24: Qté défauts | D24: 14 | E24: 0 | F24: 12 | G24: 11 | H24: 8 | I24: 6 | J24: 9 | K24: 8 | L24: 7 | M24: 9 | N24: 5 | O24: 8 | P24: 5 | Q24: 0 | R24: 7 | S24: 7 | T24: 7 | U24: 4 | V24: 6 | W24: 6 | X24: 7 | Y24: 6 | Z24: 6 | AA24: 6 | AB24: 5 | AC24: 2 | AD24: 6 | AE24: 5 | AF24: 6 | AG24: 7 | AH24: 4 | AI24: 5 | AJ24: 4 | AK24: 4 | AL24: 4 | AM24: 2 | AN24: 2 | AO24: 1 | AP24: 1 | AQ24: 2 | AR24: 1 | AS24: 1 | AT24: 1 | AU24: 1 | AV24: 1 | AW24: 0 | AX24: 2 | AY24: 2 | AZ24: 1 | BA24: 0 | BB24: 0 | BC24: 1 | BD24: 1 | BE24: 0 | BF24: 0 | BG24: 1 | BH24: 1 | BI24: 0 | BJ24: 0 | BK24: 2
A26: COÛT | B26: Maintenance | D26: 67.85 | F26: 72.24 | G26: 28.84 | H26: 38.26 | I26: 4.17 | J26: 0 | K26: 0 | L26: 0 | M26: 61.77 | N26: 0 | O26: 12.36 | P26: 3.51 | Q26: 14.17 | R26: 10.12 | S26: 7.85 | T26: 8.17 | U26: 0 | V26: 42.37 | W26: 7.44 | X26: 0 | Y26: 40.85 | Z26: 52 | AA26: 3 | AB26: 53 | AC26: 0 | AD26: 0 | AE26: 70.38 | AF26: 48.1 | AG26: 2.67 | AH26: 8.5 | AI26: 8 | AJ26: 17.77 | AK26: 0 | AL26: 1.5 | AM26: 3 | AN26: 1.55 | AO26: 7.7 | AP26: 5.5 | AQ26: 0 | AR26: 0 | AS26: 25.75 | AT26: 8 | AU26: 0 | AV26: 0 | AW26: 0 | AX26: 2 | AY26: 0 | AZ26: 0 | BA26: 3 | BB26: 0 | BC26: 0 | BD26: 0 | BE26: 0 | BF26: 0 | BG26: 0 | BH26: 1 | BI26: 40 | BJ26: 11 | BK26: 0
A28: PRODUCTION | B28: Efficacité
B29: NPMOP
B30: APTP
D33: 2011 | E33: 2012 | F33: 2013 | G33: 2014 | H33: 2015 | I33: 2016 | J33: 2017 | K33: 2018 | L33: 2019 | M33: 2020 | N33: 2021
A35: SECURITE | B35: LWDC (Objectifs)
B36: FAI (Objectifs)
A38: QUALITE | B38: Pulls A (Objectifs)
B39: Pulls B (Objectifs)
B40: Pulls C (Objectifs)
B42: Assy A (Objectifs)
B43: Assy B (Objectifs)
B44: Assy C (Objectifs)
B46: FTQ (Objectifs)
A48: COÛT | B48: Maintenance (Objectifs)
A50: PRODUCTION | B50: Efficacité (Objectifs)
B51: NPMOP (Objectifs)
B52: APTP (Objectifs)

Sheet A REMPLIR - UTE 32
D1: 2011 | J1: 2012 | V1: 2013 | AH1: 2014 | AT1: 2015 | BF1: 2016 | BR1: 2017 | CD1: 2018 | CP1: 2019 | DB1: 2020 | DN1: 2021
D2: JUILLET | E2: AOÛT | F2: SEPTEMBRE | G2: OCTOBRE | H2: NOVEMBRE | I2: DÉCEMBRE | J2: JANVIER | K2: FEVRIER | L2: MARS | M2: AVRIL | N2: MAI | O2: JUIN | P2: JUILLET | Q2: AOÛT | R2: SEPTEMBRE | S2: OCTOBRE | T2: NOVEMBRE | U2: DÉCEMBRE | V2: JANVIER | W2: FÉVRIER | X2: MARS | Y2: AVRIL | Z2: MAI | AA2: JUIN | AB2: JUILLET | AC2: AOÛT | AD2: SEPTEMBRE | AE2: OCTOBRE | AF2: NOVEMBRE | AG2: DÉCEMBRE | AH2: JANVIER | AI2: FÉVRIER | AJ2: MARS | AK2: AVRIL | AL2: MAI | AM2: JUIN | AN2: JUILLET | AO2: AOÛT | AP2: SEPTEMBRE | AQ2: OCTOBRE | AR2: NOVEMBRE | AS2: DÉCEMBRE | AT2: JANVIER | AU2: FÉVRIER | AV2: MARS | AW2: AVRIL | AX2: MAI | AY2: JUIN | AZ2: JUILLET | BA2: AOÛT | BB2: SEPTEMBRE | BC2: OCTOBRE | BD2: NOVEMBRE | BE2: DÉCEMBRE | BF2: JANVIER | BG2: FÉVRIER | BH2: MARS | BI2: AVRIL | BJ2: MAI | BK2: JUIN | BL2: JUILLET | BM2: AOÛT | BN2: SEPTEMBRE | BO2: OCTOBRE | BP2: NOVEMBRE | BQ2: DÉCEMBRE | BR2: JANVIER | BS2: FÉVRIER | BT2: MARS | BU2: AVRIL | BV2: MAI | BW2: JUIN | BX2: JUILLET | BY2: AOÛT | BZ2: SEPTEMBRE | CA2: OCTOBRE | CB2: NOVEMBRE | CC2: DÉCEMBRE | CD2: JANVIER | CE2: FÉVRIER | CF2: MARS | CG2: AVRIL | CH2: MAI | CI2: JUIN | CJ2: JUILLET | CK2: AOÛT | CL2: SEPTEMBRE | CM2: OCTOBRE | CN2: NOVEMBRE | CO2: DÉCEMBRE | CP2: JANVIER | CQ2: FÉVRIER | CR2: MARS | CS2: AVRIL | CT2: MAI | CU2: JUIN | CV2: JUILLET | CW2: AOÛT | CX2: SEPTEMBRE | CY2: OCTOBRE | CZ2: NOVEMBRE | DA2: DÉCEMBRE | DB2: JANVIER | DC2: FÉVRIER | DD2: MARS | DE2: AVRIL | DF2: MAI | DG2: JUIN | DH2: JUILLET | DI2: AOÛT | DJ2: SEPTEMBRE | DK2: OCTOBRE | DL2: NOVEMBRE | DM2: DÉCEMBRE | DN2: JANVIER | DO2: FÉVRIER | DP2: MARS | DQ2: AVRIL | DR2: MAI | DS2: JUIN | DT2: JUILLET | DU2: AOÛT | DV2: SEPTEMBRE | DW2: OCTOBRE | DX2: NOVEMBRE | DY2: DÉCEMBRE
A4: SECURITE | B4: LWDC | D4: 0 | E4: 0 | F4: 0 | G4: 0 | H4: 0 | I4: 0 | J4: 0 | K4: 0 | L4: 0 | M4: 0 | N4: 0 | O4: 0 | P4: 0 | Q4: 0 | R4: 0 | S4: 0 | T4: 0 | U4: 0 | V4: 0 | W4: 0 | X4: 0 | Y4: 0 | Z4: 0 | AA4: 0 | AB4: 0 | AC4: 0 | AD4: 0 | AE4: 0 | AF4: 0 | AG4: 0 | AH4: 0 | AI4: 0 | AJ4: 0 | AK4: 0 | AL4: 0 | AM4: 0 | AN4: 0 | AO4: 0 | AP4: 0 | AQ4: 0 | AR4: 0 | AS4: 0 | AT4: 0 | AU4: 0 | AV4: 0 | AW4: 0 | AX4: 0 | AY4: 0 | AZ4: 0 | BA4: 0 | BB4: 0 | BC4: 0 | BD4: 0 | BE4: 0 | BF4: 0 | BG4: 0 | BH4: 0 | BI4: 0 | BJ4: 0 | BK4: 0
B5: FAI | D5: 1.42 | F5: 1.22 | G5: 1.09 | H5: 0.97 | I5: 0.91 | J5: 0 | K5: 0 | L5: 0 | M5: 0 | N5: 0 | O5: 0 | P5: 0 | Q5: 0 | R5: 11.7 | S5: 10.03 | T5: 6.32 | U5: 4.72 | V5: 0 | W5: 0 | X5: 0 | Y5: 0 | Z5: 0 | AA5: 0 | AB5: 0 | AC5: 0 | AD5: 0 | AE5: 0 | AF5: 0 | AG5: 0 | AH5: 0 | AI5: 0 | AJ5: 0 | AK5: 0 | AL5: 0 | AM5: 0 | AN5: 0 | AO5: 0 | AP5: 0.92 | AQ5: 0.8 | AR5: 0.76 | AS5: 0.71 | AT5: 0 | AU5: 0 | AV5: 0 | AW5: 0 | AX5: 0 | AY5: 0 | AZ5: 0 | BA5: 0 | BB5: 0 | BC5: 0 | BD5: 0 | BE5: 0 | BF5: 0 | BG5: 0 | BH5: 0 | BI5: 0 | BJ5: 0 | BK5: 0
A7: QUALITE | B7: CNH
B8: Moteurs expédiés | D8: 797 | E8: 184 | F8: 632 | G8: 666 | H8: 487 | I8: 777 | J8: 665 | K8: 667 | L8: 628 | M8: 752 | N8: 522 | O8: 907 | P8: 1062 | Q8: 119 | R8: 377 | S8: 646 | T8: 325 | U8: 563 | V8: 606 | W8: 684 | X8: 872 | Y8: 495 | Z8: 446 | AA8: 422 | AB8: 765 | AC8: 239 | AD8: 508 | AE8: 588 | AF8: 405 | AG8: 472 | AH8: 420 | AI8: 714 | AJ8: 451 | AK8: 422 | AL8: 247 | AM8: 347 | AN8: 632 | AO8: 103 | AP8: 301 | AQ8: 39 | AR8: 12 | AS8: 343 | AT8: 217 | AU8: 229 | AV8: 418 | AW8: 269 | AX8: 174 | AY8: 182 | AZ8: 318 | BA8: 39 | BB8: 168 | BC8: 276 | BD8: 98 | BE8: 208 | BF8: 177 | BG8: 284 | BH8: 309 | BI8: 310 | BJ8: 311 | BK8: 287
B9: Pulls ( date production ) | D9: 0 | E9: 0 | F9: 0 | G9: 0 | H9: 0 | I9: 0 | J9: 0 | K9: 0 | L9: 0 | M9: 0 | N9: 0 | O9: 0 | P9: 0 | Q9: 0 | R9: 0 | S9: 0 | T9: 0 | U9: 0 | V9: 0 | W9: 0 | X9: 0 | Y9: 0 | Z9: 0 | AA9: 0 | AB9: 0 | AC9: 0 | AD9: 0 | AE9: 0 | AF9: 0 | AG9: 0 | AH9: 0 | AI9: 0 | AJ9: 0 | AK9: 0 | AL9: 0 | AM9: 0 | AN9: 0 | AO9: 0 | AP9: 0 | AQ9: 0 | AR9: 0 | AS9: 0 | AT9: 0 | AU9: 0 | AV9: 0 | AW9: 0 | AX9: 0 | AY9: 0 | AZ9: 0 | BA9: 0 | BB9: 0 | BC9: 0 | BD9: 0 | BE9: 0 | BF9: 0 | BG9: 0 | BH9: 0 | BI9: 0 | BJ9: 0 | BK9: 0
B10: Assy ( date production ) | D10: 0 | E10: 0 | F10: 0 | G10: 0 | H10: 0 | I10: 0 | J10: 0 | K10: 0 | L10: 0 | M10: 0 | N10: 0 | O10: 2 | P10: 1 | Q10: 0 | R10: 0 | S10: 0 | T10: 0 | U10: 0 | V10: 0 | W10: 1 | X10: 0 | Y10: 0 | Z10: 0 | AA10: 0 | AB10: 0 | AC10: 0 | AD10: 0 | AE10: 0 | AF10: 0 | AG10: 0 | AH10: 0 | AI10: 0 | AJ10: 0 | AK10: 0 | AL10: 1 | AM10: 0 | AN10: 0 | AO10: 0 | AP10: 0 | AQ10: 0 | AR10: 0 | AS10: 0 | AT10: 0 | AU10: 0 | AV10: 0 | AW10: 0 | AX10: 0 | AY10: 0 | AZ10: 0 | BA10: 0 | BB10: 0 | BC10: 0 | BD10: 0 | BE10: 0 | BF10: 0 | BG10: 0 | BH10: 0 | BI10: 0 | BJ10: 0 | BK10: 0
B12: IRISBUS
B13: Moteurs expédiés | D13: 36 | E13: 1 | F13: 38 | G13: 45 | H13: 37 | I13: 18 | J13: 42 | K13: 54 | L13: 44 | M13: 43 | N13: 32 | O13: 47 | P13: 53 | Q13: 6 | R13: 31 | S13: 67 | T13: 41 | U13: 24 | V13: 35 | W13: 29 | X13: 49 | Y13: 53 | Z13: 31 | AA13: 46 | AB13: 30 | AC13: 7 | AD13: 39 | AE13: 75 | AF13: 72 | AG13: 20 | AH13: 13 | AI13: 6 | AJ13: 1 | AK13: 1 | AL13: 1 | AM13: 1 | AN13: 1 | AO13: 1 | AP13: 1 | AQ13: 1 | AR13: 1 | AS13: 1 | AT13: 5 | AU13: 5 | AV13: 20 | AW13: 1 | AX13: 1 | AY13: 1 | AZ13: 1 | BA13: 1 | BB13: 1 | BC13: 1 | BD13: 1 | BE13: 1 | BF13: 1 | BG13: 1 | BH13: 1 | BI13: 1 | BJ13: 1 | BK13: 1
B14: Pulls ( date production ) | D14: 0 | E14: 0 | F14: 0 | G14: 0 | H14: 0 | I14: 0 | J14: 0 | K14: 0 | L14: 0 | M14: 0 | N14: 0 | O14: 0 | P14: 0 | Q14: 0 | R14: 0 | S14: 0 | T14: 0 | U14: 0 | V14: 0 | W14: 0 | X14: 0 | Y14: 0 | Z14: 0 | AA14: 0 | AB14: 0 | AC14: 0 | AD14: 0 | AE14: 0 | AF14: 0 | AG14: 0 | AH14: 0 | AI14: 0 | AJ14: 0 | AK14: 0 | AL14: 0 | AM14: 0 | AN14: 0 | AO14: 0 | AP14: 0 | AQ14: 0 | AR14: 0 | AS14: 0 | AT14: 0 | AU14: 0 | AV14: 0 | AW14: 0 | AX14: 0 | AY14: 0 | AZ14: 0 | BA14: 0 | BB14: 0 | BC14: 0 | BD14: 0 | BE14: 0 | BF14: 0 | BG14: 0 | BH14: 0 | BI14: 0 | BJ14: 0 | BK14: 0
B15: Assy ( date production ) | D15: 0 | E15: 0 | F15: 0 | G15: 0 | H15: 0 | I15: 0 | J15: 0 | K15: 0 | L15: 0 | M15: 0 | N15: 0 | O15: 0 | P15: 0 | Q15: 0 | R15: 0 | S15: 0 | T15: 0 | U15: 0 | V15: 0 | W15: 0 | X15: 0 | Y15: 0 | Z15: 0 | AA15: 0 | AB15: 0 | AC15: 0 | AD15: 0 | AE15: 0 | AF15: 0 | AG15: 0 | AH15: 0 | AI15: 0 | AJ15: 0 | AK15: 0 | AL15: 0 | AM15: 0 | AN15: 0 | AO15: 0 | AP15: 0 | AQ15: 0 | AR15: 0 | AS15: 0 | AT15: 0 | AU15: 0 | AV15: 0 | AW15: 0 | AX15: 0 | AY15: 0 | AZ15: 0 | BA15: 0 | BB15: 0 | BC15: 0 | BD15: 0 | BE15: 0 | BF15: 0 | BG15: 0 | BH15: 0 | BI15: 0 | BJ15: 0 | BK15: 0
B17: IVECO
B18: M expédiés | D18: 1538 | E18: 285 | F18: 2169 | G18: 1885 | H18: 2214 | I18: 1040 | J18: 1645 | K18: 1195 | L18: 773 | M18: 1684 | N18: 1556 | O18: 1700 | P18: 1986 | Q18: 560 | R18: 1470 | S18: 1884 | T18: 2209 | U18: 1145 | V18: 1779 | W18: 1757 | X18: 1152 | Y18: 1643 | Z18: 1531 | AA18: 1941 | AB18: 1617 | AC18: 269 | AD18: 2133 | AE18: 2481 | AF18: 2301 | AG18: 1440 | AH18: 1482 | AI18: 1503 | AJ18: 2057 | AK18: 1221 | AL18: 2184 | AM18: 1821 | AN18: 2062 | AO18: 534 | AP18: 2213 | AQ18: 1753 | AR18: 1272 | AS18: 1080 | AT18: 1389 | AU18: 1965 | AV18: 1604 | AW18: 2144 | AX18: 2068 | AY18: 2624 | AZ18: 2768 | BA18: 624 | BB18: 2970 | BC18: 2846 | BD18: 2385 | BE18: 1746 | BF18: 1738 | BG18: 2369 | BH18: 1985 | BI18: 2306 | BJ18: 2129 | BK18: 2335
B19: Pulls ( date production ) | D19: 0 | E19: 0 | F19: 0 | G19: 0 | H19: 0 | I19: 0 | J19: 0 | K19: 0 | L19: 0 | M19: 0 | N19: 0 | O19: 0 | P19: 0 | Q19: 0 | R19: 0 | S19: 0 | T19: 0 | U19: 0 | V19: 0 | W19: 0 | X19: 0 | Y19: 0 | Z19: 0 | AA19: 0 | AB19: 0 | AC19: 0 | AD19: 0 | AE19: 0 | AF19: 0 | AG19: 0 | AH19: 0 | AI19: 0 | AJ19: 0 | AK19: 0 | AL19: 0 | AM19: 0 | AN19: 0 | AO19: 0 | AP19: 0 | AQ19: 0 | AR19: 0 | AS19: 0 | AT19: 0 | AU19: 0 | AV19: 0 | AW19: 0 | AX19: 0 | AY19: 0 | AZ19: 0 | BA19: 0 | BB19: 0 | BC19: 0 | BD19: 0 | BE19: 0 | BF19: 0 | BG19: 0 | BH19: 0 | BI19: 0 | BJ19: 0 | BK19: 0
B20: Assy ( date production ) | D20: 0 | E20: 0 | F20: 0 | G20: 0 | H20: 0 | I20: 0 | J20: 0 | K20: 0 | L20: 0 | M20: 0 | N20: 0 | O20: 0 | P20: 0 | Q20: 0 | R20: 0 | S20: 0 | T20: 0 | U20: 0 | V20: 0 | W20: 0 | X20: 0 | Y20: 0 | Z20: 0 | AA20: 0 | AB20: 0 | AC20: 0 | AD20: 0 | AE20: 0 | AF20: 0 | AG20: 0 | AH20: 0 | AI20: 0 | AJ20: 0 | AK20: 0 | AL20: 0 | AM20: 1 | AN20: 0 | AO20: 0 | AP20: 0 | AQ20: 0 | AR20: 0 | AS20: 0 | AT20: 0 | AU20: 0 | AV20: 0 | AW20: 0 | AX20: 1 | AY20: 0 | AZ20: 0 | BA20: 0 | BB20: 0 | BC20: 0 | BD20: 0 | BE20: 0 | BF20: 0 | BG20: 0 | BH20: 0 | BI20: 0 | BJ20: 0 | BK20: 0
B22: FTQ
B23: M passés | D23: 2801 | E23: 597 | F23: 3224 | G23: 3532 | H23: 3484 | I23: 2381 | J23: 2941 | K23: 2438 | L23: 2097 | M23: 3053 | N23: 2973 | O23: 3921 | P23: 3606 | Q23: 270 | R23: 2056 | S23: 3212 | T23: 3484 | U23: 2697 | V23: 2977 | W23: 3003 | X23: 2966 | Y23: 2863 | Z23: 2064 | AA23: 3235 | AB23: 3250 | AC23: 527 | AD23: 3401 | AE23: 4315 | AF23: 3923 | AG23: 2376 | AH23: 2639 | AI23: 3538 | AJ23: 2884 | AK23: 2590 | AL23: 2729 | AM23: 3770 | AN23: 3179 | AO23: 495 | AP23: 3218 | AQ23: 2845 | AR23: 1295 | AS23: 1804 | AT23: 2748 | AU23: 3224 | AV23: 3689 | AW23: 3324 | AX23: 3025 | AY23: 4116 | AZ23: 3367 | BA23: 765 | BB23: 3941 | BC23: 4935 | BD23: 3435 | BE23: 2867 | BF23: 2549 | BG23: 3635 | BH23: 3165 | BI23: 3630 | BJ23: 3662 | BK23: 3801
B24: Qté défauts | F24: 10 | G24: 11 | H24: 10 | I24: 5 | J24: 8 | K24: 8 | L24: 2 | M24: 7 | N24: 5 | O24: 10 | P24: 3 | Q24: 0 | R24: 2 | S24: 7 | T24: 8 | U24: 9 | V24: 6 | W24: 2 | X24: 3 | Y24: 4 | Z24: 0 | AA24: 4 | AB24: 3 | AC24: 1 | AD24: 1 | AE24: 4 | AF24: 4 | AG24: 5 | AH24: 6 | AI24: 4 | AJ24: 4 | AK24: 4 | AL24: 4 | AM24: 6 | AN24: 2 | AO24: 2 | AP24: 4 | AQ24: 4 | AR24: 2 | AS24: 3 | AT24: 5 | AU24: 5 | AV24: 6 | AW24: 6 | AX24: 4 | AY24: 3 | AZ24: 3 | BA24: 1 | BB24: 4 | BC24: 7 | BD24: 4 | BE24: 3 | BF24: 5 | BG24: 5 | BH24: 5 | BI24: 6 | BJ24: 6 | BK24: 6
A26: COÛT | B26: Maintenance | D26: 0 | E26: 0 | F26: 0 | G26: 0 | H26: 0 | I26: 0 | J26: 0 | K26: 0 | L26: 0 | M26: 0 | N26: 0 | O26: 0 | P26: 0 | Q26: 2.94 | R26: 22.54 | S26: 21.31 | T26: 31.87 | U26: 32.48 | V26: 29.02 | W26: 34.16 | X26: 31.67 | Y26: 25.17 | Z26: 30.5 | AA26: 28.56 | AB26: 38.65 | AC26: 9 | AD26: 28 | AE26: 38.54 | AF26: 41.57 | AG26: 35.4 | AH26: 73 | AI26: 125 | AJ26: 122.5 | AK26: 116.5 | AL26: 203 | AM26: 257 | AN26: 175 | AO26: 37.5 | AP26: 230.5 | AQ26: 227.23 | AR26: 59.22 | AS26: 133.94 | AT26: 131.68 | AU26: 133.16 | AV26: 227.95 | AW26: 127.5 | AX26: 107.64 | AY26: 108.97 | AZ26: 134.31 | BA26: 2.38 | BB26: 109.62 | BC26: 135.21 | BD26: 169.62 | BE26: 108.97 | BF26: 103.55 | BG26: 347.74 | BH26: 101.5 | BI26: 638.45 | BJ26: 398.48 | BK26: 444.52
A28: PRODUCTION | B28: Efficacité
B29: NPMOP
B30: APTP
D33: 2011 | E33: 2012 | F33: 2013 | G33: 2014 | H33: 2015 | I33: 2016 | J33: 2017 | K33: 2018 | L33: 2019 | M33: 2020 | N33: 2021
A35: SECURITE | B35: LWDC (Objectifs)
B36: FAI (Objectifs)
A38: QUALITE | B38: Pulls A(Objectifs)
B39: Pulls B (Objectifs)
B40: Pulls C (Objectifs)
B42: Assy A (Objectifs)
B43: Assy B (Objectifs)
B44: Assy C (Objectifs)
B46: FTQ (Objectifs)
A48: COÛT | B48: Maintenance (Objectifs)
A50: PRODUCTION | B50: Efficacité (Objectifs)
B51: NPMOP (Objectifs)
B52: APTP (Objectifs)

Sheet A REMPLIR - UTE 33
D1: 2011 | J1: 2012 | V1: 2013 | AH1: 2014 | AT1: 2015 | BF1: 2016 | BR1: 2017 | CD1: 2018 | CP1: 2019 | DB1: 2020 | DN1: 2021
D2: JUILLET | E2: AOÛT | F2: SEPTEMBRE | G2: OCTOBRE | H2: NOVEMBRE | I2: DÉCEMBRE | J2: JANVIER | K2: FEVRIER | L2: MARS | M2: AVRIL | N2: MAI | O2: JUIN | P2: JUILLET | Q2: AOÛT | R2: SEPTEMBRE | S2: OCTOBRE | T2: NOVEMBRE | U2: DÉCEMBRE | V2: JANVIER | W2: FÉVRIER | X2: MARS | Y2: AVRIL | Z2: MAI | AA2: JUIN | AB2: JUILLET | AC2: AOÛT | AD2: SEPTEMBRE | AE2: OCTOBRE | AF2: NOVEMBRE | AG2: DÉCEMBRE | AH2: JANVIER | AI2: FÉVRIER | AJ2: MARS | AK2: AVRIL | AL2: MAI | AM2: JUIN | AN2: JUILLET | AO2: AOÛT | AP2: SEPTEMBRE | AQ2: OCTOBRE | AR2: NOVEMBRE | AS2: DÉCEMBRE | AT2: JANVIER | AU2: FÉVRIER | AV2: MARS | AW2: AVRIL | AX2: MAI | AY2: JUIN | AZ2: JUILLET | BA2: AOÛT | BB2: SEPTEMBRE | BC2: OCTOBRE | BD2: NOVEMBRE | BE2: DÉCEMBRE | BF2: JANVIER | BG2: FÉVRIER | BH2: MARS | BI2: AVRIL | BJ2: MAI | BK2: JUIN | BL2: JUILLET | BM2: AOÛT | BN2: SEPTEMBRE | BO2: OCTOBRE | BP2: NOVEMBRE | BQ2: DÉCEMBRE | BR2: JANVIER | BS2: FÉVRIER | BT2: MARS | BU2: AVRIL | BV2: MAI | BW2: JUIN | BX2: JUILLET | BY2: AOÛT | BZ2: SEPTEMBRE | CA2: OCTOBRE | CB2: NOVEMBRE | CC2: DÉCEMBRE | CD2: JANVIER | CE2: FÉVRIER | CF2: MARS | CG2: AVRIL | CH2: MAI | CI2: JUIN | CJ2: JUILLET | CK2: AOÛT | CL2: SEPTEMBRE | CM2: OCTOBRE | CN2: NOVEMBRE | CO2: DÉCEMBRE | CP2: JANVIER | CQ2: FÉVRIER | CR2: MARS | CS2: AVRIL | CT2: MAI | CU2: JUIN | CV2: JUILLET | CW2: AOÛT | CX2: SEPTEMBRE | CY2: OCTOBRE | CZ2: NOVEMBRE | DA2: DÉCEMBRE | DB2: JANVIER | DC2: FÉVRIER | DD2: MARS | DE2: AVRIL | DF2: MAI | DG2: JUIN | DH2: JUILLET | DI2: AOÛT | DJ2: SEPTEMBRE | DK2: OCTOBRE | DL2: NOVEMBRE | DM2: DÉCEMBRE | DN2: JANVIER | DO2: FÉVRIER | DP2: MARS | DQ2: AVRIL | DR2: MAI | DS2: JUIN | DT2: JUILLET | DU2: AOÛT | DV2: SEPTEMBRE | DW2: OCTOBRE | DX2: NOVEMBRE | DY2: DÉCEMBRE
A4: SECURITE | B4: LWDC | D4: 0 | E4: 0 | F4: 0 | G4: 0 | H4: 0 | I4: 0 | J4: 0 | K4: 0 | L4: 0 | M4: 0 | N4: 0 | O4: 0 | P4: 0 | Q4: 0 | R4: 0 | S4: 0 | T4: 2.28 | U4: 1.77 | V4: 0 | W4: 0 | X4: 0 | Y4: 0 | Z4: 0 | AA4: 0 | AB4: 0 | AC4: 0 | AD4: 0 | AE4: 0 | AF4: 0 | AG4: 0 | AH4: 0 | AI4: 0 | AJ4: 0 | AK4: 0 | AL4: 0 | AM4: 0 | AN4: 0 | AO4: 0 | AP4: 0 | AQ4: 0 | AR4: 0 | AS4: 0 | AT4: 0 | AU4: 0 | AV4: 0 | AW4: 0 | AX4: 0 | AY4: 0 | AZ4: 0 | BA4: 0 | BB4: 0 | BC4: 0 | BD4: 0 | BE4: 0 | BF4: 0 | BG4: 0 | BH4: 0 | BI4: 0 | BJ4: 0 | BK4: 0
B5: FAI | D5: 0 | E5: 0 | F5: 0 | G5: 0 | H5: 0 | I5: 0 | J5: 0 | K5: 0 | L5: 0 | M5: 0 | N5: 0 | O5: 0 | P5: 0 | Q5: 0 | R5: 0 | S5: 0 | T5: 0 | U5: 0 | V5: 0 | W5: 0 | X5: 0 | Y5: 0 | Z5: 0 | AA5: 0 | AB5: 0 | AC5: 0 | AD5: 0 | AE5: 0 | AF5: 0 | AG5: 0 | AH5: 0 | AI5: 0 | AJ5: 0 | AK5: 0 | AL5: 0 | AM5: 0 | AN5: 0 | AO5: 0 | AP5: 0 | AQ5: 0 | AR5: 0 | AS5: 0.57 | AT5: 0 | AU5: 0 | AV5: 0 | AW5: 0 | AX5: 0 | AY5: 0 | AZ5: 0 | BA5: 0 | BB5: 0 | BC5: 0 | BD5: 0 | BE5: 0 | BF5: 0 | BG5: 0 | BH5: 0 | BI5: 0 | BJ5: 1.15 | BK5: 0.93
A7: QUALITE | B7: CNH
B8: M expédiés | D8: 797 | E8: 184 | F8: 632 | G8: 666 | H8: 487 | I8: 777 | J8: 665 | K8: 677 | L8: 628 | M8: 752 | N8: 522 | O8: 907 | P8: 1062 | Q8: 119 | R8: 377 | S8: 646 | T8: 325 | U8: 563 | V8: 606 | W8: 684 | X8: 872 | Y8: 495 | Z8: 446 | AA8: 422 | AB8: 765 | AC8: 239 | AD8: 508 | AE8: 588 | AF8: 405 | AG8: 472 | AH8: 1482 | AI8: 1503 | AJ8: 451 | AK8: 422 | AL8: 247 | AM8: 347 | AN8: 632 | AO8: 103 | AP8: 301 | AQ8: 39 | AR8: 12 | AS8: 343 | AT8: 217 | AU8: 229 | AV8: 418 | AW8: 269 | AX8: 174 | AY8: 182 | AZ8: 318 | BA8: 39 | BB8: 168 | BC8: 168 | BD8: 98 | BE8: 208 | BF8: 177 | BG8: 284 | BH8: 309 | BI8: 310 | BJ8: 311 | BK8: 287
B9: Pulls ( date production ) | D9: 0 | E9: 0 | F9: 0 | G9: 0 | H9: 0 | I9: 0 | J9: 0 | K9: 0 | L9: 0 | M9: 0 | N9: 0 | O9: 0 | P9: 0 | Q9: 0 | R9: 0 | S9: 0 | T9: 0 | U9: 0 | V9: 0 | W9: 0 | X9: 0 | Y9: 0 | Z9: 0 | AA9: 0 | AB9: 0 | AC9: 0 | AD9: 0 | AE9: 0 | AF9: 0 | AG9: 0 | AH9: 0 | AI9: 0 | AJ9: 0 | AK9: 0 | AL9: 0 | AM9: 0 | AN9: 0 | AO9: 0 | AP9: 0 | AQ9: 0 | AR9: 0 | AS9: 0 | AT9: 0 | AU9: 0 | AV9: 0 | AW9: 0 | AX9: 0 | AY9: 0 | AZ9: 0 | BA9: 0 | BB9: 0 | BC9: 0 | BD9: 0 | BE9: 0 | BF9: 0 | BG9: 0 | BH9: 0 | BI9: 0 | BJ9: 0 | BK9: 0
B10: Assy ( date production ) | D10: 0 | E10: 0 | F10: 0 | G10: 1 | H10: 1 | I10: 1 | J10: 0 | K10: 0 | L10: 0 | M10: 0 | N10: 0 | O10: 0 | P10: 0 | Q10: 0 | R10: 0 | S10: 0 | T10: 0 | U10: 0 | V10: 0 | W10: 1 | X10: 0 | Y10: 0 | Z10: 0 | AA10: 1 | AB10: 0 | AC10: 0 | AD10: 0 | AE10: 1 | AF10: 0 | AG10: 0 | AH10: 0 | AI10: 0 | AJ10: 0 | AK10: 0 | AL10: 0 | AM10: 0 | AN10: 0 | AO10: 0 | AP10: 0 | AQ10: 0 | AR10: 0 | AS10: 1 | AT10: 0 | AU10: 0 | AV10: 0 | AW10: 1 | AX10: 0 | AY10: 0 | AZ10: 0 | BA10: 0 | BB10: 0 | BC10: 0 | BD10: 0 | BE10: 0 | BF10: 0 | BG10: 0 | BH10: 0 | BI10: 0 | BJ10: 0 | BK10: 0
B12: IRISBUS
B13: Mexpédiés | D13: 36 | E13: 1 | F13: 38 | G13: 45 | H13: 37 | I13: 18 | J13: 42 | K13: 54 | L13: 44 | M13: 43 | N13: 32 | O13: 47 | P13: 53 | Q13: 6 | R13: 31 | S13: 67 | T13: 41 | U13: 24 | V13: 35 | W13: 29 | X13: 49 | Y13: 53 | Z13: 31 | AA13: 46 | AB13: 30 | AC13: 7 | AD13: 39 | AE13: 75 | AF13: 72 | AG13: 20 | AH13: 13 | AI13: 6 | AJ13: 1 | AK13: 1 | AL13: 1 | AM13: 1 | AN13: 1 | AO13: 1 | AP13: 1 | AQ13: 1 | AR13: 1 | AS13: 1 | AT13: 5 | AU13: 78 | AV13: 20 | AW13: 1 | AX13: 1 | AY13: 1 | AZ13: 1 | BA13: 1 | BB13: 1 | BC13: 1 | BD13: 1 | BE13: 1 | BF13: 1 | BG13: 1 | BH13: 1 | BI13: 1 | BJ13: 1 | BK13: 1
B14: Pulls ( date production ) | D14: 0 | E14: 0 | F14: 0 | G14: 0 | H14: 0 | I14: 0 | J14: 0 | K14: 0 | L14: 0 | M14: 0 | N14: 0 | O14: 0 | P14: 0 | Q14: 0 | R14: 0 | S14: 0 | T14: 0 | U14: 0 | V14: 0 | W14: 0 | X14: 0 | Y14: 0 | Z14: 0 | AA14: 0 | AB14: 0 | AC14: 0 | AD14: 0 | AE14: 0 | AF14: 0 | AG14: 0 | AH14: 0 | AI14: 0 | AJ14: 0 | AK14: 0 | AL14: 0 | AM14: 0 | AN14: 0 | AO14: 0 | AP14: 0 | AQ14: 0 | AR14: 0 | AS14: 0 | AT14: 0 | AU14: 0 | AV14: 0 | AW14: 0 | AX14: 0 | AY14: 0 | AZ14: 0 | BA14: 0 | BB14: 0 | BC14: 0 | BD14: 0 | BE14: 0 | BF14: 0 | BG14: 0 | BH14: 0 | BI14: 0 | BJ14: 0 | BK14: 0
B15: Assy ( date production ) | D15: 0 | E15: 0 | F15: 1 | G15: 0 | H15: 0 | I15: 0 | J15: 0 | K15: 0 | L15: 0 | M15: 0 | N15: 0 | O15: 0 | P15: 0 | Q15: 1 | R15: 0 | S15: 0 | T15: 0 | U15: 0 | V15: 0 | W15: 0 | X15: 0 | Y15: 0 | Z15: 0 | AA15: 0 | AB15: 0 | AC15: 0 | AD15: 0 | AE15: 0 | AF15: 0 | AG15: 0 | AH15: 0 | AI15: 0 | AJ15: 0 | AK15: 0 | AL15: 0 | AM15: 0 | AN15: 0 | AO15: 0 | AP15: 0 | AQ15: 0 | AR15: 0 | AS15: 0 | AT15: 0 | AU15: 0 | AV15: 0 | AW15: 0 | AX15: 0 | AY15: 0 | AZ15: 0 | BA15: 0 | BB15: 0 | BC15: 0 | BD15: 0 | BE15: 0 | BF15: 0 | BG15: 0 | BH15: 0 | BI15: 0 | BJ15: 0 | BK15: 0
B17: IVECO
B18: M expédiés | D18: 1538 | E18: 285 | F18: 2169 | G18: 1885 | H18: 2214 | I18: 1040 | J18: 1645 | K18: 1195 | L18: 773 | M18: 1684 | N18: 1556 | O18: 1700 | P18: 1986 | Q18: 560 | R18: 1470 | S18: 1884 | T18: 2209 | U18: 1145 | V18: 1779 | W18: 1757 | X18: 1152 | Y18: 1643 | Z18: 1531 | AA18: 1941 | AB18: 1617 | AC18: 269 | AD18: 2133 | AE18: 2481 | AF18: 2301 | AG18: 1440 | AH18: 420 | AI18: 714 | AJ18: 2057 | AK18: 1221 | AL18: 2184 | AM18: 1821 | AN18: 2062 | AO18: 534 | AP18: 2213 | AQ18: 1753 | AR18: 1272 | AS18: 1080 | AT18: 1389 | AU18: 1965 | AV18: 1604 | AW18: 2144 | AX18: 2068 | AY18: 2624 | AZ18: 2768 | BA18: 624 | BB18: 2970 | BC18: 2846 | BD18: 2385 | BE18: 1746 | BF18: 1738 | BG18: 2369 | BH18: 1985 | BI18: 2306 | BJ18: 2129 | BK18: 2335
B19: Pulls ( date production ) | D19: 0 | E19: 0 | F19: 0 | G19: 0 | H19: 0 | I19: 0 | J19: 0 | K19: 0 | L19: 0 | M19: 0 | N19: 0 | O19: 0 | P19: 0 | Q19: 0 | R19: 1 | S19: 0 | T19: 0 | U19: 0 | V19: 0 | W19: 0 | X19: 0 | Y19: 0 | Z19: 0 | AA19: 0 | AB19: 0 | AC19: 0 | AD19: 0 | AE19: 0 | AF19: 0 | AG19: 0 | AH19: 0 | AI19: 0 | AJ19: 0 | AK19: 0 | AL19: 0 | AM19: 0 | AN19: 0 | AO19: 0 | AP19: 0 | AQ19: 0 | AR19: 0 | AS19: 0 | AT19: 0 | AU19: 0 | AV19: 0 | AW19: 0 | AX19: 0 | AY19: 0 | AZ19: 0 | BA19: 0 | BB19: 0 | BC19: 0 | BD19: 0 | BE19: 0 | BF19: 0 | BG19: 0 | BH19: 0 | BI19: 0 | BJ19: 0 | BK19: 0
B20: Assy ( date production ) | D20: 1 | E20: 0 | F20: 0 | G20: 0 | H20: 1 | I20: 0 | J20: 0 | K20: 0 | L20: 0 | M20: 0 | N20: 0 | O20: 0 | P20: 0 | Q20: 0 | R20: 0 | S20: 1 | T20: 0 | U20: 0 | V20: 0 | W20: 0 | X20: 0 | Y20: 0 | Z20: 0 | AA20: 0 | AB20: 0 | AC20: 1 | AD20: 0 | AE20: 0 | AF20: 0 | AG20: 0 | AH20: 0 | AI20: 1 | AJ20: 1 | AK20: 0 | AL20: 1 | AM20: 0 | AN20: 0 | AO20: 0 | AP20: 0 | AQ20: 0 | AR20: 0 | AS20: 0 | AT20: 0 | AU20: 0 | AV20: 1 | AW20: 0 | AX20: 0 | AY20: 0 | AZ20: 1 | BA20: 0 | BB20: 0 | BC20: 1 | BD20: 0 | BE20: 0 | BF20: 0 | BG20: 0 | BH20: 0 | BI20: 0 | BJ20: 0 | BK20: 0
B22: FTQ
B23: M passés | D23: 2801 | E23: 597 | F23: 3224 | G23: 3532 | H23: 3484 | I23: 2381 | J23: 2941 | K23: 2438 | L23: 2097 | M23: 3053 | N23: 2973 | O23: 3921 | P23: 3606 | Q23: 270 | R23: 2056 | S23: 3212 | T23: 3484 | U23: 2697 | V23: 2977 | W23: 3003 | X23: 2966 | Y23: 2863 | Z23: 2064 | AA23: 3235 | AB23: 3250 | AC23: 527 | AD23: 3401 | AE23: 4315 | AF23: 3923 | AG23: 2376 | AH23: 2639 | AI23: 3538 | AJ23: 2884 | AK23: 2590 | AL23: 2729 | AM23: 3770 | AN23: 3179 | AO23: 495 | AP23: 3218 | AQ23: 2845 | AR23: 1295 | AS23: 1804 | AT23: 2748 | AU23: 3224 | AV23: 3689 | AW23: 3324 | AX23: 3025 | AY23: 4116 | AZ23: 3367 | BA23: 765 | BB23: 3941 | BC23: 4487 | BD23: 3085 | BE23: 2561 | BF23: 2549 | BG23: 3635 | BH23: 3165 | BI23: 3630 | BJ23: 3662 | BK23: 3801
B24: Qté défauts | D24: 0 | E24: 0 | F24: 8 | G24: 12 | H24: 11 | I24: 12 | J24: 13 | K24: 9 | L24: 17 | M24: 11 | N24: 15 | O24: 10 | P24: 14 | Q24: 0 | R24: 10 | S24: 14 | T24: 14 | U24: 15 | V24: 3 | W24: 8 | X24: 6 | Y24: 8 | Z24: 12 | AA24: 8 | AB24: 11 | AC24: 1 | AD24: 11 | AE24: 12 | AF24: 13 | AG24: 8 | AH24: 9 | AI24: 16 | AJ24: 16 | AK24: 13 | AL24: 13 | AM24: 19 | AN24: 16 | AO24: 2 | AP24: 16 | AQ24: 14 | AR24: 7 | AS24: 9 | AT24: 10 | AU24: 11 | AV24: 14 | AW24: 11 | AX24: 11 | AY24: 17 | AZ24: 11 | BA24: 3 | BB24: 16 | BC24: 16 | BD24: 11 | BE24: 9 | BF24: 9 | BG24: 13 | BH24: 13 | BI24: 13 | BJ24: 14 | BK24: 14
A26: COÛT | B26: Maintenance | D26: 96.72 | F26: 97.11 | G26: 97.21 | H26: 97.58 | I26: 97.85 | J26: 44.87 | K26: 6.09 | L26: 30.08 | M26: 41.7 | N26: 1.09 | O26: 46.46 | P26: 25.06 | Q26: 5.3 | R26: 0 | S26: 45.54 | T26: 0 | U26: 0 | V26: 42.6 | W26: 47.67 | X26: 47.95 | Y26: 0 | Z26: 44 | AA26: 0 | AB26: 53.6 | AC26: 18.75 | AD26: 12 | AE26: 54.9 | AF26: 55.99 | AG26: 1 | AH26: 0 | AI26: 1 | AJ26: 4.5 | AK26: 0 | AL26: 0 | AM26: 50 | AN26: 0 | AO26: 4 | AP26: 6 | AQ26: 56.81 | AR26: 20.58 | AS26: 81.02 | AT26: 79.82 | AU26: 103 | AV26: 256 | AW26: 140.26 | AX26: 170.11 | AY26: 562.85 | AZ26: 116.95 | BA26: 36.08 | BB26: 144 | BC26: 351.42 | BD26: 66.32 | BE26: 98.97 | BF26: 103.55 | BG26: 348.5 | BH26: 462.4 | BI26: 511.64 | BJ26: 391.76 | BK26: 325.12
A28: PRODUCTION | B28: Efficacité
B29: NPMOP
B30: APTP
D33: 2011 | E33: 2012 | F33: 2013 | G33: 2014 | H33: 2015 | I33: 2016 | J33: 2017 | K33: 2018 | L33: 2019 | M33: 2020 | N33: 2021
A35: SECURITE | B35: LWDC (Objectifs)
B36: FAI (Objectifs)
A38: QUALITE | B38: Pulls A (Objectifs)
B39: Pulls B (Objectifs)
B40: Pulls C (Objectifs)
B42: Assy A (Objectifs)
B43: Assy B (Objectifs)
B44: Assy C (Objectifs)
B46: FTQ (Objectifs)
A48: COÛT | B48: Maintenance (Objectifs)
A50: PRODUCTION | B50: Efficacité (Objectifs)
B51: NPMOP (Objectifs)
B52: APTP (Objectifs)

Sheet A REMPLIR - UTE 34
D1: 2011 | J1: 2012 | V1: 2013 | AH1: 2014 | AT1: 2015 | BF1: 2016 | BR1: 2017 | CD1: 2018 | CP1: 2019 | DB1: 2020 | DN1: 2021
D2: JUILLET | E2: AOÛT | F2: SEPTEMBRE | G2: OCTOBRE | H2: NOVEMBRE | I2: DÉCEMBRE | J2: JANVIER | K2: FEVRIER | L2: MARS | M2: AVRIL | N2: MAI | O2: JUIN | P2: JUILLET | Q2: AOÛT | R2: SEPTEMBRE | S2: OCTOBRE | T2: NOVEMBRE | U2: DÉCEMBRE | V2: JANVIER | W2: FÉVRIER | X2: MARS | Y2: AVRIL | Z2: MAI | AA2: JUIN | AB2: JUILLET | AC2: AOÛT | AD2: SEPTEMBRE | AE2: OCTOBRE | AF2: NOVEMBRE | AG2: DÉCEMBRE | AH2: JANVIER | AI2: FÉVRIER | AJ2: MARS | AK2: AVRIL | AL2: MAI | AM2: JUIN | AN2: JUILLET | AO2: AOÛT | AP2: SEPTEMBRE | AQ2: OCTOBRE | AR2: NOVEMBRE | AS2: DÉCEMBRE | AT2: JANVIER | AU2: FÉVRIER | AV2: MARS | AW2: AVRIL | AX2: MAI | AY2: JUIN | AZ2: JUILLET | BA2: AOÛT | BB2: SEPTEMBRE | BC2: OCTOBRE | BD2: NOVEMBRE | BE2: DÉCEMBRE | BF2: JANVIER | BG2: FÉVRIER | BH2: MARS | BI2: AVRIL | BJ2: MAI | BK2: JUIN | BL2: JUILLET | BM2: AOÛT | BN2: SEPTEMBRE | BO2: OCTOBRE | BP2: NOVEMBRE | BQ2: DÉCEMBRE | BR2: JANVIER | BS2: FÉVRIER | BT2: MARS | BU2: AVRIL | BV2: MAI | BW2: JUIN | BX2: JUILLET | BY2: AOÛT | BZ2: SEPTEMBRE | CA2: OCTOBRE | CB2: NOVEMBRE | CC2: DÉCEMBRE | CD2: JANVIER | CE2: FÉVRIER | CF2: MARS | CG2: AVRIL | CH2: MAI | CI2: JUIN | CJ2: JUILLET | CK2: AOÛT | CL2: SEPTEMBRE | CM2: OCTOBRE | CN2: NOVEMBRE | CO2: DÉCEMBRE | CP2: JANVIER | CQ2: FÉVRIER | CR2: MARS | CS2: AVRIL | CT2: MAI | CU2: JUIN | CV2: JUILLET | CW2: AOÛT | CX2: SEPTEMBRE | CY2: OCTOBRE | CZ2: NOVEMBRE | DA2: DÉCEMBRE | DB2: JANVIER | DC2: FÉVRIER | DD2: MARS | DE2: AVRIL | DF2: MAI | DG2: JUIN | DH2: JUILLET | DI2: AOÛT | DJ2: SEPTEMBRE | DK2: OCTOBRE | DL2: NOVEMBRE | DM2: DÉCEMBRE | DN2: JANVIER | DO2: FÉVRIER | DP2: MARS | DQ2: AVRIL | DR2: MAI | DS2: JUIN | DT2: JUILLET | DU2: AOÛT | DV2: SEPTEMBRE | DW2: OCTOBRE | DX2: NOVEMBRE | DY2: DÉCEMBRE
A4: SECURITE | B4: LWDC | J4: 0 | K4: 0 | L4: 0 | M4: 0 | N4: 0 | O4: 0 | P4: 0 | Q4: 0 | R4: 0 | S4: 0 | T4: 0 | U4: 0 | V4: 0 | W4: 0 | X4: 0 | Y4: 0 | Z4: 0 | AA4: 0 | AB4: 0 | AC4: 0 | AD4: 0 | AE4: 0 | AF4: 0 | AG4: 0 | AH4: 0 | AI4: 0 | AJ4: 0 | AK4: 0 | AL4: 0 | AM4: 0 | AN4: 0 | AO4: 0 | AP4: 0 | AQ4: 0 | AR4: 0 | AS4: 0 | AT4: 0 | AU4: 0 | AV4: 0 | AW4: 0 | AX4: 0 | AY4: 0 | AZ4: 0 | BA4: 0 | BB4: 0 | BC4: 0 | BD4: 0 | BE4: 0 | BF4: 0 | BG4: 0 | BH4: 0 | BI4: 0 | BJ4: 0 | BK4: 0
B5: FAI | J5: 0 | K5: 0 | L5: 0 | M5: 0 | N5: 0 | O5: 0 | P5: 0 | Q5: 0 | R5: 0 | S5: 0 | T5: 0 | U5: 0 | V5: 0 | W5: 0 | X5: 0 | Y5: 0 | Z5: 0 | AA5: 0 | AB5: 0 | AC5: 0 | AD5: 0 | AE5: 0 | AF5: 0 | AG5: 0 | AH5: 0 | AI5: 0 | AJ5: 0 | AK5: 0 | AL5: 0 | AM5: 0 | AN5: 0 | AO5: 0 | AP5: 0 | AQ5: 0 | AR5: 0 | AS5: 0 | AT5: 0 | AU5: 0 | AV5: 0 | AW5: 0 | AX5: 0 | AY5: 0 | AZ5: 0 | BA5: 0 | BB5: 0 | BC5: 0 | BD5: 0 | BE5: 0 | BF5: 0 | BG5: 0 | BH5: 0 | BI5: 0 | BJ5: 0 | BK5: 0
A7: QUALITE | B7: CNH
B8: M expédiés | D8: 797 | E8: 184 | F8: 632 | G8: 666 | H8: 487 | I8: 777 | J8: 665 | K8: 677 | L8: 628 | M8: 752 | N8: 522 | O8: 907 | P8: 1062 | Q8: 119 | R8: 377 | S8: 646 | T8: 325 | U8: 563 | V8: 606 | W8: 684 | X8: 993 | Y8: 686 | Z8: 512 | AA8: 571 | AB8: 1021 | AC8: 300 | AD8: 740 | AE8: 774 | AF8: 513 | AG8: 579 | AH8: 497 | AI8: 922 | AJ8: 713 | AK8: 575 | AL8: 380 | AM8: 402 | AN8: 854 | AO8: 145 | AP8: 455 | AQ8: 109 | AR8: 25 | AS8: 552 | AT8: 432 | AU8: 392 | AV8: 593 | AW8: 454 | AX8: 303 | AY8: 240 | AZ8: 453 | BA8: 55 | BB8: 180 | BC8: 303 | BD8: 104 | BE8: 213 | BF8: 188 | BG8: 308 | BH8: 510 | BI8: 487 | BJ8: 475 | BK8: 491
B9: Pulls ( date production ) | D9: 0 | E9: 0 | F9: 0 | G9: 0 | H9: 0 | I9: 0 | J9: 0 | K9: 0 | L9: 0 | M9: 0 | N9: 0 | O9: 0 | P9: 0 | Q9: 0 | R9: 0 | S9: 0 | T9: 0 | U9: 0 | V9: 0 | W9: 0 | X9: 0 | Y9: 0 | Z9: 0 | AA9: 0 | AB9: 0 | AC9: 0 | AD9: 0 | AE9: 0 | AF9: 0 | AG9: 0 | AH9: 0 | AI9: 0 | AJ9: 0 | AK9: 0 | AL9: 0 | AM9: 0 | AN9: 0 | AO9: 0 | AP9: 0 | AQ9: 0 | AR9: 0 | AS9: 0 | AT9: 0 | AU9: 0 | AV9: 0 | AW9: 0 | AX9: 0 | AY9: 0 | AZ9: 0 | BA9: 0 | BB9: 0 | BC9: 0 | BD9: 0 | BE9: 0 | BF9: 0 | BG9: 0 | BH9: 0 | BI9: 0 | BJ9: 0 | BK9: 0
B10: Assy ( date production ) | D10: 0 | E10: 0 | F10: 0 | G10: 0 | H10: 0 | I10: 0 | J10: 1 | K10: 0 | L10: 0 | M10: 0 | N10: 0 | O10: 0 | P10: 0 | Q10: 0 | R10: 0 | S10: 0 | T10: 0 | U10: 0 | V10: 0 | W10: 0 | X10: 0 | Y10: 0 | Z10: 0 | AA10: 0 | AB10: 0 | AC10: 0 | AD10: 0 | AE10: 0 | AF10: 0 | AG10: 0 | AH10: 0 | AI10: 0 | AJ10: 2 | AK10: 1 | AL10: 0 | AM10: 1 | AN10: 0 | AO10: 0 | AP10: 0 | AQ10: 0 | AR10: 0 | AS10: 1 | AT10: 1 | AU10: 0 | AV10: 1 | AW10: 0 | AX10: 0 | AY10: 0 | AZ10: 0 | BA10: 0 | BB10: 0 | BC10: 0 | BD10: 0 | BE10: 0 | BF10: 1 | BG10: 0 | BH10: 0 | BI10: 0 | BJ10: 0 | BK10: 0
B12: IRISBUS
B13: M expédiés | D13: 36 | E13: 1 | F13: 38 | G13: 45 | H13: 37 | I13: 18 | J13: 42 | K13: 54 | L13: 44 | M13: 43 | N13: 32 | O13: 47 | P13: 53 | Q13: 6 | R13: 31 | S13: 67 | T13: 41 | U13: 24 | V13: 35 | W13: 29 | X13: 49 | Y13: 53 | Z13: 31 | AA13: 46 | AB13: 30 | AC13: 3 | AD13: 39 | AE13: 75 | AF13: 72 | AG13: 20 | AH13: 13 | AI13: 6 | AJ13: 1 | AK13: 1 | AL13: 1 | AM13: 1 | AN13: 1 | AO13: 1 | AP13: 1 | AQ13: 1 | AR13: 1 | AS13: 1 | AT13: 103 | AU13: 83 | AV13: 69 | AW13: 112 | AX13: 86 | AY13: 121 | AZ13: 65 | BA13: 1 | BB13: 10 | BC13: 26 | BD13: 23 | BE13: 17 | BF13: 42 | BG13: 21 | BH13: 9 | BI13: 15 | BJ13: 36 | BK13: 3
B14: Pulls ( date production ) | D14: 0 | E14: 0 | F14: 0 | G14: 0 | H14: 0 | I14: 0 | J14: 0 | K14: 0 | L14: 0 | M14: 0 | N14: 0 | O14: 0 | P14: 0 | Q14: 0 | R14: 0 | S14: 0 | T14: 0 | U14: 0 | V14: 0 | W14: 0 | X14: 0 | Y14: 0 | Z14: 0 | AA14: 0 | AB14: 0 | AC14: 0 | AD14: 0 | AE14: 0 | AF14: 0 | AG14: 0 | AH14: 0 | AI14: 0 | AJ14: 0 | AK14: 0 | AL14: 0 | AM14: 0 | AN14: 0 | AO14: 0 | AP14: 0 | AQ14: 0 | AR14: 0 | AS14: 0 | AT14: 0 | AU14: 0 | AV14: 0 | AW14: 0 | AX14: 0 | AY14: 0 | AZ14: 0 | BA14: 0 | BB14: 0 | BC14: 0 | BD14: 0 | BE14: 0 | BF14: 0 | BG14: 0 | BH14: 0 | BI14: 0 | BJ14: 0 | BK14: 0
B15: Assy ( date production ) | D15: 0 | E15: 0 | F15: 0 | G15: 0 | H15: 0 | I15: 0 | J15: 0 | K15: 0 | L15: 0 | M15: 0 | N15: 0 | O15: 0 | P15: 0 | Q15: 0 | R15: 0 | S15: 0 | T15: 0 | U15: 0 | V15: 0 | W15: 1 | X15: 0 | Y15: 0 | Z15: 0 | AA15: 0 | AB15: 0 | AC15: 0 | AD15: 0 | AE15: 0 | AF15: 0 | AG15: 0 | AH15: 0 | AI15: 0 | AJ15: 0 | AK15: 0 | AL15: 0 | AM15: 0 | AN15: 0 | AO15: 0 | AP15: 0 | AQ15: 0 | AR15: 0 | AS15: 0 | AT15: 0 | AU15: 0 | AV15: 0 | AW15: 0 | AX15: 0 | AY15: 0 | AZ15: 0 | BA15: 0 | BB15: 0 | BC15: 0 | BD15: 0 | BE15: 0 | BF15: 0 | BG15: 0 | BH15: 0 | BI15: 0 | BJ15: 0 | BK15: 0
B17: IVECO
B18: M expédiés | D18: 1538 | E18: 285 | F18: 2169 | G18: 1885 | H18: 2214 | I18: 1040 | J18: 1645 | K18: 1195 | L18: 773 | M18: 1684 | N18: 1556 | O18: 1700 | P18: 1986 | Q18: 560 | R18: 1470 | S18: 1884 | T18: 2209 | U18: 1145 | V18: 1779 | W18: 1757 | X18: 1282 | Y18: 1686 | Z18: 1537 | AA18: 1958 | AB18: 1662 | AC18: 274 | AD18: 2219 | AE18: 2540 | AF18: 2364 | AG18: 1487 | AH18: 1482 | AI18: 1503 | AJ18: 2057 | AK18: 1221 | AL18: 2184 | AM18: 1821 | AN18: 2062 | AO18: 2062 | AP18: 2213 | AQ18: 1753 | AR18: 1272 | AS18: 1080 | AT18: 1437 | AU18: 2044 | AV18: 1621 | AW18: 2196 | AX18: 2102 | AY18: 2642 | AZ18: 2800 | BA18: 635 | BB18: 3018 | BC18: 2896 | BD18: 2426 | BE18: 1767 | BF18: 1812 | BG18: 2417 | BH18: 2023 | BI18: 2369 | BJ18: 2219 | BK18: 2426
B19: Pulls ( date production ) | D19: 0 | E19: 0 | F19: 0 | G19: 0 | H19: 0 | I19: 0 | J19: 0 | K19: 0 | L19: 0 | M19: 0 | N19: 0 | O19: 0 | P19: 0 | Q19: 0 | R19: 0 | S19: 0 | T19: 0 | U19: 0 | V19: 1 | W19: 0 | X19: 0 | Y19: 0 | Z19: 0 | AA19: 0 | AB19: 0 | AC19: 0 | AD19: 0 | AE19: 0 | AF19: 0 | AG19: 0 | AH19: 0 | AI19: 0 | AJ19: 0 | AK19: 0 | AL19: 0 | AM19: 0 | AN19: 0 | AO19: 0 | AP19: 0 | AQ19: 0 | AR19: 0 | AS19: 0 | AT19: 0 | AU19: 0 | AV19: 0 | AW19: 0 | AX19: 0 | AY19: 0 | AZ19: 0 | BA19: 0 | BB19: 0 | BC19: 0 | BD19: 0 | BE19: 0 | BF19: 0 | BG19: 0 | BH19: 0 | BI19: 0 | BJ19: 0 | BK19: 0
B20: Assy ( date production ) | D20: 0 | E20: 0 | F20: 0 | G20: 0 | H20: 0 | I20: 0 | J20: 0 | K20: 0 | L20: 0 | M20: 0 | N20: 0 | O20: 0 | P20: 0 | Q20: 0 | R20: 0 | S20: 0 | T20: 0 | U20: 0 | V20: 0 | W20: 0 | X20: 0 | Y20: 0 | Z20: 0 | AA20: 0 | AB20: 0 | AC20: 0 | AD20: 0 | AE20: 0 | AF20: 0 | AG20: 0 | AH20: 0 | AI20: 0 | AJ20: 0 | AK20: 0 | AL20: 0 | AM20: 0 | AN20: 0 | AO20: 0 | AP20: 0 | AQ20: 0 | AR20: 0 | AS20: 0 | AT20: 0 | AU20: 0 | AV20: 0 | AW20: 0 | AX20: 0 | AY20: 0 | AZ20: 0 | BA20: 0 | BB20: 0 | BC20: 0 | BD20: 0 | BE20: 0 | BF20: 0 | BG20: 0 | BH20: 0 | BI20: 0 | BJ20: 0 | BK20: 0
B22: FTQ
B23: M passés | D23: 2801 | E23: 597 | F23: 3224 | G23: 3532 | H23: 3484 | I23: 2381 | J23: 2941 | K23: 2438 | L23: 2097 | M23: 3053 | N23: 2973 | O23: 3921 | P23: 3606 | Q23: 270 | R23: 2056 | S23: 3212 | T23: 3484 | U23: 2697 | V23: 3086 | W23: 3240 | X23: 3214 | Y23: 3074 | Z23: 2157 | AA23: 3384 | AB23: 3550 | AC23: 594 | AD23: 3777 | AE23: 4566 | AF23: 4114 | AG23: 2549 | AH23: 2714 | AI23: 3757 | AJ23: 3159 | AK23: 2752 | AL23: 2868 | AM23: 3900 | AN23: 3384 | AO23: 591 | AP23: 3385 | AQ23: 2938 | AR23: 1339 | AS23: 1957 | AT23: 3330 | AU23: 3866 | AV23: 4320 | AW23: 4085 | AX23: 3454 | AY23: 5054 | AZ23: 3827 | BA23: 856 | BB23: 4475 | BC23: 4935 | BD23: 3435 | BE23: 2867 | BF23: 2878 | BG23: 4079 | BH23: 3392 | BI23: 4202 | BJ23: 4147 | BK23: 4478
B24: Qté défauts | D24: 0 | E24: 0 | F24: 10 | G24: 2 | H24: 2 | I24: 2 | J24: 1 | K24: 2 | L24: 0 | M24: 0 | N24: 0 | O24: 0 | P24: 0 | Q24: 0 | R24: 1 | S24: 0 | T24: 1 | U24: 0 | V24: 1 | W24: 2 | X24: 3 | Y24: 1 | Z24: 1 | AA24: 1 | AB24: 1 | AC24: 0 | AD24: 2 | AE24: 1 | AF24: 3 | AG24: 1 | AH24: 1 | AI24: 1 | AJ24: 1 | AK24: 2 | AL24: 1 | AM24: 1 | AN24: 1 | AO24: 1 | AP24: 1 | AQ24: 1 | AR24: 0 | AS24: 1 | AT24: 1 | AU24: 1 | AV24: 1 | AW24: 2 | AX24: 1 | AY24: 2 | AZ24: 1 | BA24: 0 | BB24: 1 | BC24: 1 | BD24: 1 | BE24: 1 | BF24: 1 | BG24: 1 | BH24: 1 | BI24: 1 | BJ24: 0 | BK24: 1
A26: COUT | B26: Maintenance | J26: 0 | K26: 0 | L26: 0.91 | M26: 0 | N26: 0 | O26: 0 | P26: 0 | Q26: 0 | R26: 1.5 | S26: 0 | T26: 0 | U26: 0 | V26: 2.06 | W26: 0 | X26: 1.76 | Y26: 0 | Z26: 3.85 | AA26: 5.5 | AB26: 10.95 | AC26: 0 | AD26: 0 | AE26: 15.7 | AF26: 10.9 | AG26: 4 | AH26: 7 | AI26: 54.25 | AJ26: 0 | AK26: 0 | AL26: 1.5 | AM26: 0 | AN26: 0 | AO26: 0 | AP26: 39.5 | AQ26: 5.22 | AR26: 6.18 | AS26: 48.24 | AT26: 25.22 | AU26: 3 | AV26: 26.55 | AW26: 10.49 | AX26: 21.28 | AY26: 3.98 | AZ26: 13.13 | BA26: 4 | BB26: 30.58 | BC26: 8.01 | BD26: 13 | BE26: 30.06 | BF26: 2 | BG26: 0 | BH26: 0 | BI26: 13.47 | BJ26: 8.86 | BK26: 0.75
A28: PRODUCTION | B28: Efficacité
B29: NPMOP
B30: APTP
D33: 2011 | E33: 2012 | F33: 2013 | G33: 2014 | H33: 2015 | I33: 2016 | J33: 2017 | K33: 2018 | L33: 2019 | M33: 2020 | N33: 2021
A35: SECURITE | B35: LWDC (Objectifs)
B36: FAI (Objectifs)
A38: QUALITE | B38: Pulls A (Objectifs)
B39: Pulls B (Objectifs)
B40: Pulls C (Objectifs)
B42: Assy A (Objectifs)
B43: Assy B (Objectifs)
B44: Assy C (Objectifs)
B46: FTQ (Objectifs)
A48: COÛT | B48: Maintenance (Objectifs)
A50: PRODUCTION | B50: Efficacité (Objectifs)
B51: NPMOP (Objectifs)
B52: APTP (Objectifs)

Sheet A REMPLIR - UTE 38
D1: 2011 | J1: 2012 | V1: 2013 | AH1: 2014 | AT1: 2015 | BF1: 2016 | BR1: 2017 | CD1: 2018 | CP1: 2019 | DB1: 2020 | DN1: 2021
D2: JUILLET | E2: AOÛT | F2: SEPTEMBRE | G2: OCTOBRE | H2: NOVEMBRE | I2: DÉCEMBRE | J2: JANVIER | K2: FEVRIER | L2: MARS | M2: AVRIL | N2: MAI | O2: JUIN | P2: JUILLET | Q2: AOÛT | R2: SEPTEMBRE | S2: OCTOBRE | T2: NOVEMBRE | U2: DÉCEMBRE | V2: JANVIER | W2: FÉVRIER | X2: MARS | Y2: AVRIL | Z2: MAI | AA2: JUIN | AB2: JUILLET | AC2: AOÛT | AD2: SEPTEMBRE | AE2: OCTOBRE | AF2: NOVEMBRE | AG2: DÉCEMBRE | AH2: JANVIER | AI2: FÉVRIER | AJ2: MARS | AK2: AVRIL | AL2: MAI | AM2: JUIN | AN2: JUILLET | AO2: AOÛT | AP2: SEPTEMBRE | AQ2: OCTOBRE | AR2: NOVEMBRE | AS2: DÉCEMBRE | AT2: JANVIER | AU2: FÉVRIER | AV2: MARS | AW2: AVRIL | AX2: MAI | AY2: JUIN | AZ2: JUILLET | BA2: AOÛT | BB2: SEPTEMBRE | BC2: OCTOBRE | BD2: NOVEMBRE | BE2: DÉCEMBRE | BF2: JANVIER | BG2: FÉVRIER | BH2: MARS | BI2: AVRIL | BJ2: MAI | BK2: JUIN | BL2: JUILLET | BM2: AOÛT | BN2: SEPTEMBRE | BO2: OCTOBRE | BP2: NOVEMBRE | BQ2: DÉCEMBRE | BR2: JANVIER | BS2: FÉVRIER | BT2: MARS | BU2: AVRIL | BV2: MAI | BW2: JUIN | BX2: JUILLET | BY2: AOÛT | BZ2: SEPTEMBRE | CA2: OCTOBRE | CB2: NOVEMBRE | CC2: DÉCEMBRE | CD2: JANVIER | CE2: FÉVRIER | CF2: MARS | CG2: AVRIL | CH2: MAI | CI2: JUIN | CJ2: JUILLET | CK2: AOÛT | CL2: SEPTEMBRE | CM2: OCTOBRE | CN2: NOVEMBRE | CO2: DÉCEMBRE | CP2: JANVIER | CQ2: FÉVRIER | CR2: MARS | CS2: AVRIL | CT2: MAI | CU2: JUIN | CV2: JUILLET | CW2: AOÛT | CX2: SEPTEMBRE | CY2: OCTOBRE | CZ2: NOVEMBRE | DA2: DÉCEMBRE | DB2: JANVIER | DC2: FÉVRIER | DD2: MARS | DE2: AVRIL | DF2: MAI | DG2: JUIN | DH2: JUILLET | DI2: AOÛT | DJ2: SEPTEMBRE | DK2: OCTOBRE | DL2: NOVEMBRE | DM2: DÉCEMBRE | DN2: JANVIER | DO2: FÉVRIER | DP2: MARS | DQ2: AVRIL | DR2: MAI | DS2: JUIN | DT2: JUILLET | DU2: AOÛT | DV2: SEPTEMBRE | DW2: OCTOBRE | DX2: NOVEMBRE | DY2: DÉCEMBRE
A4: SECURITE | B4: LWDC | J4: 0 | K4: 0 | L4: 0 | M4: 0 | N4: 0 | O4: 0 | P4: 0 | Q4: 0 | R4: 0 | S4: 0 | T4: 0 | U4: 0 | V4: 0 | W4: 0 | X4: 0 | Y4: 0 | Z4: 0 | AA4: 0 | AB4: 0 | AC4: 0 | AD4: 0 | AE4: 0 | AF4: 0 | AG4: 0 | AH4: 0 | AI4: 0 | AJ4: 0 | AK4: 0 | AL4: 0 | AM4: 0 | AN4: 0 | AO4: 0 | AP4: 0 | AQ4: 0 | AR4: 0 | AS4: 0 | AT4: 0 | AU4: 0 | AV4: 0 | AW4: 0 | AX4: 0 | AY4: 0 | AZ4: 0 | BA4: 0 | BB4: 0 | BC4: 0 | BD4: 0 | BE4: 0 | BF4: 0 | BG4: 0 | BH4: 0 | BI4: 0 | BJ4: 0 | BK4: 0
B5: FAI | J5: 0 | K5: 0 | L5: 0 | M5: 0 | N5: 0 | O5: 0 | P5: 0 | Q5: 0 | R5: 0 | S5: 0 | T5: 0 | U5: 0 | V5: 0 | W5: 0 | X5: 0 | Y5: 0 | Z5: 0 | AA5: 0 | AB5: 0 | AC5: 0 | AD5: 0 | AE5: 0 | AF5: 0 | AG5: 0.5 | AH5: 0 | AI5: 0 | AJ5: 0 | AK5: 0 | AL5: 0 | AM5: 0 | AN5: 0 | AO5: 0 | AP5: 0 | AQ5: 0 | AR5: 0 | AS5: 0 | AT5: 7.12 | AU5: 3.51 | AV5: 2.16 | AW5: 1.62 | AX5: 1.33 | AY5: 1.05 | AZ5: 0.9 | BA5: 0.87 | BB5: 0.75 | BC5: 0.65 | BD5: 0.64 | BE5: 0.59 | BF5: 0 | BG5: 0 | BH5: 0 | BI5: 0 | BJ5: 0 | BK5: 0
A7: QUALITE | B7: CNH
B8: M expédiés | D8: 1088 | E8: 282 | F8: 1104 | G8: 962 | H8: 683 | I8: 1094 | J8: 1148 | K8: 1056 | L8: 979 | M8: 1127 | N8: 1007 | O8: 1485 | P8: 1494 | Q8: 119 | R8: 941 | S8: 895 | T8: 661 | U8: 902 | V8: 1061 | W8: 1286 | X8: 1626 | Y8: 1062 | Z8: 1176 | AA8: 965 | AB8: 1499 | AC8: 334 | AD8: 1160 | AE8: 999 | AF8: 772 | AG8: 718 | AH8: 747 | AI8: 1130 | AJ8: 811 | AK8: 755 | AL8: 548 | AM8: 486 | AN8: 927 | AO8: 145 | AP8: 468 | AQ8: 128 | AR8: 44 | AS8: 568 | AT8: 432 | AU8: 392 | AV8: 593 | AW8: 454 | AX8: 303 | AY8: 240 | AZ8: 453 | BA8: 55 | BB8: 180 | BC8: 303 | BD8: 104 | BE8: 213 | BF8: 188 | BG8: 308 | BH8: 510 | BI8: 487 | BJ8: 475 | BK8: 491
B9: Pulls ( date production ) | D9: 0 | E9: 0 | F9: 0 | G9: 0 | H9: 0 | I9: 0 | J9: 0 | K9: 0 | L9: 0 | M9: 0 | N9: 0 | O9: 0 | P9: 0 | Q9: 0 | R9: 0 | S9: 0 | T9: 0 | U9: 0 | V9: 0 | W9: 0 | X9: 0 | Y9: 0 | Z9: 0 | AA9: 0 | AB9: 0 | AC9: 0 | AD9: 0 | AE9: 0 | AF9: 0 | AG9: 0 | AH9: 0 | AI9: 0 | AJ9: 0 | AK9: 0 | AL9: 0 | AM9: 0 | AN9: 0 | AO9: 0 | AP9: 0 | AQ9: 0 | AR9: 0 | AS9: 0 | AT9: 0 | AU9: 0 | AV9: 0 | AW9: 0 | AX9: 0 | AY9: 0 | AZ9: 0 | BA9: 0 | BB9: 0 | BC9: 0 | BD9: 0 | BE9: 0 | BF9: 0 | BG9: 0 | BH9: 0 | BI9: 0 | BJ9: 0 | BK9: 0
B10: Assy ( date production ) | D10: 1 | E10: 0 | F10: 0 | G10: 0 | H10: 0 | I10: 0 | J10: 0 | K10: 0 | L10: 0 | M10: 1 | N10: 0 | O10: 0 | P10: 0 | Q10: 0 | R10: 0 | S10: 0 | T10: 0 | U10: 0 | V10: 0 | W10: 0 | X10: 0 | Y10: 0 | Z10: 0 | AA10: 0 | AB10: 0 | AC10: 0 | AD10: 0 | AE10: 3 | AF10: 0 | AG10: 0 | AH10: 0 | AI10: 0 | AJ10: 0 | AK10: 0 | AL10: 0 | AM10: 0 | AN10: 2 | AO10: 0 | AP10: 0 | AQ10: 0 | AR10: 0 | AS10: 0 | AT10: 0 | AU10: 0 | AV10: 0 | AW10: 0 | AX10: 0 | AY10: 0 | AZ10: 0 | BA10: 0 | BB10: 1 | BC10: 1 | BD10: 0 | BE10: 0 | BF10: 0 | BG10: 1 | BH10: 1 | BI10: 0 | BJ10: 0 | BK10: 0
B12: IRISBUS
B13: M expédiés | D13: 480 | E13: 33 | F13: 288 | G13: 363 | H13: 421 | I13: 246 | J13: 170 | K13: 291 | L13: 246 | M13: 233 | N13: 287 | O13: 277 | P13: 347 | Q13: 72 | R13: 394 | S13: 445 | T13: 291 | U13: 101 | V13: 245 | W13: 256 | X13: 296 | Y13: 252 | Z13: 313 | AA13: 304 | AB13: 426 | AC13: 78 | AD13: 415 | AE13: 554 | AF13: 526 | AG13: 325 | AH13: 83 | AI13: 29 | AJ13: 11 | AK13: 72 | AL13: 16 | AM13: 43 | AN13: 33 | AO13: 30 | AP13: 74 | AQ13: 76 | AR13: 60 | AS13: 62 | AT13: 103 | AU13: 83 | AV13: 69 | AW13: 112 | AX13: 86 | AY13: 121 | AZ13: 65 | BA13: 1 | BB13: 10 | BC13: 26 | BD13: 23 | BE13: 17 | BF13: 42 | BG13: 21 | BH13: 9 | BI13: 15 | BJ13: 36 | BK13: 3
B14: Pulls ( date production ) | D14: 0 | E14: 0 | F14: 0 | G14: 0 | H14: 0 | I14: 0 | J14: 0 | K14: 0 | L14: 0 | M14: 0 | N14: 0 | O14: 0 | P14: 0 | Q14: 0 | R14: 0 | S14: 0 | T14: 0 | U14: 0 | V14: 0 | W14: 0 | X14: 0 | Y14: 0 | Z14: 0 | AA14: 0 | AB14: 0 | AC14: 0 | AD14: 0 | AE14: 0 | AF14: 0 | AG14: 0 | AH14: 0 | AI14: 0 | AJ14: 0 | AK14: 0 | AL14: 0 | AM14: 0 | AN14: 0 | AO14: 0 | AP14: 0 | AQ14: 0 | AR14: 0 | AS14: 0 | AT14: 0 | AU14: 0 | AV14: 0 | AW14: 0 | AX14: 0 | AY14: 0 | AZ14: 0 | BA14: 0 | BB14: 0 | BC14: 0 | BD14: 0 | BE14: 0 | BF14: 0 | BG14: 0 | BH14: 0 | BI14: 0 | BJ14: 0 | BK14: 0
B15: Assy ( date production ) | D15: 0 | E15: 1 | F15: 0 | G15: 0 | H15: 0 | I15: 0 | J15: 0 | K15: 0 | L15: 0 | M15: 0 | N15: 0 | O15: 0 | P15: 0 | Q15: 0 | R15: 0 | S15: 0 | T15: 0 | U15: 0 | V15: 0 | W15: 0 | X15: 0 | Y15: 0 | Z15: 0 | AA15: 0 | AB15: 0 | AC15: 0 | AD15: 0 | AE15: 0 | AF15: 0 | AG15: 0 | AH15: 0 | AI15: 0 | AJ15: 0 | AK15: 0 | AL15: 0 | AM15: 0 | AN15: 0 | AO15: 0 | AP15: 0 | AQ15: 0 | AR15: 0 | AS15: 0 | AT15: 0 | AU15: 0 | AV15: 0 | AW15: 0 | AX15: 0 | AY15: 0 | AZ15: 0 | BA15: 0 | BB15: 0 | BC15: 0 | BD15: 0 | BE15: 0 | BF15: 0 | BG15: 0 | BH15: 0 | BI15: 0 | BJ15: 0 | BK15: 0
B17: IVECO
B18: M expédiés | D18: 1800 | E18: 318 | F18: 2458 | G18: 2180 | H18: 2391 | I18: 1142 | J18: 1864 | K18: 1334 | L18: 902 | M18: 1879 | N18: 1674 | O18: 1839 | P18: 2184 | Q18: 617 | R18: 1615 | S18: 2018 | T18: 2348 | U18: 1198 | V18: 2086 | W18: 2030 | X18: 1405 | Y18: 1893 | Z18: 1983 | AA18: 2109 | AB18: 1815 | AC18: 333 | AD18: 2477 | AE18: 2774 | AF18: 2600 | AG18: 1654 | AH18: 1494 | AI18: 1550 | AJ18: 2130 | AK18: 1267 | AL18: 2230 | AM18: 1866 | AN18: 2103 | AO18: 545 | AP18: 2250 | AQ18: 1795 | AR18: 1299 | AS18: 1116 | AT18: 1437 | AU18: 2044 | AV18: 1621 | AW18: 2196 | AX18: 2102 | AY18: 2642 | AZ18: 2800 | BA18: 635 | BB18: 3018 | BC18: 2895 | BD18: 2426 | BE18: 1767 | BF18: 1812 | BG18: 2417 | BH18: 2023 | BI18: 2369 | BJ18: 2219 | BK18: 2426
B19: Pulls ( date production ) | D19: 0 | E19: 0 | F19: 0 | G19: 0 | H19: 0 | I19: 0 | J19: 0 | K19: 0 | L19: 0 | M19: 0 | N19: 0 | O19: 0 | P19: 0 | Q19: 0 | R19: 0 | S19: 0 | T19: 0 | U19: 0 | V19: 0 | W19: 0 | X19: 0 | Y19: 0 | Z19: 0 | AA19: 0 | AB19: 0 | AC19: 0 | AD19: 0 | AE19: 0 | AF19: 0 | AG19: 0 | AH19: 0 | AI19: 0 | AJ19: 0 | AK19: 0 | AL19: 0 | AM19: 0 | AN19: 0 | AO19: 0 | AP19: 0 | AQ19: 0 | AR19: 0 | AS19: 0 | AT19: 0 | AU19: 0 | AV19: 0 | AW19: 0 | AX19: 0 | AY19: 0 | AZ19: 0 | BA19: 0 | BB19: 0 | BC19: 0 | BD19: 0 | BE19: 0 | BF19: 0 | BG19: 0 | BH19: 0 | BI19: 0 | BJ19: 0 | BK19: 0
B20: Assy ( date production ) | D20: 0 | E20: 0 | F20: 0 | G20: 0 | H20: 0 | I20: 1 | J20: 0 | K20: 0 | L20: 0 | M20: 0 | N20: 0 | O20: 0 | P20: 0 | Q20: 0 | R20: 0 | S20: 0 | T20: 0 | U20: 0 | V20: 2 | W20: 0 | X20: 1 | Y20: 0 | Z20: 0 | AA20: 0 | AB20: 0 | AC20: 0 | AD20: 0 | AE20: 0 | AF20: 0 | AG20: 0 | AH20: 0 | AI20: 0 | AJ20: 0 | AK20: 0 | AL20: 0 | AM20: 0 | AN20: 0 | AO20: 0 | AP20: 0 | AQ20: 0 | AR20: 0 | AS20: 0 | AT20: 0 | AU20: 0 | AV20: 0 | AW20: 0 | AX20: 0 | AY20: 0 | AZ20: 0 | BA20: 0 | BB20: 0 | BC20: 0 | BD20: 0 | BE20: 0 | BF20: 0 | BG20: 0 | BH20: 0 | BI20: 1 | BJ20: 0 | BK20: 0
B22: FTQ
B23: M passés | F23: 4898 | G23: 5003 | H23: 4421 | I23: 3368 | J23: 4196 | K23: 3630 | L23: 3120 | M23: 4409 | N23: 4336 | O23: 5218 | P23: 4988 | Q23: 629 | R23: 3620 | S23: 4257 | T23: 4299 | U23: 3390 | V23: 4231 | W23: 4514 | X23: 5135 | Y23: 4767 | Z23: 3677 | AA23: 5212 | AB23: 5486 | AC23: 940 | AD23: 5326 | AE23: 6767 | AF23: 6226 | AG23: 4365 | AH23: 3614 | AI23: 4565 | AJ23: 3735 | AK23: 3321 | AL23: 3471 | AM23: 4366 | AN23: 3705 | AO23: 591 | AP23: 3752 | AQ23: 3293 | AR23: 1516 | AS23: 2146 | AT23: 3412 | AU23: 3866 | AV23: 4320 | AW23: 4085 | AX23: 3530 | AY23: 5054 | AZ23: 3904 | BA23: 856 | BB23: 4475 | BC23: 4935 | BD23: 3435 | BE23: 2867 | BF23: 2878 | BG23: 4079 | BH23: 3392 | BI23: 4202 | BJ23: 4147 | BK23: 4478
B24: Qté défauts | G24: 2 | H24: 2 | I24: 1 | J24: 1 | K24: 1 | L24: 0 | M24: 1 | N24: 3 | O24: 1 | P24: 2 | Q24: 0 | R24: 1 | S24: 0 | T24: 1 | U24: 0 | V24: 1 | W24: 1 | X24: 2 | Y24: 3 | Z24: 1 | AA24: 1 | AB24: 1 | AC24: 1 | AD24: 0 | AE24: 1 | AF24: 2 | AG24: 2 | AH24: 2 | AI24: 1 | AJ24: 1 | AK24: 1 | AL24: 1 | AM24: 1 | AN24: 1 | AO24: 1 | AP24: 1 | AQ24: 1 | AR24: 1 | AS24: 0 | AT24: 1 | AU24: 1 | AV24: 1 | AW24: 0 | AX24: 1 | AY24: 1 | AZ24: 1 | BA24: 0 | BB24: 2 | BC24: 1 | BD24: 1 | BE24: 1 | BF24: 2 | BG24: 1 | BH24: 1 | BI24: 1 | BJ24: 1 | BK24: 1
A26: COUT | B26: Maintenance | J26: 116.52 | K26: 92.3 | L26: 67.65 | M26: 118.27 | N26: 104.24 | O26: 131.37 | P26: 63.98 | Q26: 13.76 | R26: 31.53 | S26: 56.66 | T26: 98.52 | U26: 98.63 | V26: 128.7 | W26: 102.4 | X26: 73.81 | Y26: 96.03 | Z26: 202.59 | AA26: 59 | AB26: 124.18 | AC26: 4 | AD26: 73 | AE26: 105.46 | AF26: 54.81 | AG26: 106.76 | AH26: 94.3 | AI26: 48.76 | AJ26: 195.4 | AK26: 57.5 | AL26: 33.25 | AM26: 62.6 | AN26: 43.5 | AO26: 21 | AP26: 109.8 | AQ26: 150.75 | AR26: 44.42 | AS26: 81.14 | AT26: 106.66 | AU26: 27.5 | AV26: 128.57 | AW26: 100.41 | AX26: 98.54 | AY26: 168.33 | AZ26: 141.41 | BA26: 35.83 | BB26: 124.3 | BC26: 51 | BD26: 91.37 | BE26: 105.47 | BF26: 22.5 | BG26: 518.39 | BH26: 128.57 | BI26: 85.83 | BJ26: 65.75 | BK26: 65.75
A28: PRODUCTION | B28: Efficacité
B29: NPMOP
B30: APTP
D33: 2011 | E33: 2012 | F33: 2013 | G33: 2014 | H33: 2015 | I33: 2016 | J33: 2017 | K33: 2018 | L33: 2019 | M33: 2020 | N33: 2021
A35: SECURITE | B35: LWDC (Objectifs)
B36: FAI (Objectifs)
A38: QUALITE | B38: Pulls A (Objectifs)
B39: Pulls B (Objectifs)
B40: Pulls C (Objectifs)
B42: Assy A (Objectifs)
B43: Assy B (Objectifs)
B44: Assy C (Objectifs)
B46: FTQ (Objectifs)
A48: COÛT | B48: Maintenance (Objectifs)
A50: PRODUCTION | B50: Efficacité (Objectifs)
B51: NPMOP (Objectifs)
B52: APTP (Objectifs)

Sheet SCORECARD
B4: ANNEE | C4: 2013
B6: UTE | C6: 32
C9: réalisé avant | D9: Indicateurs | F9: Unité de mesure | G9: Valeur | H9: janvier | I9: février | J9: mars | K9: avril | L9: mai | M9: juin | N9: juillet | O9: août | P9: septembre | Q9: octobre | R9: novembre | S9: décembre | T9: Obj | U9: Trend
H11: 1 | I11: 2 | J11: 3 | K11: 4 | L11: 5 | M11: 6 | N11: 7 | O11: 8 | P11: 9 | Q11: 10 | R11: 11 | S11: 12
B12: SECURITE | D12: LWDC | F12: Ind. Fréq | G12: Progressif | H12: =VLOOKUP(CONCATENATE($C$4,$C$6,$H$9),BDD!$A:$Q,5,TRUE) -> 0 | I12: =VLOOKUP(CONCATENATE($C$4,$C$6,$I$9),BDD!$A:$Q,5,TRUE) -> 0 | J12: =VLOOKUP(CONCATENATE($C$4,$C$6,$J$9),BDD!$A:$Q,5,TRUE) -> 0 | K12: =VLOOKUP(CONCATENATE($C$4,$C$6,$K$9),BDD!$A:$Q,5,TRUE) -> 0 | L12: =VLOOKUP(CONCATENATE($C$4,$C$6,$L$9),BDD!$A:$Q,5,TRUE) -> 0 | M12: =VLOOKUP(CONCATENATE($C$4,$C$6,$M$9),BDD!$A:$Q,5,TRUE) -> 0 | N12: =VLOOKUP(CONCATENATE($C$4,$C$6,$N$9),BDD!$A:$Q,5,TRUE) -> 0 | O12: =VLOOKUP(CONCATENATE($C$4,$C$6,$O$9),BDD!$A:$Q,5,TRUE) -> 0 | P12: =VLOOKUP(CONCATENATE($C$4,$C$6,$P$9),BDD!$A:$Q,5,TRUE) -> 0 | Q12: =VLOOKUP(CONCATENATE($C$4,$C$6,$Q$9),BDD!$A:$Q,5,TRUE) -> 0 | R12: =VLOOKUP(CONCATENATE($C$4,$C$6,$R$9),BDD!$A:$Q,5,TRUE) -> 0 | S12: =VLOOKUP(CONCATENATE($C$4,$C$6,$S$9),BDD!$A:$Q,5,TRUE) -> 0 | T12: =HLOOKUP($C$4,INDIRECT("'"&"A REMPLIR - UTE "&$C$6&"'!"&"$D$33:$AA$52"),3,FALSE) -> 0 | U12: =IF(HLOOKUP(MONTH(TODAY()),H11:S13,2,FALSE)>HLOOKUP(MONTH(TODAY())-1,H11:S13,2,FALSE),1,-1) -> -1
D13: FAI | F13: Ind. Fréq | G13: Progressif | H13: =VLOOKUP(CONCATENATE($C$4,$C$6,$H$9),BDD!$A:$Q,6,TRUE) -> 0 | I13: =VLOOKUP(CONCATENATE($C$4,$C$6,$I$9),BDD!$A:$Q,6,TRUE) -> 0.51 | J13: =VLOOKUP(CONCATENATE($C$4,$C$6,$J$9),BDD!$A:$Q,6,TRUE) -> 0 | K13: =VLOOKUP(CONCATENATE($C$4,$C$6,$K$9),BDD!$A:$Q,6,TRUE) -> 0.51 | L13: =VLOOKUP(CONCATENATE($C$4,$C$6,$L$9),BDD!$A:$Q,6,TRUE) -> 0 | M13: =VLOOKUP(CONCATENATE($C$4,$C$6,$M$9),BDD!$A:$Q,6,TRUE) -> 0 | N13: =VLOOKUP(CONCATENATE($C$4,$C$6,$N$9),BDD!$A:$Q,6,TRUE) -> 0 | O13: =VLOOKUP(CONCATENATE($C$4,$C$6,$O$9),BDD!$A:$Q,6,TRUE) -> 0.51 | P13: =VLOOKUP(CONCATENATE($C$4,$C$6,$P$9),BDD!$A:$Q,6,TRUE) -> 0 | Q13: =VLOOKUP(CONCATENATE($C$4,$C$6,$Q$9),BDD!$A:$Q,6,TRUE) -> 0 | R13: =VLOOKUP(CONCATENATE($C$4,$C$6,$R$9),BDD!$A:$Q,6,TRUE) -> 0 | S13: =VLOOKUP(CONCATENATE($C$4,$C$6,$S$9),BDD!$A:$Q,6,TRUE) -> 0.51 | T13: =HLOOKUP($C$4,INDIRECT("'"&"A REMPLIR - UTE "&$C$6&"'!"&"$D$33:$AA$52"),4,FALSE) -> 0 | U13: =IF(HLOOKUP(MONTH(TODAY()),H11:S13,3,FALSE)>HLOOKUP(MONTH(TODAY())-1,H11:S13,3,FALSE),1,-1) -> 1
B16: QUALITE | D16: Pulls A | F16: PPM | G16: 6 M rolling | H16: =VLOOKUP(CONCATENATE($C$4,$C$6,$H$9),BDD!$A:$Q,7,TRUE) -> 0 | I16: =VLOOKUP(CONCATENATE($C$4,$C$6,$I$9),BDD!$A:$Q,7,TRUE) -> 0 | J16: =VLOOKUP(CONCATENATE($C$4,$C$6,$J$9),BDD!$A:$Q,7,TRUE) -> 0 | K16: =VLOOKUP(CONCATENATE($C$4,$C$6,$K$9),BDD!$A:$Q,7,TRUE) -> 0 | L16: =VLOOKUP(CONCATENATE($C$4,$C$6,$L$9),BDD!$A:$Q,7,TRUE) -> 0 | M16: =VLOOKUP(CONCATENATE($C$4,$C$6,$M$9),BDD!$A:$Q,7,TRUE) -> 0 | N16: =VLOOKUP(CONCATENATE($C$4,$C$6,$N$9),BDD!$A:$Q,7,TRUE) -> 0 | O16: =VLOOKUP(CONCATENATE($C$4,$C$6,$O$9),BDD!$A:$Q,7,TRUE) -> 0 | P16: =VLOOKUP(CONCATENATE($C$4,$C$6,$P$9),BDD!$A:$Q,7,TRUE) -> 0 | Q16: =VLOOKUP(CONCATENATE($C$4,$C$6,$Q$9),BDD!$A:$Q,7,TRUE) -> 0 | R16: =VLOOKUP(CONCATENATE($C$4,$C$6,$R$9),BDD!$A:$Q,7,TRUE) -> 0 | S16: =VLOOKUP(CONCATENATE($C$4,$C$6,$S$9),BDD!$A:$Q,7,TRUE) -> 0 | T16: =HLOOKUP($C$4,INDIRECT("'"&"A REMPLIR - UTE "&$C$6&"'!"&"$D$33:$AA$52"),6,FALSE) -> 0 | U16: =IF(HLOOKUP(MONTH(TODAY()),H11:S28,6,FALSE)>HLOOKUP(MONTH(TODAY())-1,H11:S28,6,FALSE),1,-1) -> -1
D17: Pulls B | H17: =VLOOKUP(CONCATENATE($C$4,$C$6,$H$9),BDD!$A:$Q,8,TRUE) -> 0 | I17: =VLOOKUP(CONCATENATE($C$4,$C$6,$I$9),BDD!$A:$Q,8,TRUE) -> 480.5382028 | J17: =VLOOKUP(CONCATENATE($C$4,$C$6,$J$9),BDD!$A:$Q,8,TRUE) -> 0 | K17: =VLOOKUP(CONCATENATE($C$4,$C$6,$K$9),BDD!$A:$Q,8,TRUE) -> 480.5382028 | L17: =VLOOKUP(CONCATENATE($C$4,$C$6,$L$9),BDD!$A:$Q,8,TRUE) -> 0 | M17: =VLOOKUP(CONCATENATE($C$4,$C$6,$M$9),BDD!$A:$Q,8,TRUE) -> 0 | N17: =VLOOKUP(CONCATENATE($C$4,$C$6,$N$9),BDD!$A:$Q,8,TRUE) -> 0 | O17: =VLOOKUP(CONCATENATE($C$4,$C$6,$O$9),BDD!$A:$Q,8,TRUE) -> 480.5382028 | P17: =VLOOKUP(CONCATENATE($C$4,$C$6,$P$9),BDD!$A:$Q,8,TRUE) -> 0 | Q17: =VLOOKUP(CONCATENATE($C$4,$C$6,$Q$9),BDD!$A:$Q,8,TRUE) -> 0 | R17: =VLOOKUP(CONCATENATE($C$4,$C$6,$R$9),BDD!$A:$Q,8,TRUE) -> 0 | S17: =VLOOKUP(CONCATENATE($C$4,$C$6,$S$9),BDD!$A:$Q,8,TRUE) -> 480.5382028 | T17: =HLOOKUP($C$4,INDIRECT("'"&"A REMPLIR - UTE "&$C$6&"'!"&"$D$33:$AA$52"),7,FALSE) -> 0 | U17: =IF(HLOOKUP(MONTH(TODAY()),H11:S28,7,FALSE)>HLOOKUP(MONTH(TODAY())-1,H11:S28,7,FALSE),1,-1) -> 1
D18: Pulls C | H18: =VLOOKUP(CONCATENATE($C$4,$C$6,$H$9),BDD!$A:$Q,9,TRUE) -> 0 | I18: =VLOOKUP(CONCATENATE($C$4,$C$6,$I$9),BDD!$A:$Q,9,TRUE) -> 903.3423668 | J18: =VLOOKUP(CONCATENATE($C$4,$C$6,$J$9),BDD!$A:$Q,9,TRUE) -> 0 | K18: =VLOOKUP(CONCATENATE($C$4,$C$6,$K$9),BDD!$A:$Q,9,TRUE) -> 903.3423668 | L18: =VLOOKUP(CONCATENATE($C$4,$C$6,$L$9),BDD!$A:$Q,9,TRUE) -> 0 | M18: =VLOOKUP(CONCATENATE($C$4,$C$6,$M$9),BDD!$A:$Q,9,TRUE) -> 0 | N18: =VLOOKUP(CONCATENATE($C$4,$C$6,$N$9),BDD!$A:$Q,9,TRUE) -> 0 | O18: =VLOOKUP(CONCATENATE($C$4,$C$6,$O$9),BDD!$A:$Q,9,TRUE) -> 903.3423668 | P18: =VLOOKUP(CONCATENATE($C$4,$C$6,$P$9),BDD!$A:$Q,9,TRUE) -> 0 | Q18: =VLOOKUP(CONCATENATE($C$4,$C$6,$Q$9),BDD!$A:$Q,9,TRUE) -> 0 | R18: =VLOOKUP(CONCATENATE($C$4,$C$6,$R$9),BDD!$A:$Q,9,TRUE) -> 0 | S18: =VLOOKUP(CONCATENATE($C$4,$C$6,$S$9),BDD!$A:$Q,9,TRUE) -> 903.3423668 | T18: =HLOOKUP($C$4,INDIRECT("'"&"A REMPLIR - UTE "&$C$6&"'!"&"$D$33:$AA$52"),8,FALSE) -> 0 | U18: =IF(HLOOKUP(MONTH(TODAY()),H11:S28,8,FALSE)>HLOOKUP(MONTH(TODAY())-1,H11:S28,8,FALSE),1,-1) -> 1
D19: Assy A | H19: =VLOOKUP(CONCATENATE($C$4,$C$6,$H$9),BDD!$A:$Q,10,TRUE) -> 0 | I19: =VLOOKUP(CONCATENATE($C$4,$C$6,$I$9),BDD!$A:$Q,10,TRUE) -> 1287.830006 | J19: =VLOOKUP(CONCATENATE($C$4,$C$6,$J$9),BDD!$A:$Q,10,TRUE) -> 0 | K19: =VLOOKUP(CONCATENATE($C$4,$C$6,$K$9),BDD!$A:$Q,10,TRUE) -> 1287.830006 | L19: =VLOOKUP(CONCATENATE($C$4,$C$6,$L$9),BDD!$A:$Q,10,TRUE) -> 272.7768685 | M19: =VLOOKUP(CONCATENATE($C$4,$C$6,$M$9),BDD!$A:$Q,10,TRUE) -> 312.4023743 | N19: =VLOOKUP(CONCATENATE($C$4,$C$6,$N$9),BDD!$A:$Q,10,TRUE) -> 312.4023743 | O19: =VLOOKUP(CONCATENATE($C$4,$C$6,$O$9),BDD!$A:$Q,10,TRUE) -> 1287.830006 | P19: =VLOOKUP(CONCATENATE($C$4,$C$6,$P$9),BDD!$A:$Q,10,TRUE) -> 0 | Q19: =VLOOKUP(CONCATENATE($C$4,$C$6,$Q$9),BDD!$A:$Q,10,TRUE) -> 0 | R19: =VLOOKUP(CONCATENATE($C$4,$C$6,$R$9),BDD!$A:$Q,10,TRUE) -> 0 | S19: =VLOOKUP(CONCATENATE($C$4,$C$6,$S$9),BDD!$A:$Q,10,TRUE) -> 1287.830006 | T19: =HLOOKUP($C$4,INDIRECT("'"&"A REMPLIR - UTE "&$C$6&"'!"&"$D$33:$AA$52"),10,FALSE) -> 0 | U19: =IF(HLOOKUP(MONTH(TODAY()),H11:S28,9,FALSE)>HLOOKUP(MONTH(TODAY())-1,H11:S28,9,FALSE),1,-1) -> 1
D20: Assy B | H20: =VLOOKUP(CONCATENATE($C$4,$C$6,$H$9),BDD!$A:$Q,11,TRUE) -> 0 | I20: =VLOOKUP(CONCATENATE($C$4,$C$6,$I$9),BDD!$A:$Q,11,TRUE) -> 480.5382028 | J20: =VLOOKUP(CONCATENATE($C$4,$C$6,$J$9),BDD!$A:$Q,11,TRUE) -> 0 | K20: =VLOOKUP(CONCATENATE($C$4,$C$6,$K$9),BDD!$A:$Q,11,TRUE) -> 480.5382028 | L20: =VLOOKUP(CONCATENATE($C$4,$C$6,$L$9),BDD!$A:$Q,11,TRUE) -> 0 | M20: =VLOOKUP(CONCATENATE($C$4,$C$6,$M$9),BDD!$A:$Q,11,TRUE) -> 0 | N20: =VLOOKUP(CONCATENATE($C$4,$C$6,$N$9),BDD!$A:$Q,11,TRUE) -> 0 | O20: =VLOOKUP(CONCATENATE($C$4,$C$6,$O$9),BDD!$A:$Q,11,TRUE) -> 480.5382028 | P20: =VLOOKUP(CONCATENATE($C$4,$C$6,$P$9),BDD!$A:$Q,11,TRUE) -> 0 | Q20: =VLOOKUP(CONCATENATE($C$4,$C$6,$Q$9),BDD!$A:$Q,11,TRUE) -> 0 | R20: =VLOOKUP(CONCATENATE($C$4,$C$6,$R$9),BDD!$A:$Q,11,TRUE) -> 0 | S20: =VLOOKUP(CONCATENATE($C$4,$C$6,$S$9),BDD!$A:$Q,11,TRUE) -> 480.5382028 | T20: =HLOOKUP($C$4,INDIRECT("'"&"A REMPLIR - UTE "&$C$6&"'!"&"$D$33:$AA$52"),11,FALSE) -> 0 | U20: =IF(HLOOKUP(MONTH(TODAY()),H11:S28,10,FALSE)>HLOOKUP(MONTH(TODAY())-1,H11:S28,10,FALSE),1,-1) -> 1
D21: Assy C | H21: =VLOOKUP(CONCATENATE($C$4,$C$6,$H$9),BDD!$A:$Q,12,TRUE) -> 0 | I21: =VLOOKUP(CONCATENATE($C$4,$C$6,$I$9),BDD!$A:$Q,12,TRUE) -> 903.3423668 | J21: =VLOOKUP(CONCATENATE($C$4,$C$6,$J$9),BDD!$A:$Q,12,TRUE) -> 0 | K21: =VLOOKUP(CONCATENATE($C$4,$C$6,$K$9),BDD!$A:$Q,12,TRUE) -> 903.3423668 | L21: =VLOOKUP(CONCATENATE($C$4,$C$6,$L$9),BDD!$A:$Q,12,TRUE) -> 0 | M21: =VLOOKUP(CONCATENATE($C$4,$C$6,$M$9),BDD!$A:$Q,12,TRUE) -> 0 | N21: =VLOOKUP(CONCATENATE($C$4,$C$6,$N$9),BDD!$A:$Q,12,TRUE) -> 0 | O21: =VLOOKUP(CONCATENATE($C$4,$C$6,$O$9),BDD!$A:$Q,12,TRUE) -> 903.3423668 | P21: =VLOOKUP(CONCATENATE($C$4,$C$6,$P$9),BDD!$A:$Q,12,TRUE) -> 0 | Q21: =VLOOKUP(CONCATENATE($C$4,$C$6,$Q$9),BDD!$A:$Q,12,TRUE) -> 0 | R21: =VLOOKUP(CONCATENATE($C$4,$C$6,$R$9),BDD!$A:$Q,12,TRUE) -> 0 | S21: =VLOOKUP(CONCATENATE($C$4,$C$6,$S$9),BDD!$A:$Q,12,TRUE) -> 903.3423668 | T21: =HLOOKUP($C$4,INDIRECT("'"&"A REMPLIR - UTE "&$C$6&"'!"&"$D$33:$AA$52"),12,FALSE) -> 0 | U21: =IF(HLOOKUP(MONTH(TODAY()),H11:S28,11,FALSE)>HLOOKUP(MONTH(TODAY())-1,H11:S28,11,FALSE),1,-1) -> 1
D22: FTQ | F22: % | G22: 3 M rolling | H22: =VLOOKUP(CONCATENATE($C$4,$C$6,$H$9),BDD!$A:$Q,13,TRUE) -> 0.9974885346 | I22: =VLOOKUP(CONCATENATE($C$4,$C$6,$I$9),BDD!$A:$Q,13,TRUE) -> 0.9970631424 | J22: =VLOOKUP(CONCATENATE($C$4,$C$6,$J$9),BDD!$A:$Q,13,TRUE) -> 0.9988590987 | K22: =VLOOKUP(CONCATENATE($C$4,$C$6,$K$9),BDD!$A:$Q,13,TRUE) -> 0.9970631424 | L22: =VLOOKUP(CONCATENATE($C$4,$C$6,$L$9),BDD!$A:$Q,13,TRUE) -> 0.9991131382 | M22: =VLOOKUP(CONCATENATE($C$4,$C$6,$M$9),BDD!$A:$Q,13,TRUE) -> 0.9980407975 | N22: =VLOOKUP(CONCATENATE($C$4,$C$6,$N$9),BDD!$A:$Q,13,TRUE) -> 0.9980407975 | O22: =VLOOKUP(CONCATENATE($C$4,$C$6,$O$9),BDD!$A:$Q,13,TRUE) -> 0.9970631424 | P22: =VLOOKUP(CONCATENATE($C$4,$C$6,$P$9),BDD!$A:$Q,13,TRUE) -> 0.9993034271 | Q22: =VLOOKUP(CONCATENATE($C$4,$C$6,$Q$9),BDD!$A:$Q,13,TRUE) -> 0.9988590987 | R22: =VLOOKUP(CONCATENATE($C$4,$C$6,$R$9),BDD!$A:$Q,13,TRUE) -> 0.9988590987 | S22: =VLOOKUP(CONCATENATE($C$4,$C$6,$S$9),BDD!$A:$Q,13,TRUE) -> 0.9970631424 | T22: =HLOOKUP($C$4,INDIRECT("'"&"A REMPLIR - UTE "&$C$6&"'!"&"$D$33:$AA$52"),14,FALSE) -> 0 | U22: =IF(HLOOKUP(MONTH(TODAY()),H11:S28,12,FALSE)>HLOOKUP(MONTH(TODAY())-1,H11:S28,12,FALSE),1,-1) -> -1
B25: COUT | D25: Maintenance | F25: Heures | G25: Mensuel | H25: =VLOOKUP(CONCATENATE($C$4,$C$6,$H$9),BDD!$A:$Q,14,TRUE) -> 29.02 | I25: =VLOOKUP(CONCATENATE($C$4,$C$6,$I$9),BDD!$A:$Q,14,TRUE) -> 2.67 | J25: =VLOOKUP(CONCATENATE($C$4,$C$6,$J$9),BDD!$A:$Q,14,TRUE) -> 9 | K25: =VLOOKUP(CONCATENATE($C$4,$C$6,$K$9),BDD!$A:$Q,14,TRUE) -> 2.67 | L25: =VLOOKUP(CONCATENATE($C$4,$C$6,$L$9),BDD!$A:$Q,14,TRUE) -> 30.5 | M25: =VLOOKUP(CONCATENATE($C$4,$C$6,$M$9),BDD!$A:$Q,14,TRUE) -> 34.16 | N25: =VLOOKUP(CONCATENATE($C$4,$C$6,$N$9),BDD!$A:$Q,14,TRUE) -> 34.16 | O25: =VLOOKUP(CONCATENATE($C$4,$C$6,$O$9),BDD!$A:$Q,14,TRUE) -> 2.67 | P25: =VLOOKUP(CONCATENATE($C$4,$C$6,$P$9),BDD!$A:$Q,14,TRUE) -> 28 | Q25: =VLOOKUP(CONCATENATE($C$4,$C$6,$Q$9),BDD!$A:$Q,14,TRUE) -> 9 | R25: =VLOOKUP(CONCATENATE($C$4,$C$6,$R$9),BDD!$A:$Q,14,TRUE) -> 9 | S25: =VLOOKUP(CONCATENATE($C$4,$C$6,$S$9),BDD!$A:$Q,14,TRUE) -> 2.67 | T25: =HLOOKUP($C$4,INDIRECT("'"&"A REMPLIR - UTE "&$C$6&"'!"&"$D$33:$AA$52"),16,FALSE) -> 0 | U25: =IF(HLOOKUP(MONTH(TODAY()),H11:S28,15,FALSE)>HLOOKUP(MONTH(TODAY())-1,H11:S28,15,FALSE),1,-1) -> -1
B27: PROD. | D27: Efficacious | F27: % | G27: Mensuel | H27: =VLOOKUP(CONCATENATE($C$4,$C$6,$H$9),BDD!$A:$Q,15,TRUE) -> 0 | I27: =VLOOKUP(CONCATENATE($C$4,$C$6,$I$9),BDD!$A:$Q,15,TRUE) -> 0 | J27: =VLOOKUP(CONCATENATE($C$4,$C$6,$J$9),BDD!$A:$Q,15,TRUE) -> 0 | K27: =VLOOKUP(CONCATENATE($C$4,$C$6,$K$9),BDD!$A:$Q,15,TRUE) -> 0 | L27: =VLOOKUP(CONCATENATE($C$4,$C$6,$L$9),BDD!$A:$Q,15,TRUE) -> 0 | M27: =VLOOKUP(CONCATENATE($C$4,$C$6,$M$9),BDD!$A:$Q,15,TRUE) -> 0 | N27: =VLOOKUP(CONCATENATE($C$4,$C$6,$N$9),BDD!$A:$Q,15,TRUE) -> 0 | O27: =VLOOKUP(CONCATENATE($C$4,$C$6,$O$9),BDD!$A:$Q,15,TRUE) -> 0 | P27: =VLOOKUP(CONCATENATE($C$4,$C$6,$P$9),BDD!$A:$Q,15,TRUE) -> 0 | Q27: =VLOOKUP(CONCATENATE($C$4,$C$6,$Q$9),BDD!$A:$Q,15,TRUE) -> 0 | R27: =VLOOKUP(CONCATENATE($C$4,$C$6,$R$9),BDD!$A:$Q,15,TRUE) -> 0 | S27: =VLOOKUP(CONCATENATE($C$4,$C$6,$S$9),BDD!$A:$Q,15,TRUE) -> 0 | T27: =HLOOKUP($C$4,INDIRECT("'"&"A REMPLIR - UTE "&$C$6&"'!"&"$D$33:$AA$52"),18,FALSE) -> 0 | U27: =IF(HLOOKUP(MONTH(TODAY()),H11:S28,17,FALSE)>HLOOKUP(MONTH(TODAY())-1,H11:S28,17,FALSE),1,-1) -> -1
D28: Pertes | F28: Moteurs | G28: Mensuel | H28: =VLOOKUP(CONCATENATE($C$4,$C$6,$H$9),BDD!$A:$Q,16,TRUE) -> 0 | I28: =VLOOKUP(CONCATENATE($C$4,$C$6,$I$9),BDD!$A:$Q,16,TRUE) -> 0 | J28: =VLOOKUP(CONCATENATE($C$4,$C$6,$J$9),BDD!$A:$Q,16,TRUE) -> 0 | K28: =VLOOKUP(CONCATENATE($C$4,$C$6,$K$9),BDD!$A:$Q,16,TRUE) -> 0 | L28: =VLOOKUP(CONCATENATE($C$4,$C$6,$L$9),BDD!$A:$Q,16,TRUE) -> 0 | M28: =VLOOKUP(CONCATENATE($C$4,$C$6,$M$9),BDD!$A:$Q,16,TRUE) -> 0 | N28: =VLOOKUP(CONCATENATE($C$4,$C$6,$N$9),BDD!$A:$Q,16,TRUE) -> 0 | O28: =VLOOKUP(CONCATENATE($C$4,$C$6,$O$9),BDD!$A:$Q,16,TRUE) -> 0 | P28: =VLOOKUP(CONCATENATE($C$4,$C$6,$P$9),BDD!$A:$Q,16,TRUE) -> 0 | Q28: =VLOOKUP(CONCATENATE($C$4,$C$6,$Q$9),BDD!$A:$Q,16,TRUE) -> 0 | R28: =VLOOKUP(CONCATENATE($C$4,$C$6,$R$9),BDD!$A:$Q,16,TRUE) -> 0 | S28: =VLOOKUP(CONCATENATE($C$4,$C$6,$S$9),BDD!$A:$Q,16,TRUE) -> 0 | T28: =HLOOKUP($C$4,INDIRECT("'"&"A REMPLIR - UTE "&$C$6&"'!"&"$D$33:$AA$52"),19,FALSE) -> 0 | U28: =IF(HLOOKUP(MONTH(TODAY()),H11:S28,18,FALSE)>HLOOKUP(MONTH(TODAY())-1,H11:S28,18,FALSE),1,-1) -> -1
F31: OK, Objectif atteint
F32: NON OK, Objectif non atteint mais sera atteint avant la fin de l'année. Plan d'action avec contremesures engagé
F33: NON OK, Objectif non atteint et ne sera pas atteint à la fin de l'année. Plan d'action avec contremesures engagé

Sheet GRAPH
B4: ANNEE | C4: 2012
B6: UTE | C6: 31
B7: SECTION | C7: 32

Sheet PLAN D'ACTION
A2: ANNEE
A4: UTE
A6: Description anomalie | B6: Unité de mesure 1 | C6: Unité de mesure 2 | D6: Root cause | E6: Action | F6: Responsable | G6: Délai | H6: Avancée

Sheet BDD
A1: IDENTIFICATION Ligne | B1: Année | C1: Mois | D1: UTE | E1: LWDC | F1: FAI | G1: PULLS A | H1: PULLS B | I1: PULLS C | J1: ASSY A | K1: ASSY B | L1: ASSY C | M1: FTQ | N1: MAINTENANCE | O1: EFFICACITE | P1: NPMOP | Q1: APTP | T1: Utilisé pour formule | V1: 2011 | W1: 31 | Y1: Liste combo box 1
A2: =CONCATENATE(B2,D2,C2) -> 201131juillet | B2: 2011 | C2: juillet | D2: 31 | E2: =INDIRECT("'"&$T$2&" "&D2&"'!"&R2&$U$3) -> 0 | F2: =INDIRECT("'"&$T$2&" "&D2&"'!"&R2&$U$4) -> 0 | N2: =INDIRECT("'"&$T$2&" "&D2&"'!"&R2&$U$5) -> 67.85 | R2: D | T2: A REMPLIR - UTE | V2: 2012 | W2: 32 | Y2: UTE-31
A3: 201131août | B3: 2011 | C3: août | D3: 31 | E3: 0 | F3: 0 | N3: 0 | R3: E | U3: 4 | V3: 2013 | W3: 33 | Y3: UTE-32
A4: 201131septembre | B4: 2011 | C4: septembre | D4: 31 | E4: 0 | F4: 0 | N4: 72.24 | R4: F | U4: 5 | V4: 2014 | W4: 34 | Y4: UTE-33
A5: 201131octobre | B5: 2011 | C5: octobre | D5: 31 | E5: 0 | F5: 0 | N5: 28.84 | R5: G | U5: 26 | V5: 2015 | W5: 38 | Y5: UTE-34
A6: 201131novembre | B6: 2011 | C6: novembre | D6: 31 | E6: 0.85 | F6: 0 | N6: 38.26 | R6: H | U6: 8 | V6: 2016 | Y6: UTE-38
A7: 201131décembre | B7: 2011 | C7: décembre | D7: 31 | E7: 0.79 | F7: 0 | N7: 4.17 | R7: I | U7: 9 | V7: 2017
A8: 201132juillet | B8: 2011 | C8: juillet | D8: 32 | E8: 0 | F8: 1.42 | N8: 0 | R8: D | U8: 13 | V8: 2018
A9: 201132août | B9: 2011 | C9: août | D9: 32 | E9: 0 | F9: 0 | N9: 0 | R9: E | U9: 14 | V9: 2019
A10: 201132septembre | B10: 2011 | C10: septembre | D10: 32 | E10: 0 | F10: 1.22 | N10: 0 | R10: F | U10: 18 | V10: 2020
A11: 201132octobre | B11: 2011 | C11: octobre | D11: 32 | E11: 0 | F11: 1.09 | N11: 0 | R11: G | U11: 19 | V11: 2021
A12: 201132novembre | B12: 2011 | C12: novembre | D12: 32 | E12: 0 | F12: 0.97 | N12: 0 | R12: H | U12: 10 | V12: 2022
A13: 201132décembre | B13: 2011 | C13: décembre | D13: 32 | E13: 0 | F13: 0.91 | N13: 0 | R13: I | U13: 15 | V13: 2023
A14: 201133juillet | B14: 2011 | C14: juillet | D14: 33 | E14: 0 | F14: 0 | N14: 96.72 | R14: D | U14: 20 | V14: 2024
A15: 201133août | B15: 2011 | C15: août | D15: 33 | E15: 0 | F15: 0 | N15: 0 | R15: E | U15: 23 | V15: 2025
A16: 201133septembre | B16: 2011 | C16: septembre | D16: 33 | E16: 0 | F16: 0 | N16: 97.11 | R16: F | U16: 24 | V16: 2026
A17: 201133octobre | B17: 2011 | C17: octobre | D17: 33 | E17: 0 | F17: 0 | N17: 97.21 | R17: G | V17: 2027
A18: 201133novembre | B18: 2011 | C18: novembre | D18: 33 | E18: 0 | F18: 0 | N18: 97.58 | R18: H
A19: 201133décembre | B19: 2011 | C19: décembre | D19: 33 | E19: 0 | F19: 0 | N19: 97.85 | R19: I
A20: 201134juillet | B20: 2011 | C20: juillet | D20: 34 | E20: 0 | F20: 0 | N20: 0 | R20: D
A21: 201134août | B21: 2011 | C21: août | D21: 34 | E21: 0 | F21: 0 | N21: 0 | R21: E
A22: 201134septembre | B22: 2011 | C22: septembre | D22: 34 | E22: 0 | F22: 0 | N22: 0 | R22: F
A23: 201134octobre | B23: 2011 | C23: octobre | D23: 34 | E23: 0 | F23: 0 | N23: 0 | R23: G
A24: 201134novembre | B24: 2011 | C24: novembre | D24: 34 | E24: 0 | F24: 0 | N24: 0 | R24: H
A25: 201134décembre | B25: 2011 | C25: décembre | D25: 34 | E25: 0 | F25: 0 | N25: 0 | R25: I
A26: 201138juillet | B26: 2011 | C26: juillet | D26: 38 | E26: 0 | F26: 0 | N26: 0 | R26: D
A27: 201138août | B27: 2011 | C27: août | D27: 38 | E27: 0 | F27: 0 | N27: 0 | R27: E
A28: 201138septembre | B28: 2011 | C28: septembre | D28: 38 | E28: 0 | F28: 0 | N28: 0 | R28: F
A29: 201138octobre | B29: 2011 | C29: octobre | D29: 38 | E29: 0 | F29: 0 | N29: 0 | R29: G
A30: 201138novembre | B30: 2011 | C30: novembre | D30: 38 | E30: 0 | F30: 0 | N30: 0 | R30: H
A31: 201138décembre | B31: 2011 | C31: décembre | D31: 38 | E31: 0 | F31: 0 | N31: 0 | R31: I
A32: 201231janvier | B32: 2012 | C32: janvier | D32: 31 | E32: 0 | F32: 0 | G32: =IF(SUM(INDIRECT("'"&$T$2&" "&D32&"'!"&S32&$U$6&":"&R32&$U$6))=0,"",(SUM(INDIRECT("'"&$T$2&" "&D32&"'!"&S32&$U$7&":"&R32&$U$7))/SUM(INDIRECT("'"&$T$2&" "&D32&"'!"&S32&$U$6&":"&R32&$U$6))*1000000)) -> 0 | H32: =IF(SUM(INDIRECT("'"&$T$2&" "&D32&"'!"&S32&$U$8&":"&R32&$U$8))=0,"",(SUM(INDIRECT("'"&$T$2&" "&D32&"'!"&S32&$U$9&":"&R32&$U$9))/SUM(INDIRECT("'"&$T$2&" "&D32&"'!"&S32&$U$8&":"&R32&$U$8))*1000000)) -> 0 | I32: =IF(SUM(INDIRECT("'"&$T$2&" "&D32&"'!"&S32&$U$10&":"&R32&$U$10))=0,"",(SUM(INDIRECT("'"&$T$2&" "&D32&"'!"&S32&$U$11&":"&R32&$U$11))/SUM(INDIRECT("'"&$T$2&" "&D32&"'!"&S32&$U$10&":"&R32&$U$10))*1000000)) -> 0 | J32: =IF(SUM(INDIRECT("'"&$T$2&" "&D32&"'!"&S32&$U$6&":"&R32&$U$6))=0,"",(SUM(INDIRECT("'"&$T$2&" "&D32&"'!"&S32&$U$12&":"&R32&$U$12))/SUM(INDIRECT("'"&$T$2&" "&D32&"'!"&S32&$U$6&":"&R32&$U$6))*1000000)) -> 1585.623679 | K32: =IF(SUM(INDIRECT("'"&$T$2&" "&D32&"'!"&S32&$U$8&":"&R32&$U$8))=0,"",(SUM(INDIRECT("'"&$T$2&" "&D32&"'!"&S32&$U$13&":"&R32&$U$13))/SUM(INDIRECT("'"&$T$2&" "&D32&"'!"&S32&$U$8&":"&R32&$U$8))*1000000)) -> 744.6016381 | L32: =IF(SUM(INDIRECT("'"&$T$2&" "&D32&"'!"&S32&$U$10&":"&R32&$U$10))=0,"",(SUM(INDIRECT("'"&$T$2&" "&D32&"'!"&S32&$U$14&":"&R32&$U$14))/SUM(INDIRECT("'"&$T$2&" "&D32&"'!"&S32&$U$10&":"&R32&$U$10))*1000000)) -> 1793.721973 | M32: =IF(SUM(INDIRECT("'"&$T$2&" "&D32&"'!"&T32&$U$15&":"&R32&$U$15))=0,"",(1-(SUM(INDIRECT("'"&$T$2&" "&D32&"'!"&T32&$U$16&":"&R32&$U$16))/SUM(INDIRECT("'"&$T$2&" "&D32&"'!"&T32&$U$15&":"&R32&$U$15))))) -> 0.9927650204 | N32: 0 | R32: J | S32: E | T32: H
A33: 201231février | B33: 2012 | C33: février | D33: 31 | E33: 0 | F33: 0 | G33: 0 | H33: 0 | I33: 0 | J33: 1380.579844 | K33: 645.5777921 | L33: 1638.001638 | M33: 0.9933022714 | N33: 0 | R33: K | S33: F | T33: I
A34: 201231mars | B34: 2012 | C34: mars | D34: 31 | E34: 0 | F34: 0 | G34: 0 | H34: 0 | I34: 0 | J34: 487.3294347 | K34: 665.7789614 | L34: 942.5070688 | M34: 0.9930835735 | N34: 0 | R34: L | S34: G | T34: J
A35: 201231avril | B35: 2012 | C35: avril | D35: 31 | E35: 0 | F35: 0 | G35: 0 | H35: 0 | I35: 0 | J35: 469.4835681 | K35: 727.2727273 | L35: 999.000999 | M35: 0.9932791935 | N35: 61.77 | R35: M | S35: H | T35: K
A36: 201231mai | B36: 2012 | C36: mai | D36: 31 | E36: 0 | F36: 0 | G36: 0 | H36: 0 | I36: 0 | J36: 413.3939644 | K36: 802.5682183 | L36: 1061.571125 | M36: 0.9943880278 | N36: 0 | R36: N | S36: I | T36: L
A37: 201231juin | B37: 2012 | C37: juin | D37: 31 | E37: 0 | F37: 0 | G37: 0 | H37: 0 | I37: 0 | J37: 377.3584906 | K37: 801.2820513 | L37: 0 | M37: 0.9945219124 | N37: 12.36 | R37: O | S37: J | T37: M
A38: 201231juillet | B38: 2012 | C38: juillet | D38: 31 | E38: 0 | F38: 0 | G38: 0 | H38: 0 | I38: 0 | J38: 0 | K38: 706.7137809 | L38: 0 | M38: 0.995546759 | N38: 3.51 | R38: P | S38: K | T38: N
A39: 201231août | B39: 2012 | C39: août | D39: 31 | E39: 0 | F39: 0 | G39: 0 | H39: 0 | I39: 0 | J39: 0 | K39: 803.8585209 | L39: 0 | M39: 0.995720869 | N39: 14.17 | R39: Q | S39: L | T39: O
A40: 201231septembre | B40: 2012 | C40: septembre | D40: 31 | E40: 0 | F40: 0 | G40: 0 | H40: 0 | I40: 0 | J40: 0 | K40: 0 | L40: 0 | M40: 0.9963691377 | N40: 10.12 | R40: R | S40: M | T40: P
A41: 201231octobre | B41: 2012 | C41: octobre | D41: 31 | E41: 0 | F41: 0 | G41: 0 | H41: 0 | I41: 0 | J41: 0 | K41: 0 | L41: 0 | M41: 0.9952830189 | N41: 7.85 | R41: S | S41: N | T41: Q
A42: 201231novembre | B42: 2012 | C42: novembre | D42: 31 | E42: 0 | F42: 0 | G42: 0 | H42: 0 | I42: 0 | J42: 0 | K42: 0 | L42: 0 | M42: 0.9937611408 | N42: 8.17 | R42: T | S42: O | T42: R
A43: 201231décembre | B43: 2012 | C43: décembre | D43: 31 | E43: 0 | F43: 0 | G43: 0 | H43: 0 | I43: 0 | J43: 0 | K43: 0 | L43: 0 | M43: 0.9927855711 | N43: 0 | R43: U | S43: P | T43: S
A44: 201232janvier | B44: 2012 | C44: janvier | D44: 32 | E44: 0 | F44: 0 | G44: 0 | H44: 0 | I44: 0 | J44: 0 | K44: 0 | L44: 0 | M44: 0.9973881444 | N44: 0 | R44: J | S44: E | T44: H
A45: 201232février | B45: 2012 | C45: février | D45: 32 | E45: 0 | F45: 0 | G45: 0 | H45: 0 | I45: 0 | J45: 0 | K45: 0 | L45: 0 | M45: 0.9972938144 | N45: 0 | R45: K | S45: F | T45: I
A46: 201232mars | B46: 2012 | C46: mars | D46: 32 | E46: 0 | F46: 0 | G46: 0 | H46: 0 | I46: 0 | J46: 0 | K46: 0 | L46: 0 | M46: 0.9975922953 | N46: 0 | R46: L | S46: G | T46: J
A47: 201232avril | B47: 2012 | C47: avril | D47: 32 | E47: 0 | F47: 0 | G47: 0 | H47: 0 | I47: 0 | J47: 0 | K47: 0 | L47: 0 | M47: 0.9977596205 | N47: 0 | R47: M | S47: H | T47: K
A48: 201232mai | B48: 2012 | C48: mai | D48: 32 | E48: 0 | F48: 0 | G48: 0 | H48: 0 | I48: 0 | J48: 0 | K48: 0 | L48: 0 | M48: 0.9982764988 | N48: 0 | R48: N | S48: I | T48: L
A49: 201232juin | B49: 2012 | C49: juin | D49: 32 | E49: 0 | F49: 0 | G49: 0 | H49: 0 | I49: 0 | J49: 482.9751268 | K49: 0 | L49: 0 | M49: 0.9977882779 | N49: 0 | R49: O | S49: J | T49: M
A50: 201232juillet | B50: 2012 | C50: juillet | D50: 32 | E50: 0 | F50: 0 | G50: 0 | H50: 0 | I50: 0 | J50: 661.0841781 | K50: 0 | L50: 0 | M50: 0.9982857143 | N50: 0 | R50: P | S50: K | T50: N
A51: 201232août | B51: 2012 | C51: août | D51: 32 | E51: 0 | F51: 0 | G51: 0 | H51: 0 | I51: 0 | J51: 751.8796992 | K51: 0 | L51: 0 | M51: 0.9983326921 | N51: 2.94 | R51: Q | S51: L | T51: O
A52: 201232septembre | B52: 2012 | C52: septembre | D52: 32 | E52: 0 | F52: 11.7 | G52: 0 | H52: 0 | I52: 0 | J52: 802.3535705 | K52: 0 | L52: 0 | M52: 0.999157114 | N52: 22.54 | R52: R | S52: M | T52: P
A53: 201232octobre | B53: 2012 | C53: octobre | D53: 32 | E53: 0 | F53: 10.03 | G53: 0 | H53: 0 | I53: 0 | J53: 825.7638315 | K53: 0 | L53: 0 | M53: 0.9983748646 | N53: 21.31 | R53: S | S53: N | T53: Q
A54: 201232novembre | B54: 2012 | C54: novembre | D54: 32 | E54: 0 | F54: 6.32 | G54: 0 | H54: 0 | I54: 0 | J54: 873.1082654 | K54: 0 | L54: 0 | M54: 0.9980575868 | N54: 31.87 | R54: T | S54: O | T54: R
A55: 201232décembre | B55: 2012 | C55: décembre | D55: 32 | E55: 0 | F55: 4.72 | G55: 0 | H55: 0 | I55: 0 | J55: 323.4152652 | K55: 0 | L55: 0 | M55: 0.9974449058 | N55: 32.48 | R55: U | S55: P | T55: S
A56: 201233janvier | B56: 2012 | C56: janvier | D56: 33 | E56: 0 | F56: 0 | G56: 0 | H56: 0 | I56: 0 | J56: 879.5074758 | K56: 5524.861878 | L56: 108.2485386 | M56: 0.9959118783 | N56: 44.87 | R56: J | S56: E | T56: H
A57: 201233février | B57: 2012 | C57: février | D57: 33 | E57: 0 | F57: 0 | G57: 0 | H57: 0 | I57: 0 | J57: 768.442623 | K57: 4273.504274 | L57: 98.54158455 | M57: 0.9956185567 | N57: 6.09 | R57: K | S57: F | T57: I
A58: 201233mars | B58: 2012 | C58: mars | D58: 33 | E58: 0 | F58: 0 | G58: 0 | H58: 0 | I58: 0 | J58: 769.2307692 | K58: 0 | L58: 114.2595978 | M58: 0.9947833066 | N58: 30.08 | R58: L | S58: G | T58: J
A59: 201233avril | B59: 2012 | C59: avril | D59: 33 | E59: 0 | F59: 0 | G59: 0 | H59: 0 | I59: 0 | J59: 501.7561465 | K59: 0 | L59: 116.9453865 | M59: 0.9951238798 | N59: 41.7 | R59: M | S59: H | T59: K
A60: 201233mai | B60: 2012 | C60: mai | D60: 33 | E60: 0 | F60: 0 | G60: 0 | H60: 0 | I60: 0 | J60: 248.6943546 | K60: 0 | L60: 0 | M60: 0.9947063893 | N60: 1.09 | R60: N | S60: I | T60: L
A61: 201233juin | B61: 2012 | C61: juin | D61: 33 | E61: 0 | F61: 0 | G61: 0 | H61: 0 | I61: 0 | J61: 0 | K61: 0 | L61: 0 | M61: 0.9963808183 | N61: 46.46 | R61: O | S61: J | T61: M
A62: 201233juillet | B62: 2012 | C62: juillet | D62: 33 | E62: 0 | F62: 0 | G62: 0 | H62: 0 | I62: 0 | J62: 0 | K62: 0 | L62: 0 | M62: 0.9962857143 | N62: 25.06 | R62: P | S62: K | T62: N
A63: 201233août | B63: 2012 | C63: août | D63: 33 | E63: 0 | F63: 0 | G63: 0 | H63: 0 | I63: 0 | J63: 0 | K63: 4444.444444 | L63: 0 | M63: 0.996921893 | N63: 5.3 | R63: Q | S63: L | T63: O
A64: 201233septembre | B64: 2012 | C64: septembre | D64: 33 | E64: 0 | F64: 0 | G64: 0 | H64: 0 | I64: 111.6569897 | J64: 0 | K64: 4716.981132 | L64: 0 | M64: 0.995954147 | N64: 0 | R64: R | S64: M | T64: P
A65: 201233octobre | B65: 2012 | C65: octobre | D65: 33 | E65: 0 | F65: 0 | G65: 0 | H65: 0 | I65: 109.2179991 | J65: 0 | K65: 4237.288136 | L65: 109.2179991 | M65: 0.9956663055 | N65: 45.54 | R65: S | S65: N | T65: Q
A66: =CONCATENATE(B66,D66,C66) -> 201233novembre | B66: 2012 | C66: novembre | D66: 33 | E66: =INDIRECT("'"&$T$2&" "&D66&"'!"&R66&$U$3) -> 2.28 | F66: =INDIRECT("'"&$T$2&" "&D66&"'!"&R66&$U$4) -> 0 | G66: 0 | H66: 0 | I66: 101.9471914 | J66: 0 | K66: 4081.632653 | L66: 101.9471914 | M66: 0.9956581353 | N66: =INDIRECT("'"&$T$2&" "&D66&"'!"&R66&$U$5) -> 0 | R66: T | S66: O | T66: R
A67: 201233décembre | B67: 2012 | C67: décembre | D67: 33 | E67: 1.77 | F67: 0 | G67: 0 | H67: 0 | I67: 108.0613789 | J67: 0 | K67: 4504.504505 | L67: 108.0613789 | M67: 0.9954221229 | N67: 0 | R67: U | S67: P | T67: S
A68: 201234janvier | B68: 2012 | C68: janvier | D68: 34 | E68: 0 | F68: 0 | G68: 0 | H68: 0 | I68: 0 | J68: 293.1691586 | K68: 0 | L68: 0 | M68: 0.9994322053 | N68: 0 | R68: J | S68: E | T68: H
A69: 201234février | B69: 2012 | C69: février | D69: 34 | E69: 0 | F69: 0 | G69: 0 | H69: 0 | I69: 0 | J69: 256.147541 | K69: 0 | L69: 0 | M69: 0.9993556701 | N69: 0 | R69: K | S69: F | T69: I
A70: 201234mars | B70: 2012 | C70: mars | D70: 34 | E70: 0 | F70: 0 | G70: 0 | H70: 0 | I70: 0 | J70: 256.4102564 | K70: 0 | L70: 0 | M70: 0.9995987159 | N70: 0.91 | R70: L | S70: G | T70: J
A71: 201234avril | B71: 2012 | C71: avril | D71: 34 | E71: 0 | F71: 0 | G71: 0 | H71: 0 | I71: 0 | J71: 250.8780733 | K71: 0 | L71: 0 | M71: 0.9997364259 | N71: 0 | R71: M | S71: H | T71: K
A72: 201234mai | B72: 2012 | C72: mai | D72: 34 | E72: 0 | F72: 0 | G72: 0 | H72: 0 | I72: 0 | J72: 248.6943546 | K72: 0 | L72: 0 | M72: 1 | N72: 0 | R72: N | S72: I | T72: L
A73: 201234juin | B73: 2012 | C73: juin | D73: 34 | E73: 0 | F73: 0 | G73: 0 | H73: 0 | I73: 0 | J73: 240.9058058 | K73: 0 | L73: 0 | M73: 1 | N73: 0 | R73: O | S73: J | T73: M
A74: 201234juillet | B74: 2012 | C74: juillet | D74: 34 | E74: 0 | F74: 0 | G74: 0 | H74: 0 | I74: 0 | J74: 0 | K74: 0 | L74: 0 | M74: 1 | N74: 0 | R74: P | S74: K | T74: N
A75: 201234août | B75: 2012 | C75: août | D75: 34 | E75: 0 | F75: 0 | G75: 0 | H75: 0 | I75: 0 | J75: 0 | K75: 0 | L75: 0 | M75: 1 | N75: 0 | R75: Q | S75: L | T75: O
A76: 201234septembre | B76: 2012 | C76: septembre | D76: 34 | E76: 0 | F76: 0 | G76: 0 | H76: 0 | I76: 0 | J76: 0 | K76: 0 | L76: 0 | M76: 0.9998314228 | N76: 1.5 | R76: R | S76: M | T76: P
A77: 201234octobre | B77: 2012 | C77: octobre | D77: 34 | E77: 0 | F77: 0 | G77: 0 | H77: 0 | I77: 0 | J77: 0 | K77: 0 | L77: 0 | M77: 0.9998194294 | N77: 0 | R77: S | S77: N | T77: Q
A78: 201234novembre | B78: 2012 | C78: novembre | D78: 34 | E78: 0 | F78: 0 | G78: 0 | H78: 0 | I78: 0 | J78: 0 | K78: 0 | L78: 0 | M78: 0.9997714808 | N78: 0 | R78: T | S78: O | T78: R
A79: 201234décembre | B79: 2012 | C79: décembre | D79: 34 | E79: 0 | F79: 0 | G79: 0 | H79: 0 | I79: 0 | J79: 0 | K79: 0 | L79: 0 | M79: 0.9998935377 | N79: 0 | R79: U | S79: P | T79: S
A80: 201238janvier | B80: 2012 | C80: janvier | D80: 38 | E80: 0 | F80: 0 | G80: 0 | H80: 0 | I80: 0 | J80: 0 | K80: 657.4621959 | L80: 96.59036028 | M80: 0.9996662495 | N80: 116.52 | R80: J | S80: E | T80: H
A81: 201238février | B81: 2012 | C81: février | D81: 38 | E81: 0 | F81: 0 | G81: 0 | H81: 0 | I81: 0 | J81: 0 | K81: 0 | L81: 87.9584836 | M81: 0.9997319993 | N81: 92.3 | R81: K | S81: F | T81: I
A82: 201238mars | B82: 2012 | C82: mars | D82: 38 | E82: 0 | F82: 0 | G82: 0 | H82: 0 | I82: 0 | J82: 0 | K82: 0 | L82: 101.9056354 | M82: 0.9998172849 | N82: 67.65 | R82: L | S82: G | T82: J
A83: 201238avril | B83: 2012 | C83: avril | D83: 38 | E83: 0 | F83: 0 | G83: 0 | H83: 0 | I83: 0 | J83: 164.2845408 | K83: 0 | L83: 105.1303616 | M83: 0.9998207725 | N83: 118.27 | R83: M | S83: H | T83: K
A84: 201238mai | B84: 2012 | C84: mai | D84: 38 | E84: 0 | F84: 0 | G84: 0 | H84: 0 | I84: 0 | J84: 155.9819061 | K84: 0 | L84: 113.7009665 | M84: 0.999662874 | N84: 104.24 | R84: N | S84: I | T84: L
A85: 201238juin | B85: 2012 | C85: juin | D85: 38 | E85: 0 | F85: 0 | G85: 0 | H85: 0 | I85: 0 | J85: 147.0155837 | K85: 0 | L85: 0 | M85: 0.9996419108 | N85: 131.37 | R85: O | S85: J | T85: M
A86: 201238juillet | B86: 2012 | C86: juillet | D86: 38 | E86: 0 | F86: 0 | G86: 0 | H86: 0 | I86: 0 | J86: 139.8992725 | K86: 0 | L86: 0 | M86: 0.999587402 | N86: 63.98 | R86: P | S86: K | T86: N
A87: 201238août | B87: 2012 | C87: août | D87: 38 | E87: 0 | F87: 0 | G87: 0 | H87: 0 | I87: 0 | J87: 161.0046691 | K87: 0 | L87: 0 | M87: 0.9997231195 | N87: 13.76 | R87: Q | S87: L | T87: O
A88: 201238septembre | B88: 2012 | C88: septembre | D88: 38 | E88: 0 | F88: 0 | G88: 0 | H88: 0 | I88: 0 | J88: 161.9957881 | K88: 0 | L88: 0 | M88: 0.9996752192 | N88: 31.53 | R88: R | S88: M | T88: P
A89: 201238octobre | B89: 2012 | C89: octobre | D89: 38 | E89: 0 | F89: 0 | G89: 0 | H89: 0 | I89: 0 | J89: 0 | K89: 0 | L89: 0 | M89: 0.9998824359 | N89: 56.66 | R89: S | S89: N | T89: Q
A90: 201238novembre | B90: 2012 | C90: novembre | D90: 38 | E90: 0 | F90: 0 | G90: 0 | H90: 0 | I90: 0 | J90: 0 | K90: 0 | L90: 0 | M90: 0.9998357424 | N90: 98.52 | R90: T | S90: O | T90: R
A91: 201238décembre | B91: 2012 | C91: décembre | D91: 38 | E91: 0 | F91: 0 | G91: 0 | H91: 0 | I91: 0 | J91: 0 | K91: 0 | L91: 0 | M91: 0.99991629 | N91: 98.63 | R91: U | S91: P | T91: S
A92: 201331janvier | B92: 2013 | C92: janvier | D92: 31 | E92: 0 | F92: 0 | G92: 0 | H92: 0 | I92: 0 | J92: 0 | K92: 0 | L92: 0 | M92: 0.9934489403 | N92: 42.37 | R92: V | S92: Q | T92: T
A93: 201331février | B93: 2013 | C93: février | D93: 31 | E93: 0 | F93: 0 | G93: 0 | H93: 0 | I93: 1161.440186 | J93: 542.2993492 | K93: 0 | L93: 0 | M93: 0.9948586118 | N93: 7.44 | R93: W | S93: R | T93: U
A94: 201331mars | B94: 2013 | C94: mars | D94: 31 | E94: 0 | F94: 0 | G94: 0 | H94: 0 | I94: 1189.060642 | J94: 473.2607667 | K94: 0 | L94: 0 | M94: 0.9956221198 | N94: 0 | R94: X | S94: S | T94: V
A95: 201331avril | B95: 2013 | C95: avril | D95: 31 | E95: 0 | F95: 0 | G95: 0 | H95: 0 | I95: 1094.091904 | J95: 446.4285714 | K95: 0 | L95: 0 | M95: 0.9961129296 | N95: 40.85 | R95: Y | S95: T | T95: W
A96: 201331mai | B96: 2013 | C96: mai | D96: 31 | E96: 0 | F96: 1.32 | G96: =IF(SUM(INDIRECT("'"&$T$2&" "&D96&"'!"&S96&$U$6&":"&R96&$U$6))=0,"",(SUM(INDIRECT("'"&$T$2&" "&D96&"'!"&S96&$U$7&":"&R96&$U$7))/SUM(INDIRECT("'"&$T$2&" "&D96&"'!"&S96&$U$6&":"&R96&$U$6))*1000000)) -> 0 | H96: =IF(SUM(INDIRECT("'"&$T$2&" "&D96&"'!"&S96&$U$8&":"&R96&$U$8))=0,"",(SUM(INDIRECT("'"&$T$2&" "&D96&"'!"&S96&$U$9&":"&R96&$U$9))/SUM(INDIRECT("'"&$T$2&" "&D96&"'!"&S96&$U$8&":"&R96&$U$8))*1000000)) -> 0 | I96: =IF(SUM(INDIRECT("'"&$T$2&" "&D96&"'!"&S96&$U$10&":"&R96&$U$10))=0,"",(SUM(INDIRECT("'"&$T$2&" "&D96&"'!"&S96&$U$11&":"&R96&$U$11))/SUM(INDIRECT("'"&$T$2&" "&D96&"'!"&S96&$U$10&":"&R96&$U$10))*1000000)) -> 815.6606852 | J96: =IF(SUM(INDIRECT("'"&$T$2&" "&D96&"'!"&S96&$U$6&":"&R96&$U$6))=0,"",(SUM(INDIRECT("'"&$T$2&" "&D96&"'!"&S96&$U$12&":"&R96&$U$12))/SUM(INDIRECT("'"&$T$2&" "&D96&"'!"&S96&$U$6&":"&R96&$U$6))*1000000)) -> 370.3703704 | K96: =IF(SUM(INDIRECT("'"&$T$2&" "&D96&"'!"&S96&$U$8&":"&R96&$U$8))=0,"",(SUM(INDIRECT("'"&$T$2&" "&D96&"'!"&S96&$U$13&":"&R96&$U$13))/SUM(INDIRECT("'"&$T$2&" "&D96&"'!"&S96&$U$8&":"&R96&$U$8))*1000000)) -> 805.1529791 | L96: =IF(SUM(INDIRECT("'"&$T$2&" "&D96&"'!"&S96&$U$10&":"&R96&$U$10))=0,"",(SUM(INDIRECT("'"&$T$2&" "&D96&"'!"&S96&$U$14&":"&R96&$U$14))/SUM(INDIRECT("'"&$T$2&" "&D96&"'!"&S96&$U$10&":"&R96&$U$10))*1000000)) -> 815.6606852 | M96: =IF(SUM(INDIRECT("'"&$T$2&" "&D96&"'!"&T96&$U$15&":"&R96&$U$15))=0,"",(1-(SUM(INDIRECT("'"&$T$2&" "&D96&"'!"&T96&$U$16&":"&R96&$U$16))/SUM(INDIRECT("'"&$T$2&" "&D96&"'!"&T96&$U$15&":"&R96&$U$15))))) -> 0.9963013432 | N96: 52 | R96: Z | S96: U | T96: X
A97: 201331juin | B97: 2013 | C97: juin | D97: 31 | E97: 0 | F97: 1.04 | G97: 0 | H97: 0 | I97: 748.502994 | J97: 351.2469266 | K97: 702.7406887 | L97: 748.502994 | M97: 0.9964314036 | N97: 3 | R97: AA | S97: V | T97: Y
A98: 201331juillet | B98: 2013 | C98: juillet | D98: 31 | E98: 0 | F98: 0.87 | G98: 0 | H98: 0 | I98: 1567.398119 | J98: 672.2689076 | K98: 621.5040398 | L98: 783.6990596 | M98: 0.9967845659 | N98: 53 | R98: AB | S98: W | T98: Z
A99: 201331août | B99: 2013 | C99: août | D99: 31 | E99: 0 | F99: 0.84 | G99: 0 | H99: 0 | I99: 877.9631255 | J99: 387.7471888 | K99: 688.2312457 | L99: 877.9631255 | M99: 0.996836983 | N99: 0 | R99: AC | S99: X | T99: AA
A100: 201331septembre | B100: 2013 | C100: septembre | D100: 31 | E100: 0 | F100: 0.73 | G100: 0 | H100: 0 | I100: 784.9293564 | J100: 422.6542688 | K100: 632.1112516 | L100: 784.9293564 | M100: 0.9966066301 | N100: 0 | R100: AD | S100: Y | T100: AB
A101: 201331octobre | B101: 2013 | C101: octobre | D101: 31 | E101: 0 | F101: 0.62 | G101: 0 | H101: 0 | I101: 768.6395081 | J101: 903.7505648 | K101: 537.056928 | L101: 768.6395081 | M101: 0.9968261719 | N101: 70.38 | R101: AE | S101: Z | T101: AC
A102: 201331novembre | B102: 2013 | C102: novembre | D102: 31 | E102: 0 | F102: 0.55 | G102: 0 | H102: 491.6420846 | I102: 916.5902841 | J102: 1106.19469 | K102: 0 | L102: 916.5902841 | M102: 0.9970999659 | N102: 48.1 | R102: AF | S102: AA | T102: AD
A103: 201331décembre | B103: 2013 | C103: décembre | D103: 31 | E103: 0 | F103: 0.51 | G103: 0 | H103: 480.5382028 | I103: 903.3423668 | J103: 1287.830006 | K103: 480.5382028 | L103: 903.3423668 | M103: 0.9970631424 | N103: 2.67 | R103: AG | S103: AB | T103: AE
A104: 201332janvier | B104: 2013 | C104: janvier | D104: 32 | E104: 0 | F104: 0 | G104: 0 | H104: 0 | I104: 0 | J104: 0 | K104: 0 | L104: 0 | M104: 0.9974885346 | N104: 29.02 | R104: V | S104: Q | T104: T
A105: 201332février | B105: 2013 | C105: février | D105: 32 | E105: 0 | F105: 0 | G105: 0 | H105: 0 | I105: 0 | J105: 312.4023743 | K105: 0 | L105: 0 | M105: 0.9980407975 | N105: 34.16 | R105: W | S105: R | T105: U
A106: 201332mars | B106: 2013 | C106: mars | D106: 32 | E106: 0 | F106: 0 | G106: 0 | H106: 0 | I106: 0 | J106: 270.5627706 | K106: 0 | L106: 0 | M106: 0.9987704002 | N106: 31.67 | R106: X | S106: S | T106: V
A107: 201332avril | B107: 2013 | C107: avril | D107: 32 | E107: 0 | F107: 0 | G107: 0 | H107: 0 | I107: 0 | J107: 282.0874471 | K107: 0 | L107: 0 | M107: 0.9989809783 | N107: 25.17 | R107: Y | S107: T | T107: W
A108: 201332mai | B108: 2013 | C108: mai | D108: 32 | E108: 0 | F108: 0 | G108: 0 | H108: 0 | I108: 0 | J108: 272.7768685 | K108: 0 | L108: 0 | M108: 0.9991131382 | N108: 30.5 | R108: Z | S108: U | T108: X
A109: 201332juin | B109: 2013 | C109: juin | D109: 32 | E109: 0 | F109: 0 | G109: 0 | H109: 0 | I109: 0 | J109: 283.6879433 | K109: 0 | L109: 0 | M109: 0.9990198481 | N109: 28.56 | R109: AA | S109: V | T109: Y
A110: 201332juillet | B110: 2013 | C110: juillet | D110: 32 | E110: 0 | F110: 0 | G110: 0 | H110: 0 | I110: 0 | J110: 271.4440825 | K110: 0 | L110: 0 | M110: 0.9991811908 | N110: 38.65 | R110: AB | S110: W | T110: Z
A111: 201332août | B111: 2013 | C111: août | D111: 32 | E111: 0 | F111: 0 | G111: 0 | H111: 0 | I111: 0 | J111: 0 | K111: 0 | L111: 0 | M111: 0.9988590987 | N111: 9 | R111: AC | S111: X | T111: AA
A112: 201332septembre | B112: 2013 | C112: septembre | D112: 32 | E112: 0 | F112: 0 | G112: 0 | H112: 0 | I112: 0 | J112: 0 | K112: 0 | L112: 0 | M112: 0.9993034271 | N112: 28 | R112: AD | S112: Y | T112: AB
A113: 201332octobre | B113: 2013 | C113: octobre | D113: 32 | E113: 0 | F113: 0 | G113: 0 | H113: 0 | I113: 0 | J113: 0 | K113: 0 | L113: 0 | M113: 0.9992721097 | N113: 38.54 | R113: AE | S113: Z | T113: AC
A114: 201332novembre | B114: 2013 | C114: novembre | D114: 32 | E114: 0 | F114: 0 | G114: 0 | H114: 0 | I114: 0 | J114: 0 | K114: 0 | L114: 0 | M114: 0.9992267377 | N114: 41.57 | R114: AF | S114: AA | T114: AD
A115: 201332décembre | B115: 2013 | C115: décembre | D115: 32 | E115: 0 | F115: 0 | G115: 0 | H115: 0 | I115: 0 | J115: 0 | K115: 0 | L115: 0 | M115: 0.9987752026 | N115: 35.4 | R115: AG | S115: AB | T115: AE
A116: 201333janvier | B116: 2013 | C116: janvier | D116: 33 | E116: 0 | F116: 0 | G116: 0 | H116: 0 | I116: 110.5338786 | J116: 0 | K116: 4901.960784 | L116: 110.5338786 | M116: 0.9965057873 | N116: 42.6 | R116: V | S116: Q | T116: T
A117: 201333février | B117: 2013 | C117: février | D117: 33 | E117: 0 | F117: 0 | G117: 0 | H117: 0 | I117: 97.61811792 | J117: 312.4023743 | K117: 0 | L117: 97.61811792 | M117: 0.9970035727 | N117: 47.67 | R117: W | S117: R | T117: U
A118: 201333mars | B118: 2013 | C118: mars | D118: 33 | E118: 0 | F118: 0 | G118: 0 | H118: 0 | I118: 0 | J118: 270.5627706 | K118: 0 | L118: 100.7455168 | M118: 0.9980997094 | N118: 47.95 | R118: X | S118: S | T118: V
A119: 201333avril | B119: 2013 | C119: avril | D119: 33 | E119: 0 | F119: 0 | G119: 0 | H119: 0 | I119: 0 | J119: 282.0874471 | K119: 0 | L119: 0 | M119: 0.997509058 | N119: 0 | R119: Y | S119: T | T119: W
A120: 201333mai | B120: 2013 | C120: mai | D120: 33 | E120: 0 | F120: 0 | G120: 0 | H120: 0 | I120: 0 | J120: 272.7768685 | K120: 0 | L120: 0 | M120: 0.996705942 | N120: 44 | R120: Z | S120: U | T120: X
A121: 201333juin | B121: 2013 | C121: juin | D121: 33 | E121: 0 | F121: 0 | G121: 0 | H121: 0 | I121: 0 | J121: 567.3758865 | K121: 0 | L121: 0 | M121: 0.9965694683 | N121: 0 | R121: AA | S121: V | T121: Y
A122: 201333juillet | B122: 2013 | C122: juillet | D122: 33 | E122: 0 | F122: 0 | G122: 0 | H122: 0 | I122: 0 | J122: 542.888165 | K122: 0 | L122: 0 | M122: 0.9963738449 | N122: 53.6 | R122: AB | S122: W | T122: Z
A123: 201333août | B123: 2013 | C123: août | D123: 33 | E123: 0 | F123: 0 | G123: 0 | H123: 0 | I123: 0 | J123: 308.7372646 | K123: 0 | L123: 122.6542377 | M123: 0.9971477467 | N123: 18.75 | R123: AC | S123: X | T123: AA
A124: 201333septembre | B124: 2013 | C124: septembre | D124: 33 | E124: 0 | F124: 0 | G124: 0 | H124: 0 | I124: 0 | J124: 347.826087 | K124: 0 | L124: 109.4810598 | M124: 0.9967957648 | N124: 12 | R124: AD | S124: Y | T124: AB
A125: 201333octobre | B125: 2013 | C125: octobre | D125: 33 | E125: 0 | F125: 0 | G125: 0 | H125: 0 | I125: 0 | J125: 673.8544474 | K125: 0 | L125: 100.2807862 | M125: 0.9970884387 | N125: 54.9 | R125: AE | S125: Z | T125: AC
A126: 201333novembre | B126: 2013 | C126: novembre | D126: 33 | E126: 0 | F126: 0 | G126: 0 | H126: 0 | I126: 0 | J126: 683.2934745 | K126: 0 | L126: 93.09253398 | M126: 0.9969069508 | N126: 55.99 | R126: AF | S126: AA | T126: AD
A127: 201333décembre | B127: 2013 | C127: décembre | D127: 33 | E127: 0 | F127: 0 | G127: 0 | H127: 0 | I127: 0 | J127: 335.9086329 | K127: 0 | L127: 97.64671419 | M127: 0.9968908988 | N127: 1 | R127: AG | S127: AB | T127: AE
A128: 201334janvier | B128: 2013 | C128: janvier | D128: 34 | E128: 0 | F128: 0 | G128: 0 | H128: 0 | I128: 110.5338786 | J128: 0 | K128: 0 | L128: 0 | M128: 0.9997841804 | N128: 2.06 | R128: V | S128: Q | T128: T
A129: 201334février | B129: 2013 | C129: février | D129: 34 | E129: 0 | F129: 0 | G129: 0 | H129: 0 | I129: 97.61811792 | J129: 0 | K129: 4405.286344 | L129: 0 | M129: 0.9996675163 | N129: 0 | R129: W | S129: R | T129: U
A130: =CONCATENATE(B130,D130,C130) -> 201334mars | B130: 2013 | C130: mars | D130: 34 | E130: =INDIRECT("'"&$T$2&" "&D130&"'!"&R130&$U$3) -> 0 | F130: =INDIRECT("'"&$T$2&" "&D130&"'!"&R130&$U$4) -> 0 | G130: 0 | H130: 0 | I130: 99.44311854 | J130: 0 | K130: 4081.632653 | L130: 0 | M130: 0.9993710692 | N130: =INDIRECT("'"&$T$2&" "&D130&"'!"&R130&$U$5) -> 1.76 | R130: X | S130: S | T130: V
A131: 201334avril | B131: 2013 | C131: avril | D131: 34 | E131: 0 | F131: 0 | G131: 0 | H131: 0 | I131: 101.4404545 | J131: 0 | K131: 4329.004329 | L131: 0 | M131: 0.9993702771 | N131: 0 | R131: Y | S131: T | T131: W
A132: 201334mai | B132: 2013 | C132: mai | D132: 34 | E132: 0 | F132: 0 | G132: 0 | H132: 0 | I132: 108.8613107 | J132: 0 | K132: 4524.886878 | L132: 0 | M132: 0.9994079337 | N132: 3.85 | R132: Z | S132: U | T132: X
A133: 201334juin | B133: 2013 | C133: juin | D133: 34 | E133: 0 | F133: 0 | G133: 0 | H133: 0 | I133: 100.010001 | J133: 0 | K133: 4115.226337 | L133: 0 | M133: 0.9996517702 | N133: 5.5 | R133: AA | S133: V | T133: Y
A134: 201334juillet | B134: 2013 | C134: juillet | D134: 34 | E134: 0 | F134: 0 | G134: 0 | H134: 0 | I134: 0 | J134: 0 | K134: 4201.680672 | L134: 0 | M134: 0.9996700033 | N134: 10.95 | R134: AB | S134: W | T134: Z
A135: 201334août | B135: 2013 | C135: août | D135: 34 | E135: 0 | F135: 0 | G135: 0 | H135: 0 | I135: 0 | J135: 0 | K135: 0 | L135: 0 | M135: 0.9997343252 | N135: 0 | R135: AC | S135: X | T135: AA
A136: 201334septembre | B136: 2013 | C136: septembre | D136: 34 | E136: 0 | F136: 0 | G136: 0 | H136: 0 | I136: 0 | J136: 0 | K136: 0 | L136: 0 | M136: 0.9996212599 | N136: 0 | R136: AD | S136: Y | T136: AB
A137: 201334octobre | B137: 2013 | C137: octobre | D137: 34 | E137: 0 | F137: 0 | G137: 0 | H137: 0 | I137: 0 | J137: 0 | K137: 0 | L137: 0 | M137: 0.9996643169 | N137: 15.7 | R137: AE | S137: Z | T137: AC
A138: 201334novembre | B138: 2013 | C138: novembre | D138: 34 | E138: 0 | F138: 0 | G138: 0 | H138: 0 | I138: 0 | J138: 0 | K138: 0 | L138: 0 | M138: 0.9995183431 | N138: 10.9 | R138: AF | S138: AA | T138: AD
A139: 201334décembre | B139: 2013 | C139: décembre | D139: 34 | E139: 0 | F139: 0 | G139: 0 | H139: 0 | I139: 0 | J139: 0 | K139: 0 | L139: 0 | M139: 0.9995547244 | N139: 4 | R139: AG | S139: AB | T139: AE
A140: 201338janvier | B140: 2013 | C140: janvier | D140: 38 | E140: 0 | F140: 0 | G140: 0 | H140: 0 | I140: 0 | J140: 0 | K140: 0 | L140: 202.3881805 | M140: 0.9998322148 | N140: 128.7 | R140: V | S140: Q | T140: T
A141: 201338février | B141: 2013 | C141: février | D141: 38 | E141: 0 | F141: 0 | G141: 0 | H141: 0 | I141: 0 | J141: 0 | K141: 0 | L141: 177.0694998 | M141: 0.9998351875 | N141: 102.4 | R141: W | S141: R | T141: U
A142: 201338mars | B142: 2013 | C142: mars | D142: 38 | E142: 0 | F142: 0 | G142: 0 | H142: 0 | I142: 0 | J142: 0 | K142: 0 | L142: 270.6359946 | M142: 0.9997118156 | N142: 73.81 | R142: X | S142: S | T142: V
A143: 201338avril | B143: 2013 | C143: avril | D143: 38 | E143: 0 | F143: 0 | G143: 0 | H143: 0 | I143: 0 | J143: 0 | K143: 0 | L143: 273.7226277 | M143: 0.9995837958 | N143: 96.03 | R143: Y | S143: T | T143: W
A144: 201338mai | B144: 2013 | C144: mai | D144: 38 | E144: 0 | F144: 0 | G144: 0 | H144: 0 | I144: 0 | J144: 0 | K144: 0 | L144: 283.1524304 | M144: 0.9995581412 | N144: 202.59 | R144: Z | S144: U | T144: X
A145: 201338juin | B145: 2013 | C145: juin | D145: 38 | E145: 0 | F145: 0 | G145: 0 | H145: 0 | I145: 0 | J145: 0 | K145: 0 | L145: 260.7335303 | M145: 0.9996338606 | N145: 59 | R145: AA | S145: V | T145: Y
A146: 201338juillet | B146: 2013 | C146: juillet | D146: 38 | E146: 0 | F146: 0 | G146: 0 | H146: 0 | I146: 0 | J146: 0 | K146: 0 | L146: 89.00756564 | M146: 0.9997913043 | N146: 124.18 | R146: AB | S146: W | T146: Z
A147: 201338août | B147: 2013 | C147: août | D147: 38 | E147: 0 | F147: 0 | G147: 0 | H147: 0 | I147: 0 | J147: 0 | K147: 0 | L147: 104.8437828 | M147: 0.9997422237 | N147: 4 | R147: AC | S147: X | T147: AA
A148: 201338septembre | B148: 2013 | C148: septembre | D148: 38 | E148: 0 | F148: 0 | G148: 0 | H148: 0 | I148: 0 | J148: 0 | K148: 0 | L148: 0 | M148: 0.9998298162 | N148: 73 | R148: AD | S148: Y | T148: AB
A149: 201338octobre | B149: 2013 | C149: octobre | D149: 38 | E149: 0 | F149: 0 | G149: 0 | H149: 0 | I149: 0 | J149: 489.1570194 | K149: 0 | L149: 0 | M149: 0.9998465434 | N149: 105.46 | R149: AE | S149: Z | T149: AC
A150: 201338novembre | B150: 2013 | C150: novembre | D150: 38 | E150: 0 | F150: 0 | G150: 0 | H150: 0 | I150: 0 | J150: 523.6515971 | K150: 0 | L150: 0 | M150: 0.9998362356 | N150: 54.81 | R150: AF | S150: AA | T150: AD
A151: 201338décembre | B151: 2013 | C151: décembre | D151: 38 | E151: 0 | F151: 0.5 | G151: 0 | H151: 0 | I151: 0 | J151: 547.2455308 | K151: 0 | L151: 0 | M151: 0.9997119484 | N151: 106.76 | R151: AG | S151: AB | T151: AE
A152: 201431janvier | B152: 2014 | C152: janvier | D152: 31 | E152: 0 | F152: 0 | G152: 0 | H152: 569.8005698 | I152: 0 | J152: 754.7169811 | K152: 569.8005698 | L152: 1035.196687 | M152: 0.9964788732 | N152: 8.5 | R152: AH | S152: AC | T152: AF
A153: 201431février | B153: 2014 | C153: février | D153: 31 | E153: 0 | F153: 0 | G153: 0 | H153: 585.8230814 | I153: 0 | J153: 667.1114076 | K153: 585.8230814 | L153: 1048.218029 | M153: 0.9954597049 | N153: 8 | R153: AI | S153: AD | T153: AG
A154: 201431mars | B154: 2014 | C154: mars | D154: 31 | E154: 0 | F154: 0 | G154: 0 | H154: 745.1564829 | I154: 0 | J154: 849.617672 | K154: 745.1564829 | L154: 1300.390117 | M154: 0.9943082312 | N154: 17.77 | R154: AJ | S154: AE | T154: AH
A155: 201431avril | B155: 2014 | C155: avril | D155: 31 | E155: 0 | F155: 0 | G155: 0 | H155: 1069.518717 | I155: 0 | J155: 0 | K155: 1069.518717 | L155: 1721.170396 | M155: 0.993343574 | N155: 0 | R155: AK | S155: AF | T155: AI
A156: 201431mai | B156: 2014 | C156: mai | D156: 31 | E156: 0 | F156: 0 | G156: 0 | H156: 0 | I156: 0 | J156: 0 | K156: 2012.072435 | L156: 0 | M156: 0.9931350114 | N156: 1.5 | R156: AL | S156: AG | T156: AJ
A157: 201431juin | B157: 2014 | C157: juin | D157: 31 | E157: 0 | F157: 0 | G157: 0 | H157: 0 | I157: 0 | J157: 0 | K157: 0 | L157: 0 | M157: 0.9938949939 | N157: 3 | R157: AM | S157: AH | T157: AK
A158: 201431juillet | B158: 2014 | C158: juillet | D158: 31 | E158: 0 | F158: 0 | G158: 0 | H158: 0 | I158: 0 | J158: 0 | K158: 0 | L158: 0 | M158: 0.9942446043 | N158: 1.55 | R158: AN | S158: AI | T158: AL
A159: 201431août | B159: 2014 | C159: août | D159: 31 | E159: 0 | F159: 0 | G159: 0 | H159: 0 | I159: 0 | J159: 0 | K159: 0 | L159: 0 | M159: 0.9940405244 | N159: 7.7 | R159: AO | S159: AJ | T159: AM
A160: 201431septembre | B160: 2014 | C160: septembre | D160: 31 | E160: 0 | F160: 0 | G160: =IF(SUM(INDIRECT("'"&$T$2&" "&D160&"'!"&S160&$U$6&":"&R160&$U$6))=0,"",(SUM(INDIRECT("'"&$T$2&" "&D160&"'!"&S160&$U$7&":"&R160&$U$7))/SUM(INDIRECT("'"&$T$2&" "&D160&"'!"&S160&$U$6&":"&R160&$U$6))*1000000)) -> 0 | H160: =IF(SUM(INDIRECT("'"&$T$2&" "&D160&"'!"&S160&$U$8&":"&R160&$U$8))=0,"",(SUM(INDIRECT("'"&$T$2&" "&D160&"'!"&S160&$U$9&":"&R160&$U$9))/SUM(INDIRECT("'"&$T$2&" "&D160&"'!"&S160&$U$8&":"&R160&$U$8))*1000000)) -> 0 | I160: =IF(SUM(INDIRECT("'"&$T$2&" "&D160&"'!"&S160&$U$10&":"&R160&$U$10))=0,"",(SUM(INDIRECT("'"&$T$2&" "&D160&"'!"&S160&$U$11&":"&R160&$U$11))/SUM(INDIRECT("'"&$T$2&" "&D160&"'!"&S160&$U$10&":"&R160&$U$10))*1000000)) -> 0 | J160: =IF(SUM(INDIRECT("'"&$T$2&" "&D160&"'!"&S160&$U$6&":"&R160&$U$6))=0,"",(SUM(INDIRECT("'"&$T$2&" "&D160&"'!"&S160&$U$12&":"&R160&$U$12))/SUM(INDIRECT("'"&$T$2&" "&D160&"'!"&S160&$U$6&":"&R160&$U$6))*1000000)) -> 0 | K160: =IF(SUM(INDIRECT("'"&$T$2&" "&D160&"'!"&S160&$U$8&":"&R160&$U$8))=0,"",(SUM(INDIRECT("'"&$T$2&" "&D160&"'!"&S160&$U$13&":"&R160&$U$13))/SUM(INDIRECT("'"&$T$2&" "&D160&"'!"&S160&$U$8&":"&R160&$U$8))*1000000)) -> 0 | L160: =IF(SUM(INDIRECT("'"&$T$2&" "&D160&"'!"&S160&$U$10&":"&R160&$U$10))=0,"",(SUM(INDIRECT("'"&$T$2&" "&D160&"'!"&S160&$U$14&":"&R160&$U$14))/SUM(INDIRECT("'"&$T$2&" "&D160&"'!"&S160&$U$10&":"&R160&$U$10))*1000000)) -> 0 | M160: =IF(SUM(INDIRECT("'"&$T$2&" "&D160&"'!"&T160&$U$15&":"&R160&$U$15))=0,"",(1-(SUM(INDIRECT("'"&$T$2&" "&D160&"'!"&T160&$U$16&":"&R160&$U$16))/SUM(INDIRECT("'"&$T$2&" "&D160&"'!"&T160&$U$15&":"&R160&$U$15))))) -> 0.9945945946 | N160: 5.5 | R160: AP | S160: AK | T160: AN
A161: 201431octobre | B161: 2014 | C161: octobre | D161: 31 | E161: 0 | F161: 0 | G161: 0 | H161: 0 | I161: 0 | J161: 0 | K161: 0 | L161: 0 | M161: 0.9948320413 | N161: 0 | R161: AQ | S161: AL | T161: AO
A162: 201431novembre | B162: 2014 | C162: novembre | D162: 31 | E162: 0 | F162: 0 | G162: 0 | H162: 0 | I162: 0 | J162: 0 | K162: 0 | L162: 4926.108374 | M162: 0.9955506118 | N162: 0 | R162: AR | S162: AM | T162: AP
A163: 201431décembre | B163: 2014 | C163: décembre | D163: 31 | E163: 0 | F163: 0 | G163: 0 | H163: 0 | I163: 0 | J163: 0 | K163: 0 | L163: 5154.639175 | M163: 0.9944521498 | N163: 25.75 | R163: AS | S163: AN | T163: AQ
A164: 201432janvier | B164: 2014 | C164: janvier | D164: 32 | E164: 0 | F164: 0 | G164: 0 | H164: 0 | I164: 0 | J164: 0 | K164: 0 | L164: 0 | M164: 0.9983217722 | N164: 73 | R164: AH | S164: AC | T164: AF
A165: 201432février | B165: 2014 | C165: février | D165: 32 | E165: 0 | F165: 0 | G165: 0 | H165: 0 | I165: 0 | J165: 0 | K165: 0 | L165: 0 | M165: 0.9982462294 | N165: 125 | R165: AI | S165: AD | T165: AG
A166: 201432mars | B166: 2014 | C166: mars | D166: 32 | E166: 0 | F166: 0 | G166: 0 | H166: 0 | I166: 0 | J166: 0 | K166: 0 | L166: 0 | M166: 0.9984549167 | N166: 122.5 | R166: AJ | S166: AE | T166: AH
A167: 201432avril | B167: 2014 | C167: avril | D167: 32 | E167: 0 | F167: 0 | G167: 0 | H167: 0 | I167: 0 | J167: 0 | K167: 0 | L167: 0 | M167: 0.9986684421 | N167: 116.5 | R167: AK | S167: AF | T167: AI
A168: 201432mai | B168: 2014 | C168: mai | D168: 32 | E168: 0 | F168: 0 | G168: 0 | H168: 0 | I168: 0 | J168: 366.8378577 | K168: 0 | L168: 0 | M168: 0.9985371206 | N168: 203 | R168: AL | S168: AG | T168: AJ
A169: 201432juin | B169: 2014 | C169: juin | D169: 32 | E169: 0 | F169: 0 | G169: 0 | H169: 0 | I169: 0 | J169: 384.4675125 | K169: 0 | L169: 97.38994936 | M169: 0.9984596765 | N169: 257 | R169: AM | S169: AH | T169: AK
A170: 201432juillet | B170: 2014 | C170: juillet | D170: 32 | E170: 0 | F170: 0 | G170: 0 | H170: 0 | I170: 0 | J170: 355.4923569 | K170: 0 | L170: 92.18289086 | M170: 0.9987600744 | N170: 175 | R170: AN | S170: AI | T170: AL
A171: 201432août | B171: 2014 | C171: août | D171: 32 | E171: 0 | F171: 0 | G171: 0 | H171: 0 | I171: 0 | J171: 454.1326067 | K171: 0 | L171: 101.2248203 | M171: 0.9986566362 | N171: 37.5 | R171: AO | S171: AJ | T171: AM
A172: 201432septembre | B172: 2014 | C172: septembre | D172: 32 | E172: 0 | F172: 0.92 | G172: 0 | H172: 0 | I172: 0 | J172: 487.3294347 | K172: 0 | L172: 99.65122073 | M172: 0.9988392339 | N172: 230.5 | R172: AP | S172: AK | T172: AN
A173: 201432octobre | B173: 2014 | C173: octobre | D173: 32 | E173: 0 | F173: 0.8 | G173: 0 | H173: 0 | I173: 0 | J173: 599.1611744 | K173: 0 | L173: 94.63423867 | M173: 0.9984751449 | N173: 227.23 | R173: AQ | S173: AL | T173: AO
A174: 201432novembre | B174: 2014 | C174: novembre | D174: 32 | E174: 0 | F174: 0.76 | G174: 0 | H174: 0 | I174: 0 | J174: 0 | K174: 0 | L174: 103.5732781 | M174: 0.998640935 | N174: 59.22 | R174: AR | S174: AM | T174: AP
A175: 201432décembre | B175: 2014 | C175: décembre | D175: 32 | E175: 0 | F175: 0.71 | G175: 0 | H175: 0 | I175: 0 | J175: 0 | K175: 0 | L175: 0 | M175: 0.9984858681 | N175: 133.94 | R175: AS | S175: AN | T175: AQ
A176: 201433janvier | B176: 2014 | C176: janvier | D176: 33 | E176: 0 | F176: 0 | G176: 0 | H176: 0 | I176: 0 | J176: 270.7092583 | K176: 0 | L176: 110.570544 | M176: 0.9966435444 | N176: 0 | R176: AH | S176: AC | T176: AF
A177: 201433février | B177: 2014 | C177: février | D177: 33 | E177: 0 | F177: 0 | G177: 0 | H177: 0 | I177: 0 | J177: 201.6942315 | K177: 0 | L177: 105.3851828 | M177: 0.9961417047 | N177: 1 | R177: AI | S177: AD | T177: AG
A178: 201433mars | B178: 2014 | C178: mars | D178: 33 | E178: 0 | F178: 0 | G178: 0 | H178: 0 | I178: 0 | J178: 204.0399918 | K178: 0 | L178: 212.472113 | M178: 0.9954751131 | N178: 4.5 | R178: AJ | S178: AE | T178: AH
A179: 201433avril | B179: 2014 | C179: avril | D179: 33 | E179: 0 | F179: 0 | G179: 0 | H179: 0 | I179: 0 | J179: 0 | K179: 0 | L179: 245.3084754 | M179: 0.9950066578 | N179: 0 | R179: AK | S179: AF | T179: AI
A180: 201433mai | B180: 2014 | C180: mai | D180: 33 | E180: 0 | F180: 0 | G180: 0 | H180: 0 | I180: 0 | J180: 0 | K180: 0 | L180: 373.3200597 | M180: 0.994879922 | N180: 0 | R180: AL | S180: AG | T180: AJ
A181: 201433juin | B181: 2014 | C181: juin | D181: 33 | E181: 0 | F181: 0 | G181: 0 | H181: 0 | I181: 0 | J181: 0 | K181: 0 | L181: 356.4215279 | M181: 0.9950489603 | N181: 50 | R181: AM | S181: AH | T181: AK
A182: 201433juillet | B182: 2014 | C182: juillet | D182: 33 | E182: 0 | F182: 0 | G182: 0 | H182: 0 | I182: 0 | J182: 0 | K182: 0 | L182: 298.2403817 | M182: 0.9950402976 | N182: 0 | R182: AN | S182: AI | T182: AL
A183: 201433août | B183: 2014 | C183: août | D183: 33 | E183: 0 | F183: 0 | G183: 0 | H183: 0 | I183: 0 | J183: 0 | K183: 0 | L183: 202.4496407 | M183: 0.995029554 | N183: 4 | R183: AO | S183: AJ | T183: AM
A184: 201433septembre | B184: 2014 | C184: septembre | D184: 33 | E184: 0 | F184: 0 | G184: 0 | H184: 0 | I184: 0 | J184: 0 | K184: 0 | L184: 99.65122073 | M184: 0.9950667441 | N184: 6 | R184: AP | S184: AK | T184: AN
A185: 201433octobre | B185: 2014 | C185: octobre | D185: 33 | E185: 0 | F185: 0 | G185: 0 | H185: 0 | I185: 0 | J185: 0 | K185: 0 | L185: 94.63423867 | M185: 0.9951204636 | N185: 56.81 | R185: AQ | S185: AL | T185: AO
A186: 201433novembre | B186: 2014 | C186: novembre | D186: 33 | E186: 0 | F186: 0 | G186: 0 | H186: 0 | I186: 0 | J186: 0 | K186: 0 | L186: 0 | M186: 0.9949714596 | N186: 20.58 | R186: AR | S186: AM | T186: AP
A187: 201433décembre | B187: 2014 | C187: décembre | D187: 33 | E187: 0 | F187: 0.57 | G187: 0 | H187: 0 | I187: 0 | J187: 699.3006993 | K187: 0 | L187: 0 | M187: 0.9949528937 | N187: 81.02 | R187: AS | S187: AN | T187: AQ
A188: 201434janvier | B188: 2014 | C188: janvier | D188: 34 | E188: 0 | F188: 0 | G188: 0 | H188: 0 | I188: 0 | J188: 0 | K188: 0 | L188: 0 | M188: 0.9994667804 | N188: 7 | R188: AH | S188: AC | T188: AF
A189: 201434février | B189: 2014 | C189: février | D189: 34 | E189: 0 | F189: 0 | G189: 0 | H189: 0 | I189: 0 | J189: 0 | K189: 0 | L189: 0 | M189: 0.9996674058 | N189: 54.25 | R189: AI | S189: AD | T189: AG
A190: 201434mars | B190: 2014 | C190: mars | D190: 34 | E190: 0 | F190: 0 | G190: 0 | H190: 0 | I190: 0 | J190: 500.2501251 | K190: 0 | L190: 0 | M190: 0.9996884735 | N190: 0 | R190: AJ | S190: AE | T190: AH
A191: 201434avril | B191: 2014 | C191: avril | D191: 34 | E191: 0 | F191: 0 | G191: 0 | H191: 0 | I191: 0 | J191: 789.6814951 | K191: 0 | L191: 0 | M191: 0.999586264 | N191: 0 | R191: AK | S191: AF | T191: AI
A192: 201434mai | B192: 2014 | C192: mai | D192: 34 | E192: 0 | F192: 0 | G192: 0 | H192: 0 | I192: 0 | J192: 818.3306056 | K192: 0 | L192: 0 | M192: 0.9995443672 | N192: 1.5 | R192: AL | S192: AG | T192: AJ
A193: 201434juin | B193: 2014 | C193: juin | D193: 34 | E193: 0 | F193: 0 | G193: 0 | H193: 0 | I193: 0 | J193: 1146.460304 | K193: 0 | L193: 0 | M193: 0.9995798319 | N193: 0 | R193: AM | S193: AH | T193: AK
A194: =CONCATENATE(B194,D194,C194) -> 201434juillet | B194: 2014 | C194: juillet | D194: 34 | E194: =INDIRECT("'"&$T$2&" "&D194&"'!"&R194&$U$3) -> 0 | F194: =INDIRECT("'"&$T$2&" "&D194&"'!"&R194&$U$4) -> 0 | G194: 0 | H194: 0 | I194: 0 | J194: 1040.041602 | K194: 0 | L194: 0 | M194: 0.9997044917 | N194: =INDIRECT("'"&$T$2&" "&D194&"'!"&R194&$U$5) -> 0 | R194: AN | S194: AI | T194: AL
A195: 201434août | B195: 2014 | C195: août | D195: 34 | E195: 0 | F195: 0 | G195: 0 | H195: 0 | I195: 0 | J195: 1303.356142 | K195: 0 | L195: 0 | M195: 0.9996190476 | N195: 0 | R195: AO | S195: AJ | T195: AM
A196: 201434septembre | B196: 2014 | C196: septembre | D196: 34 | E196: 0 | F196: 0 | G196: 0 | H196: 0 | I196: 0 | J196: 711.4905727 | K196: 0 | L196: 0 | M196: 0.9995923913 | N196: 39.5 | R196: AP | S196: AK | T196: AN
A197: 201434octobre | B197: 2014 | C197: octobre | D197: 34 | E197: 0 | F197: 0 | G197: 0 | H197: 0 | I197: 0 | J197: 426.4392324 | K197: 0 | L197: 0 | M197: 0.9995660978 | N197: 5.22 | R197: AQ | S197: AL | T197: AO
A198: 201434novembre | B198: 2014 | C198: novembre | D198: 34 | E198: 0 | F198: 0 | G198: 0 | H198: 0 | I198: 0 | J198: 502.5125628 | K198: 0 | L198: 0 | M198: 0.9997389715 | N198: 6.18 | R198: AR | S198: AM | T198: AP
A199: 201434décembre | B199: 2014 | C199: décembre | D199: 34 | E199: 0 | F199: 0 | G199: 0 | H199: 0 | I199: 0 | J199: 467.2897196 | K199: 0 | L199: 0 | M199: 0.9996791787 | N199: 48.24 | R199: AS | S199: AN | T199: AQ
A200: 201438janvier | B200: 2014 | C200: janvier | D200: 38 | E200: 0 | F200: 0 | G200: 0 | H200: 0 | I200: 0 | J200: 634.2494715 | K200: 0 | L200: 0 | M200: 0.9995776135 | N200: 94.3 | R200: AH | S200: AC | T200: AF
... 491 more rows

Sheet BDDPA
A1: Code | B1: N° Action | C1: UTE | D1: Année | E1: Description anomalie | F1: Unité de mesure | H1: Root cause | I1: Action | J1: Responsable | K1: Délai | L1: Avancée
A2: =CONCATENATE(D2,C2,B2) -> 2013311 | B2: 1 | C2: 31 | D2: 2013 | E2: Fuite d'huile par joint de couvre culasse, joint détérioré => Client ZEDELGEM CNH | F2: CPI | H2: Erreur humaine suite à un manque de connaissance du process | I2: Formation sur le respect du process de montage : Mise en place des guides et respect de l'ordre de serrage | J2: RUTE | K2: 2014-01-21 | L2: -
A3: =CONCATENATE(D3,C3,B3) -> 2013312 | B3: 2 | C3: 31 | D3: 2013 | E3: Manque raccord sur compresseur => Client IRISBUS KAROSA | F3: CPI | H3: Oubli montage suite à manque d'information au poste | I3: Mise en place du badgeage palmar de ce composant | J3: DUCREUX J-F | K3: 2014-02-26 | L3: -
A4: 2013313 | B4: 3 | C4: 31 | D4: 2013 | E4: Carter de distribution NC à la variante => Client MADRID IVECO | F4: CPI | H4: Erreur humaine lors de la préparation | I4: Réorganisation du poste de préparation | J4: RUTE | K4: 2014-03-01 | L4: -
A5: 2013314 | B5: 4 | C5: 31 | D5: 2013 | E5: Gicleur de refroidissement non serré => Client IRISBUS ANNONAY | F5: CPI | H5: Erreur humaine lors du serrage | I5: Installation d'une visseuse nouvelle génération | J5: RUTE | K5: 2014-01-31 | L5: -
A6: 2014311 | B6: 1 | C6: 31 | D6: 2014 | E6: Manque support clim | F6: CPI | H6: Erreur humaine lors du serrage | I6: Mise en place badgeage avec palmar le 16/05 + Réalisation de Kaizen | J6: DUCREUX J-F | K6: 2014-05-19 | L6: -
A7: 2014312 | B7: 2 | C7: 31 | D7: 2014 | E7: Tube de transfert non serré | F7: CPI | H7: Oubli montage suite à manque d'information au poste | I7: Ajout pt dans check liste Quality check + Réalisation Kaizen | J7: DUCREUX J-F | K7: 2014-05-15 | L7: -
A8: 2016311 | B8: 1 | C8: 31 | D8: 2016 | E8: Commande ventilateur non serrée sur le bloc moteur (Client IVECO) | G8: CPI | H8: Oubli de l'opération de serrage de l'opérateur | I8: AT = Mise en place d'un trait vert lors du serrage du composant + ajout d'un point de contrôle au QC. + AD = Installation d'une visseuse reliée à Concentrator. | J8: MASQUELET E. + JACOB F. | K8: 15/03/2016 + 12 semaines après commande | L8: -
A9: 2012321 | B9: 1 | C9: 32 | D9: 2012 | E9: Support alternateur inférieur non conforme à la variante | F9: CPI | H9: Erreur humaine lors de la phase de prélévement en bord de ligne | I9: Mise en place séquencé (JIS) avec système PMS puis attribution au moteur par badgeage étiquette code barre (auto-généré + matricule) | J9: ICT | K9: 2012-09-03 | L9: -
A10: 2012322 | B10: 2 | C10: 32 | D10: 2012 | E10: FAI du 11/09/12 | H10: Equipement non adapté | I10: Modification du système de déverrouillage de la plaque : allongement de la gachette sur la poignée afin d'éloigner la main du suppport moteur. Modif. Réalisée sur un chariot. A étendre aux autres chariots de la ligne SHORT. | J10: JUNGHEIN RICH | K10: 2012-12-31 | L10: -
A11: 2012323 | B11: 3 | C11: 32 | D11: 2012 | E11: FAI du 04/10/12 | H11: Méthode de travail complexe : si arrêt du cycle de dévissage avant fin du programme, reprise à zéro du programme. Formation non adaptée : les opérateurs ne se souviennent pas de ce point (communiqué lors de l'installation de la visseuse) | I11: Action sur le principe de la visseuse impossible, commun à tous les types de visseuses (STANLEY ou ATLAS Copco). Modification du programme de la visseuse : Phase de dévissage de la vis centrale divisée en 2 étapes dont la dernière est limitée à 8 Nm. + Avertissement notifié dans la fiche de poste : " NE JAMAIS LACHER LA GACHETTE DE LA VISSEUSE AVANT LA FIN DU PROGRAMME. Risque de violent à-coup." | J11: Staff Technique UOM + HSE | K11: 12/10/2012 + 08/10/2012 | L11: -
A12: 2012324 | B12: 4 | C12: 32 | D12: 2012 | E12: Manque support alternateur | F12: CPI | H12: Erreur humaine lors de la phase de prélévement en bord de ligne | I12: Mise en place séquencé (JIS) avec système PMS puis attribution au moteur par badgeage étiquette code barre (auto-généré + matricule) | J12: ICT | K12: 2012-09-03 | L12: -
A13: 2012325 | B13: 5 | C13: 32 | D13: 2012 | E13: Volant moteur non conforme à la variante | F13: CPI | H13: Erreur humaine lors de la phase de prélévement en bord de ligne | I13: Mise en place séquencé (JIS) avec système PMS puis attribution au moteur par badgeage étiquette code barre (auto-généré + matricule) | J13: ICT | K13: 2012-09-03 | L13: -
A14: 2014321 | B14: 1 | C14: 32 | D14: 2014 | E14: FAI du 30/09/2014 Main gauche coincée lors du montage du volant moteur | F14: FAI | G14: TF | H14: UA : Main positionnée sous le volant moteur | I14: Réalisation TWTTP | J14: RUTE 32 | K14: S.42 | L14: -
A15: 2016321 | B15: 1 | C15: 32 | D15: 2016 | E15: Perte manœuvre suite à disfonctionnement robot serrage culasse | G15: Heures | H15: Pas de présence moteur au poste suite à problèmes de détection | I15: Mise en place de détecteur avec plage de détection plus importante | J15: Theveniau M. | K15: Février | L15: -
A16: 2016322 | B16: 2 | C16: 32 | D16: 2016 | E16: Perte manœuvre suite à disfonctionnement robot serrage culasse | G16: Heures | H16: Mouvement du moteur pendant le cycle de serrage | I16: Rajout d'1 pion de centrage + intervention de COMAU pour contrôle des jeux | J16: Theveniau M. | K16: Février | L16: -
A17: 2012331 | B17: 1 | C17: 33 | D17: 2012 | E17: Grippage moteur suite à compresseur d'air non serré | F17: CPI | H17: Erreur humaine oubli de la phase de serrage (réalisation seulement de l'approche avec visseuse électrique) | I17: Mise en place point qualité + double contrôle à 100% effectué par un autre opérateur + Prévision achat clé à radio-fréquence (02/2013) | J17: RUTE Szymanski Y | K17: 24/10/2012 + 02/2013 | L17: -
A18: 2012332 | B18: 2 | C18: 33 | D18: 2012 | E18: Vis fixation support hydraulique NC (trop courte) | F18: CPI | H18: Erreur humaine lors du prélévement en bord de ligne | I18: Changement de localisation des vis pour appro en JIS avec support hydraulique | J18: RUTE Vichard L | K18: 2012-11-22 | L18: -
A19: 2012333 | B19: 3 | C19: 33 | D19: 2012 | E19: Tube eau turbo insuffisament serré | F19: CPI | H19: Erreur humaine lors de la phase de serrage => Utilisation d'une clé dynamométrique non prévue pour ce serrage | I19: Modification du process avec changement localisation d'une opération de serrage afin de ne conserver qu'une seule clé dynamométrique (avec embout de 22) au poste | J19: RUTE MO | K19: 2012-11-19 | L19: -
A20: 2012334 | B20: 4 | C20: 33 | D20: 2012 | E20: LWDC du 27/11/12 | F20: IF | H20: Erreur humaine => Non respect règles de conduite transpalette | I20: Entretien avec l'opérateur et son responsable, au retour de la victime. + Rappel des règles de conduite (validation par signature sur le cahier de prévention) | J20: HSE + RUTE | K20: 2012-11-30 | L20: -
A21: 2013331 | B21: 1 | C21: 33 | D21: 2013 | E21: Câble interne culasse injecteur pincé par couvre-culasse (CNH Grand Island) | F21: CPI | H21: Erreur humain lors de la phase de montage + Absence de procédure définissant le montage | I21: Création procédure sous forme de Point Qualité | J21: DE SOUSA E. | K21: 2013-06-10 | L21: -
A22: 2013332 | B22: 2 | C22: 33 | D22: 2013 | E22: Fuite par régulateur de pression d'huile (joint coupé) | F22: CPI | H22: Joint coupé suite à déformation (testé trop longtemps sur guide et montage immédiat sur moteur) | I22: Création OPL spécifiant qu'une avance d'ensembles préparés doit toujours être présent au poste (le temps que le joint reprenne sa forme initiale) | J22: RUTE | K22: 2013-07-03 | L22: -
A23: 2013333 | B23: 3 | C23: 33 | D23: 2013 | E23: Fuite d'huile parcouvercle d'obturation sur carter volant (joint coupé) | F23: CPI | H23: Joint coupé lors de l'opération de montage, jointo'ring mal adapté | I23: Etanchéité de la plaque sur carter volant avec un cordon de loctite | J23: RUTE | K23: 2013-12-15 | L23: -
A24: 2015331 | B24: 1 | C24: 33 | D24: 2015 | E24: Fuite d'eau par la culasse du compresseur d'air : les 2 vis supérieures du support tube gasoil non conforme, trop longue de 2mm ce qui a soulevé la culasse (201167) | G24: CPI | H24: Erreur de composant | I24: AD : Suppression d'une référence de vis au poste afin d'éviter le risque d'erreur | J24: Manneveau D. | K24: 2015-04-17 | L24: -
A25: 2016331 | B25: 1 | C25: 33 | D25: 2016 | E25: FAI du 02/05/2016 | H25: Analyse ISSE n°80373 | I25: Voir logiciel ISSE | K25: 2016-05-06 | L25: -
A26: 2016332 | B26: 2 | C26: 33 | D26: 2016 | E26: Perte suite à disfonctionnement du car buffer | G26: heures | H26: Perte de détection palette | I26: Mise en place détecteur de 30mm au lieu de 20mm | J26: Theveniau M. | K26: fin février | L26: -
A27: 2016333 | B27: 3 | C27: 33 | D27: 2016 | E27: Perte suite à disfonctionnement du car buffer | G27: heures | H27: Réglage non conforme | I27: Modification des pions d'entrainements + renforcement du système du retourneur | J27: Theveniau M. | K27: fin mars | L27: -
A28: 2016334 | B28: 4 | C28: 33 | D28: 2016 | E28: Perte suite à disfonctionnement du car buffer | G28: heures | H28: Défaut de transit entre palette OP107 à OP112 | I28: Cartérisation des détecteurs de présence palette et réglage des détecteurs mutting | J28: Theveniau M. | K28: fin mai | L28: -
A29: 2015341 | B29: 1 | C29: 34 | D29: 2015 | E29: Agrafes rampe de frein sur entretoise non clipsées CNH (FARGO) | G29: CPI | H29: Erreur humaine - oubli | I29: AT : validation d'un point vert sur les agrafes après clipsage. + Modification des rampes basculeurs pour suppression des agrafes. | J29: BARDOT G. + Engineering | K29: 02/03/2015 + W50 | L29: -
A30: 2015342 | B30: 2 | C30: 34 | D30: 2015 | E30: Manque démarreur CNH (Zedelgem) | G30: CPI | H30: Erreur humaine - oubli | I30: AT : Ajout point de contrôle au buy off + Insertion d'un programme de serrage dans la visseuse (concentrator) AD = AT | J30: BARDOT G. | K30: 2015-02-16 | L30: -
A31: 2016341 | B31: 1 | C31: 34 | D31: 2016 | E31: Manque l'entretoise entre la culasse et le support de climatisation CNH (ZEDELGEM) | G31: CPI | H31: Erreur humaine - oubli | I31: AT : Ajout d'un point de contrôle au quality gate. + AD : Installation d'une clé radiofréquence reliée à concentrator. | J31: Cristovao D. + Jacob F. | K31: 09/03/2016 + W31 | L31: -
A32: 2013381 | B32: 1 | C32: 38 | D32: 2013 | E32: Galet guide courroie non serré => Client FARGO CNH | F32: CPI | H32: Erreur humaine => Oubli de serrage | I32: Mise en place d'une visseuse nouvelle génération | J32: PTS | K32: 2014-01-23 | L32: -
A33: 2013382 | B33: 2 | C33: 38 | D33: 2013 | E33: Etiquette d'identification moteur ne correspondant pas au moteur (inversé avec un autre moteur) => Client CNH ZEDELGEM | F33: CPI | H33: Erreur humaine => une seule imprimante pour les 3 postes de délibération | I33: Installation d'imprimantes propre à chaque poste de délibération | J33: ICT | K33: 2014-02-15 | L33: -
A34: 2013383 | B34: 3 | C34: 38 | D34: 2013 | E34: FAI du 16/12/2013 | H34: Unsafe condition : équipement non adapté | I34: Mise en place d'une procédure + Augmenter la longueur de tuyau de la machine de remplissage d'huile | J34: RUTE 38 + PTS | K34: 2013-12-18 | L34: -
A35: 2014381 | B35: 1 | C35: 38 | D35: 2014 | E35: Vis de fixation de la climatisation non serrée | F35: CPI | H35: Erreur humaine | I35: Mise en place OPL au poste de travail + Demande d'installation d'une nouvelle génération reliée à concentrator. | J35: RUTE | K35: 11/09/2014 + 15/12/2014 | L35: -
A36: 2015381 | B36: 1 | C36: 38 | D36: 2015 | E36: FAI du 15/01/2015 | F36: FAI | G36: TF | H36: - | I36: Voir ISSE n°28960 | J36: - | K36: - | L36: -
A37: 2016381 | B37: 1 | C37: 38 | D37: 2016 | E37: Manque galet tendeur sur face avant moteur | G37: CPI | H37: Oubli de montage du galet par l'opérateur | I37: AT = Contrôle du composant au buy off. + AD = Installation de la visseuse avec encodeur reliée à concentrator. | J37: DUNET I + JACOB F. | K37: 22/03/2016 + 01/07/2016 | L37: -
A38: 2016382 | B38: 2 | C38: 38 | D38: 2016 | E38: Fuite d'eau entre le tube d'entrée moteur et le bloc, joint metalloplastique en dehors de son logement. | G38: CPI | H38: Erreur de montage lors du remontage du tube suite à changement de support moteur. | I38: AT = AD + AD = Essai pression eau après changement des supports moteur + contrôle bon positionnement du joint au buy off. | J38: VOLAT M. | K38: 2016-04-11 | L38: -
A67: =CONCATENATE(D67,C67,B67) -> 
A131: =CONCATENATE(D131,C131,B131) -> 
A195: =CONCATENATE(D195,C195,B195) -> 
A259: =CONCATENATE(D259,C259,B259) -> 
A323: =CONCATENATE(D323,C323,B323) -> 
A387: =CONCATENATE(D387,C387,B387) -> 
A451: =CONCATENATE(D451,C451,B451) -> 
A515: =CONCATENATE(D515,C515,B515) -> 
A579: =CONCATENATE(D579,C579,B579) -> 
A643: =CONCATENATE(D643,C643,B643) -> 
A707: =CONCATENATE(D707,C707,B707) -> 
A771: =CONCATENATE(D771,C771,B771) -> 
A835: =CONCATENATE(D835,C835,B835) -> 
A899: =CONCATENATE(D899,C899,B899) -> 
A963: =CONCATENATE(D963,C963,B963) -> 
A1027: =CONCATENATE(D1027,C1027,B1027) -> 
A1091: =CONCATENATE(D1091,C1091,B1091) -> 
A1155: =CONCATENATE(D1155,C1155,B1155) -> 
A1219: =CONCATENATE(D1219,C1219,B1219) -> 
A1283: =CONCATENATE(D1283,C1283,B1283) -> 
A1347: =CONCATENATE(D1347,C1347,B1347) -> 
A1411: =CONCATENATE(D1411,C1411,B1411) -> 
A1475: =CONCATENATE(D1475,C1475,B1475) -> 
A1539: =CONCATENATE(D1539,C1539,B1539) -> 
A1603: =CONCATENATE(D1603,C1603,B1603) -> 
A1667: =CONCATENATE(D1667,C1667,B1667) -> 
A1731: =CONCATENATE(D1731,C1731,B1731) -> 
A1795: =CONCATENATE(D1795,C1795,B1795) -> 
A1859: =CONCATENATE(D1859,C1859,B1859) -> 
A1923: =CONCATENATE(D1923,C1923,B1923) -> 
A1987: =CONCATENATE(D1987,C1987,B1987) -> 
A2051: =CONCATENATE(D2051,C2051,B2051) -> 
A2115: =CONCATENATE(D2115,C2115,B2115) -> 
A2179: =CONCATENATE(D2179,C2179,B2179) -> 
A2243: =CONCATENATE(D2243,C2243,B2243) -> 
A2307: =CONCATENATE(D2307,C2307,B2307) -> 
A2371: =CONCATENATE(D2371,C2371,B2371) -> 
A2435: =CONCATENATE(D2435,C2435,B2435) -> 
A2499: =CONCATENATE(D2499,C2499,B2499) -> 
A2563: =CONCATENATE(D2563,C2563,B2563) -> 
A2627: =CONCATENATE(D2627,C2627,B2627) -> 
A2691: =CONCATENATE(D2691,C2691,B2691) -> 
A2755: =CONCATENATE(D2755,C2755,B2755) -> 
A2819: =CONCATENATE(D2819,C2819,B2819) -> 
A2883: =CONCATENATE(D2883,C2883,B2883) -> 
A2947: =CONCATENATE(D2947,C2947,B2947) -> 
A3011: =CONCATENATE(D3011,C3011,B3011) -> 
A3075: =CONCATENATE(D3075,C3075,B3075) -> 
A3139: =CONCATENATE(D3139,C3139,B3139) -> 
A3203: =CONCATENATE(D3203,C3203,B3203) -> 
A3267: =CONCATENATE(D3267,C3267,B3267) -> 
A3331: =CONCATENATE(D3331,C3331,B3331) -> 
A3395: =CONCATENATE(D3395,C3395,B3395) -> 
A3459: =CONCATENATE(D3459,C3459,B3459) -> 
A3523: =CONCATENATE(D3523,C3523,B3523) -> 
A3587: =CONCATENATE(D3587,C3587,B3587) -> 
A3651: =CONCATENATE(D3651,C3651,B3651) -> 
A3715: =CONCATENATE(D3715,C3715,B3715) -> 
A3779: =CONCATENATE(D3779,C3779,B3779) -> 
A3843: =CONCATENATE(D3843,C3843,B3843) -> 
A3907: =CONCATENATE(D3907,C3907,B3907) -> 
A3971: =CONCATENATE(D3971,C3971,B3971) -> 
A4035: =CONCATENATE(D4035,C4035,B4035) -> 
A4099: =CONCATENATE(D4099,C4099,B4099) -> 
A4163: =CONCATENATE(D4163,C4163,B4163) -> 
A4227: =CONCATENATE(D4227,C4227,B4227) -> 
A4291: =CONCATENATE(D4291,C4291,B4291) -> 
A4355: =CONCATENATE(D4355,C4355,B4355) -> 
A4419: =CONCATENATE(D4419,C4419,B4419) -> 
A4483: =CONCATENATE(D4483,C4483,B4483) -> 
A4547: =CONCATENATE(D4547,C4547,B4547) -> 
A4611: =CONCATENATE(D4611,C4611,B4611) -> 
A4675: =CONCATENATE(D4675,C4675,B4675) -> 
A4739: =CONCATENATE(D4739,C4739,B4739) -> 
A4803: =CONCATENATE(D4803,C4803,B4803) -> 
A4867: =CONCATENATE(D4867,C4867,B4867) -> 
A4931: =CONCATENATE(D4931,C4931,B4931) -> 
A4995: =CONCATENATE(D4995,C4995,B4995) -> 
A5059: =CONCATENATE(D5059,C5059,B5059) -> 
A5123: =CONCATENATE(D5123,C5123,B5123) -> 
A5187: =CONCATENATE(D5187,C5187,B5187) -> 
A5251: =CONCATENATE(D5251,C5251,B5251) -> 
A5315: =CONCATENATE(D5315,C5315,B5315) -> 
A5379: =CONCATENATE(D5379,C5379,B5379) -> 
A5443: =CONCATENATE(D5443,C5443,B5443) -> 
A5507: =CONCATENATE(D5507,C5507,B5507) -> 
A5571: =CONCATENATE(D5571,C5571,B5571) -> 
A5635: =CONCATENATE(D5635,C5635,B5635) -> 
A5699: =CONCATENATE(D5699,C5699,B5699) -> 
A5763: =CONCATENATE(D5763,C5763,B5763) -> 
A5827: =CONCATENATE(D5827,C5827,B5827) -> 
A5891: =CONCATENATE(D5891,C5891,B5891) -> 
A5955: =CONCATENATE(D5955,C5955,B5955) -> 
A6019: =CONCATENATE(D6019,C6019,B6019) -> 
A6083: =CONCATENATE(D6083,C6083,B6083) -> 
A6147: =CONCATENATE(D6147,C6147,B6147) -> 
A6211: =CONCATENATE(D6211,C6211,B6211) -> 
A6275: =CONCATENATE(D6275,C6275,B6275) -> 
A6339: =CONCATENATE(D6339,C6339,B6339) -> 
A6403: =CONCATENATE(D6403,C6403,B6403) -> 
A6467: =CONCATENATE(D6467,C6467,B6467) -> 
A6531: =CONCATENATE(D6531,C6531,B6531) -> 
A6595: =CONCATENATE(D6595,C6595,B6595) -> 
A6659: =CONCATENATE(D6659,C6659,B6659) -> 
A6723: =CONCATENATE(D6723,C6723,B6723) -> 
A6787: =CONCATENATE(D6787,C6787,B6787) -> 
A6851: =CONCATENATE(D6851,C6851,B6851) -> 
A6915: =CONCATENATE(D6915,C6915,B6915) -> 
A6979: =CONCATENATE(D6979,C6979,B6979) -> 
A7043: =CONCATENATE(D7043,C7043,B7043) -> 
A7107: =CONCATENATE(D7107,C7107,B7107) -> 
A7171: =CONCATENATE(D7171,C7171,B7171) -> 
A7235: =CONCATENATE(D7235,C7235,B7235) -> 
A7299: =CONCATENATE(D7299,C7299,B7299) -> 
A7363: =CONCATENATE(D7363,C7363,B7363) -> 
A7427: =CONCATENATE(D7427,C7427,B7427) -> 
A7491: =CONCATENATE(D7491,C7491,B7491) -> 
A7555: =CONCATENATE(D7555,C7555,B7555) -> 
A7619: =CONCATENATE(D7619,C7619,B7619) -> 
A7683: =CONCATENATE(D7683,C7683,B7683) -> 
A7747: =CONCATENATE(D7747,C7747,B7747) -> 
A7811: =CONCATENATE(D7811,C7811,B7811) -> 
A7875: =CONCATENATE(D7875,C7875,B7875) -> 
A7939: =CONCATENATE(D7939,C7939,B7939) -> 
A8003: =CONCATENATE(D8003,C8003,B8003) -> 
A8067: =CONCATENATE(D8067,C8067,B8067) -> 
A8131: =CONCATENATE(D8131,C8131,B8131) -> 
A8195: =CONCATENATE(D8195,C8195,B8195) -> 
A8259: =CONCATENATE(D8259,C8259,B8259) -> 
A8323: =CONCATENATE(D8323,C8323,B8323) -> 
A8387: =CONCATENATE(D8387,C8387,B8387) -> 
A8451: =CONCATENATE(D8451,C8451,B8451) -> 
A8515: =CONCATENATE(D8515,C8515,B8515) -> 
A8579: =CONCATENATE(D8579,C8579,B8579) -> 
A8643: =CONCATENATE(D8643,C8643,B8643) -> 
A8707: =CONCATENATE(D8707,C8707,B8707) -> 
A8771: =CONCATENATE(D8771,C8771,B8771) -> 
A8835: =CONCATENATE(D8835,C8835,B8835) -> 
A8899: =CONCATENATE(D8899,C8899,B8899) -> 
A8963: =CONCATENATE(D8963,C8963,B8963) -> 
A9027: =CONCATENATE(D9027,C9027,B9027) -> 
A9091: =CONCATENATE(D9091,C9091,B9091) -> 
A9155: =CONCATENATE(D9155,C9155,B9155) -> 
A9219: =CONCATENATE(D9219,C9219,B9219) -> 
A9283: =CONCATENATE(D9283,C9283,B9283) -> 
A9347: =CONCATENATE(D9347,C9347,B9347) -> 
A9411: =CONCATENATE(D9411,C9411,B9411) -> 
A9475: =CONCATENATE(D9475,C9475,B9475) -> 
A9539: =CONCATENATE(D9539,C9539,B9539) -> 
A9603: =CONCATENATE(D9603,C9603,B9603) -> 
A9667: =CONCATENATE(D9667,C9667,B9667) -> 
A9731: =CONCATENATE(D9731,C9731,B9731) -> 
A9795: =CONCATENATE(D9795,C9795,B9795) -> 
A9859: =CONCATENATE(D9859,C9859,B9859) -> 
A9923: =CONCATENATE(D9923,C9923,B9923) -> 
A9987: =CONCATENATE(D9987,C9987,B9987) -> 
A10051: =CONCATENATE(D10051,C10051,B10051) -> 
A10115: =CONCATENATE(D10115,C10115,B10115) -> 
A10179: =CONCATENATE(D10179,C10179,B10179) -> 
A10243: =CONCATENATE(D10243,C10243,B10243) -> 
A10307: =CONCATENATE(D10307,C10307,B10307) -> 
A10371: =CONCATENATE(D10371,C10371,B10371) -> 
... 23 more rows

Sheet Informations documents
